Body Name,Service Area Categorisation,Service Area Division,Purpose of Expenditure,Payment Date,Trans No,Amount Paid in �,Capital or Revenue,Beneficiary,Merchant Category
Peterborough City Council,People & Communities,Community Team,Agency Staff,22/02/2019,30220087,976.80,Revenue,Medicare First Ltd,External Temporary Staff
Peterborough City Council,Corporate,Corporate,Non Revenue,18/07/2019,30241158,-19443.29,Capital,Cadent Gas Limited,Building And Site Works
Peterborough City Council,People & Communities,Independent Sector Placements,Services,02/12/2019,30253783,-2790.09,Revenue,Alysia Caring Ltd T/a Cherry Blossom care Home,Residential Care
Peterborough City Council,People & Communities,Independent Sector Placements,Services,02/12/2019,30252094,504.00,Revenue,Thera East Anglia,Daycare
Peterborough City Council,People & Communities,Independent Sector Placements,Services,02/12/2019,8000156295,517.20,Revenue,Allied Health Services Ltd T/A Allied Healthcare,Homecare
Peterborough City Council,People & Communities,Independent Sector Placements,Services,02/12/2019,8000155154,549.90,Revenue,Allied Health Services Ltd T/A Allied Healthcare,Homecare
Peterborough City Council,People & Communities,Housing,Services,02/12/2019,30254401,559.00,Revenue,AGT Property Managment Ltd,Financial Assistance
Peterborough City Council,People & Communities,Independent Sector Placements,Services,02/12/2019,8000156281,566.28,Revenue,Cross Keys Homes,Respite Care
Peterborough City Council,People & Communities,Independent Sector Placements,Services,02/12/2019,8000155149,582.75,Revenue,Allied Health Services Ltd T/A Allied Healthcare,Homecare
Peterborough City Council,People & Communities,Mental Capacity Act & DoLs,Services,02/12/2019,30254519,590.76,Revenue,Redacted Personal Information,Other Occupancy Costs
Peterborough City Council,People & Communities,Independent Sector Placements,Services,02/12/2019,30251907,643.40,Revenue,Goldcare Homes t/a The Tudors Care Home,Residential Care
Peterborough City Council,Public Health,DPH Office,Agency Staff,02/12/2019,30254517,653.06,Revenue,Reed Specialist Recruitment Limited,External Temporary Staff
Peterborough City Council,Place & Economy,Westcombe Engineering,Services,02/12/2019,30253581,658.56,Revenue,Barron Clark Castings Ltd,Materials
Peterborough City Council,People & Communities,Independent Sector Placements,Services,02/12/2019,30254416,660.00,Revenue,Redacted Personal Information ,Daycare
Peterborough City Council,People & Communities,Independent Sector Placements,Services,02/12/2019,30254415,685.28,Revenue,Redacted Personal Information ,Daycare
Peterborough City Council,People & Communities,Independent Sector Placements,Services,02/12/2019,30252093,688.00,Revenue,Thera East Anglia,Daycare
Peterborough City Council,People & Communities,HTS & CSC Transport,Contract Hire and Operating Leases,02/12/2019,30254334,720.00,Revenue,Goldstar Cabs Ltd,Hired Transport
Peterborough City Council,People & Communities,Independent Sector Placements,Services,02/12/2019,30252103,756.00,Revenue,Thera East Anglia,Daycare
Peterborough City Council,People & Communities,Independent Sector Placements,Services,02/12/2019,30252106,756.00,Revenue,Thera East Anglia,Daycare
Peterborough City Council,People & Communities,Independent Sector Placements,Services,02/12/2019,30252109,756.00,Revenue,Thera East Anglia,Daycare
Peterborough City Council,People & Communities,Independent Sector Placements,Services,02/12/2019,30254417,756.00,Revenue,Redacted Personal Information ,Daycare
Peterborough City Council,People & Communities,Access to Resources & Specialist Commissioning,Schools,02/12/2019,30250666,764.40,Revenue,Swiis Foster Care Ltd,Boarding - Out Fees
Peterborough City Council,People & Communities,Access to Resources & Specialist Commissioning,Schools,02/12/2019,30254412,764.40,Revenue,Swiis Foster Care Ltd,Boarding - Out Fees
Peterborough City Council,People & Communities,Access to Resources & Specialist Commissioning,Schools,02/12/2019,30254413,764.40,Revenue,Swiis Foster Care Ltd,Boarding - Out Fees
Peterborough City Council,People & Communities,Access to Resources & Specialist Commissioning,Schools,02/12/2019,30254414,764.40,Revenue,Swiis Foster Care Ltd,Boarding - Out Fees
Peterborough City Council,People & Communities,Access to Resources & Specialist Commissioning,Schools,02/12/2019,30254419,764.40,Revenue,Swiis Foster Care Ltd,Boarding - Out Fees
Peterborough City Council,People & Communities,Mental Capacity Act & DoLs,Services,02/12/2019,30254518,774.88,Revenue,Redacted Personal Information,Other Occupancy Costs
Peterborough City Council,People & Communities,Access to Resources & Specialist Commissioning,Schools,02/12/2019,30250665,780.01,Revenue,Swiis Foster Care Ltd,Boarding - Out Fees
Peterborough City Council,People & Communities,Access to Resources & Specialist Commissioning,Schools,02/12/2019,30251177,780.01,Revenue,Swiis Foster Care Ltd,Boarding - Out Fees
Peterborough City Council,People & Communities,Access to Resources & Specialist Commissioning,Schools,02/12/2019,30253339,780.01,Revenue,Swiis Foster Care Ltd,Boarding - Out Fees
Peterborough City Council,People & Communities,Access to Resources & Specialist Commissioning,Schools,02/12/2019,30253341,780.01,Revenue,Swiis Foster Care Ltd,Boarding - Out Fees
Peterborough City Council,People & Communities,Access to Resources & Specialist Commissioning,Schools,02/12/2019,30253342,780.01,Revenue,Swiis Foster Care Ltd,Boarding - Out Fees
Peterborough City Council,People & Communities,HTS & CSC Transport,Contract Hire and Operating Leases,02/12/2019,30254333,810.00,Revenue,Goldstar Cabs Ltd,Hired Transport
Peterborough City Council,People & Communities,Independent Sector Placements,Services,02/12/2019,30252101,860.00,Revenue,Thera East Anglia,Daycare
Peterborough City Council,People & Communities,Independent Sector Placements,Services,02/12/2019,30252102,860.00,Revenue,Thera East Anglia,Daycare
Peterborough City Council,People & Communities,Independent Sector Placements,Services,02/12/2019,8000156221,869.25,Revenue,Caring Crew Ltd,Respite Care
Peterborough City Council,People & Communities,Independent Sector Placements,Services,02/12/2019,8000155146,915.75,Revenue,Allied Health Services Ltd T/A Allied Healthcare,Homecare
Peterborough City Council,People & Communities,Independent Sector Placements,Services,02/12/2019,30251901,917.24,Revenue,Goldcare Homes t/a The Tudors Care Home,Residential Care
Peterborough City Council,People & Communities,Independent Sector Placements,Services,02/12/2019,30251902,959.28,Revenue,Goldcare Homes t/a The Tudors Care Home,Residential Care
Peterborough City Council,People & Communities,Housing,Services,02/12/2019,30253645,969.00,Revenue,Bairstow Eves,Financial Assistance
Peterborough City Council,People & Communities,Independent Sector Placements,Services,02/12/2019,30252098,1008.00,Revenue,Thera East Anglia,Daycare
Peterborough City Council,People & Communities,Independent Sector Placements,Services,02/12/2019,30252107,1008.00,Revenue,Thera East Anglia,Daycare
Peterborough City Council,People & Communities,Special Educational Needs / Inclusion,Services,02/12/2019,30254203,1026.00,Revenue,TLC LIVE,Education Expenses
Peterborough City Council,People & Communities,Independent Sector Placements,Services,02/12/2019,30251906,1045.84,Revenue,Goldcare Homes t/a The Tudors Care Home,Residential Care
Peterborough City Council,People & Communities,Independent Sector Placements,Services,02/12/2019,30251914,1178.44,Revenue,Goldcare Homes t/a The Tudors Care Home,Residential Care
Peterborough City Council,People & Communities,Independent Sector Placements,Services,02/12/2019,8000156222,1213.39,Revenue,Caring Crew Ltd,Homecare
Peterborough City Council,People & Communities,Independent Sector Placements,Services,02/12/2019,30251912,1252.48,Revenue,Goldcare Homes t/a The Tudors Care Home,Residential Care
Peterborough City Council,People & Communities,Independent Sector Placements,Services,02/12/2019,30252090,1260.00,Revenue,Thera East Anglia,Daycare
Peterborough City Council,People & Communities,Independent Sector Placements,Services,02/12/2019,30252096,1260.00,Revenue,Thera East Anglia,Daycare
Peterborough City Council,People & Communities,Independent Sector Placements,Services,02/12/2019,30252108,1260.00,Revenue,Thera East Anglia,Daycare
Peterborough City Council,People & Communities,Independent Sector Placements,Services,02/12/2019,30251899,1288.48,Revenue,Goldcare Homes t/a The Tudors Care Home,Residential Care
Peterborough City Council,People & Communities,Independent Sector Placements,Services,02/12/2019,30251905,1352.48,Revenue,Goldcare Homes t/a The Tudors Care Home,Residential Care
Peterborough City Council,People & Communities,Independent Sector Placements,Services,02/12/2019,30251900,1398.12,Revenue,Goldcare Homes t/a The Tudors Care Home,Residential Care
Peterborough City Council,People & Communities,Independent Sector Placements,Services,02/12/2019,30252091,1464.00,Revenue,Thera East Anglia,Daycare
Peterborough City Council,People & Communities,Independent Sector Placements,Services,02/12/2019,8000156285,1475.65,Revenue,Atlas Care Services Ltd,Homecare
Peterborough City Council,People & Communities,Independent Sector Placements,Services,02/12/2019,30251916,1482.00,Revenue,Goldcare Homes t/a The Tudors Care Home,Residential Care
Peterborough City Council,People & Communities,Independent Sector Placements,Services,02/12/2019,30251909,1489.28,Revenue,Goldcare Homes t/a The Tudors Care Home,Residential Care
Peterborough City Council,People & Communities,Independent Sector Placements,Services,02/12/2019,30251903,1551.88,Revenue,Goldcare Homes t/a The Tudors Care Home,Residential Care
Peterborough City Council,People & Communities,Independent Sector Placements,Services,02/12/2019,30251915,1573.96,Revenue,Goldcare Homes t/a The Tudors Care Home,Residential Care
Peterborough City Council,People & Communities,Independent Sector Placements,Services,02/12/2019,30251896,1630.60,Revenue,Goldcare Homes t/a The Tudors Care Home,Residential Care
Peterborough City Council,People & Communities,Independent Sector Placements,Services,02/12/2019,8000155148,1638.15,Revenue,Allied Health Services Ltd T/A Allied Healthcare,Homecare
Peterborough City Council,People & Communities,Independent Sector Placements,Services,02/12/2019,30251897,1656.68,Revenue,Goldcare Homes t/a The Tudors Care Home,Residential Care
Peterborough City Council,People & Communities,Independent Sector Placements,Services,02/12/2019,30251904,1684.32,Revenue,Goldcare Homes t/a The Tudors Care Home,Residential Care
Peterborough City Council,People & Communities,Independent Sector Placements,Services,02/12/2019,30251908,1730.60,Revenue,Goldcare Homes t/a The Tudors Care Home,Residential Care
Peterborough City Council,People & Communities,Independent Sector Placements,Services,02/12/2019,30251910,1730.60,Revenue,Goldcare Homes t/a The Tudors Care Home,Residential Care
Peterborough City Council,People & Communities,Independent Sector Placements,Services,02/12/2019,30251911,1776.24,Revenue,Goldcare Homes t/a The Tudors Care Home,Residential Care
Peterborough City Council,People & Communities,Independent Sector Placements,Services,02/12/2019,8000156292,1854.45,Revenue,Allied Health Services Ltd T/A Allied Healthcare,Homecare
Peterborough City Council,People & Communities,Independent Sector Placements,Services,02/12/2019,30251898,1902.84,Revenue,Goldcare Homes t/a The Tudors Care Home,Residential Care
Peterborough City Council,People & Communities,Housing Enforcement,Services,02/12/2019,30254484,1930.00,Revenue,Oyster Partnership Ltd,Contractors
Peterborough City Council,People & Communities,Independent Sector Placements,Services,02/12/2019,30252095,1952.00,Revenue,Thera East Anglia,Daycare
Peterborough City Council,Corporate,Corporate,Non Revenue,02/12/2019,30254243,2027.00,Capital,PITNEY BOWES SOFTWARE EUROPE LTD,Computer Software
Peterborough City Council,People & Communities,Independent Sector Placements,Services,02/12/2019,30251895,2300.00,Revenue,Goldcare Homes t/a The Tudors Care Home,Residential Care
Peterborough City Council,People & Communities,Independent Sector Placements,Services,02/12/2019,30252088,2440.00,Revenue,Thera East Anglia,Daycare
Peterborough City Council,People & Communities,Independent Sector Placements,Services,02/12/2019,30252089,2440.00,Revenue,Thera East Anglia,Daycare
Peterborough City Council,People & Communities,Independent Sector Placements,Services,02/12/2019,30252092,2440.00,Revenue,Thera East Anglia,Daycare
Peterborough City Council,People & Communities,Independent Sector Placements,Services,02/12/2019,30252104,2440.00,Revenue,Thera East Anglia,Daycare
Peterborough City Council,People & Communities,Independent Sector Placements,Services,02/12/2019,30252105,2440.00,Revenue,Thera East Anglia,Daycare
Peterborough City Council,People & Communities,Independent Sector Placements,Services,02/12/2019,30252111,2440.00,Revenue,Thera East Anglia,Daycare
Peterborough City Council,People & Communities,Independent Sector Placements,Services,02/12/2019,30252112,2440.00,Revenue,Thera East Anglia,Daycare
Peterborough City Council,People & Communities,Independent Sector Placements,Services,02/12/2019,8000155156,2702.40,Revenue,Allied Health Services Ltd T/A Allied Healthcare,Homecare
Peterborough City Council,People & Communities,Housing,Services,02/12/2019,30254448,2975.00,Revenue,Singh and Sons Property Management Ltd,Temporary Accommodation Costs
Peterborough City Council,Resources,Finance,Agency Staff,02/12/2019,30253639,2976.15,Revenue,Allen Lane,External Temporary Staff
Peterborough City Council,People & Communities,Independent Sector Placements,Services,02/12/2019,30252535,2985.71,Revenue,Alysia Caring Ltd T/a Cherry Blossom care Home,Respite Care
Peterborough City Council,People & Communities,Access to Resources & Specialist Commissioning,Schools,02/12/2019,30254206,3082.33,Revenue,Key2 Futures Limited,Boarding - Out Fees
Peterborough City Council,People & Communities,Access to Resources & Specialist Commissioning,Schools,02/12/2019,30254208,3082.33,Revenue,Key2 Futures Limited,Boarding - Out Fees
Peterborough City Council,People & Communities,Independent Sector Placements,Services,02/12/2019,30252100,3515.00,Revenue,Thera East Anglia,Daycare
Peterborough City Council,People & Communities,Access to Resources & Specialist Commissioning,Schools,02/12/2019,30253866,3627.00,Revenue,Affinity Fostering Services Ltd,Boarding - Out Fees
Peterborough City Council,People & Communities,Access to Resources & Specialist Commissioning,Schools,02/12/2019,30254308,3642.60,Revenue,Eastern Family Services,Boarding - Out Fees
Peterborough City Council,People & Communities,Access to Resources & Specialist Commissioning,Schools,02/12/2019,30254178,4034.34,Revenue,Five Rivers,Boarding - Out Fees
Peterborough City Council,People & Communities,Independent Sector Placements,Services,02/12/2019,30251913,4038.25,Revenue,Goldcare Homes t/a The Tudors Care Home,Residential Care
Peterborough City Council,People & Communities,Home Services Delivery Model,Other Establishments,02/12/2019,30254390,5017.14,Revenue,Peterborough Womens Aid,Grant-Third Party
Peterborough City Council,People & Communities,Housing,Rents,02/12/2019,30253960,5416.67,Revenue,TP Social Housing 2 Ltd,Rent
Peterborough City Council,People & Communities,Independent Sector Placements,Services,02/12/2019,30252168,8255.68,Revenue,NEW BOUNDARIES COMMUNITY SERVICES LTD,Residential Care
Peterborough City Council,People & Communities,Independent Sector Placements,Services,02/12/2019,30252173,9168.60,Revenue,Autism Care (UK) Ltd,Residential Care
Peterborough City Council,People & Communities,Strategic Commissioning - Management,Agency Staff,02/12/2019,30254514,9990.00,Revenue,Sanctuary Personnel Ltd,External Temporary Staff
Peterborough City Council,People & Communities,Access to Resources & Specialist Commissioning,Schools,02/12/2019,30250777,13485.00,Revenue,Sixteen Plus Limited,Boarding - Out Fees
Peterborough City Council,Corporate,Corporate,Non Revenue,02/12/2019,30252745,18712.51,Balance Sheet,JT Consultancy Ltd,Consultantcy Fees
Peterborough City Council,People & Communities,OP/PD/SI,Other Establishments,02/12/2019,30254507,118081.27,Revenue,AGE UK Cambridgeshire and Peterborough,Third Party Payments - Contract
Peterborough City Council,Place & Economy,Waste & Operational Svs Mgmt,Other Establishments,02/12/2019,30254469,192338.56,Revenue,Enterprise Managed Services Limited,Third Party Payments - Contract
Peterborough City Council,People & Communities,Access to Resources & Specialist Commissioning,Schools,04/12/2019,30250772,-3400.04,Revenue,Maze Independent Care Ltd,Boarding - Out Fees
Peterborough City Council,People & Communities,Access to Resources & Specialist Commissioning,Schools,04/12/2019,30254675,-2552.00,Revenue,Nexus Fostering Ltd,Boarding - Out Fees
Peterborough City Council,People & Communities,Access to Resources & Specialist Commissioning,Schools,04/12/2019,30254677,-2552.00,Revenue,Nexus Fostering Ltd,Boarding - Out Fees
Peterborough City Council,People & Communities,Access to Resources & Specialist Commissioning,Schools,04/12/2019,30254679,-2552.00,Revenue,Nexus Fostering Ltd,Boarding - Out Fees
Peterborough City Council,People & Communities,Children�s Social Care,Agency Staff,04/12/2019,30254516,-2217.25,Revenue,Service Care Solutions Ltd,External Temporary Staff
Peterborough City Council,People & Communities,Home Services Delivery Model,Customer and client receipts - Fees & Charges,04/12/2019,30253161,-586.95,Revenue,MORLEY BUILDING SERVICES LTD,Grant Payment
Peterborough City Council,Governance,Legal Services,Services,04/12/2019,30254538,-550.00,Revenue,"Elliott, Ms Margot",Legal Costs
Peterborough City Council,People & Communities,Independent Sector Placements,Services,04/12/2019,30254509,-525.71,Revenue,Alysia Caring Ltd T/a Cherry Blossom care Home,Residential Care
Peterborough City Council,People & Communities,Access to Resources & Specialist Commissioning,Schools,04/12/2019,30247827,-508.56,Revenue,Byrne House Ltd,Boarding - Out Fees
Peterborough City Council,People & Communities,Independent Sector Placements,Services,04/12/2019,30252818,514.53,Revenue,Bee�s Care Ltd,Homecare
Peterborough City Council,People & Communities,Access to Resources & Specialist Commissioning,Schools,04/12/2019,30251648,525.00,Revenue,National Fostering Agency Ltd,Boarding - Out Fees
Peterborough City Council,Place & Economy,Transport & Infrastructure Commissioning,Services,04/12/2019,30253396,527.73,Revenue,Stagecoach in Peterborough,Contractors
Peterborough City Council,People & Communities,Independent Sector Placements,Services,04/12/2019,30254610,529.08,Revenue,Bee�s Care Ltd,Homecare
Peterborough City Council,Resources,Office Accomodation,Repair & Maintenance of Buildings,04/12/2019,30253545,540.00,Revenue,Smooth Removals,Other Occupancy Costs
Peterborough City Council,People & Communities,Access to Resources & Specialist Commissioning,Schools,04/12/2019,30251641,557.15,Revenue,National Fostering Agency Ltd,Boarding - Out Fees
Peterborough City Council,People & Communities,Access to Resources & Specialist Commissioning,Schools,04/12/2019,30251650,557.15,Revenue,National Fostering Agency Ltd,Boarding - Out Fees
Peterborough City Council,Place & Economy,Planning Compliance,Agency Staff,04/12/2019,30254857,558.75,Revenue,Park Avenue Recruitment Limited,External Temporary Staff
Peterborough City Council,People & Communities,Commissioning,Services,04/12/2019,30252900,559.09,Revenue,121 Social Care Limited,Hired Services
Peterborough City Council,People & Communities,Independent Sector Placements,Services,04/12/2019,30252532,570.00,Revenue,Mencap,Homecare
Peterborough City Council,People & Communities,Independent Sector Placements,Services,04/12/2019,30252546,575.04,Revenue,Alysia Caring Ltd T/a Cherry Blossom care Home,Residential Care
Peterborough City Council,People & Communities,Access to Resources & Specialist Commissioning,Schools,04/12/2019,30253356,575.71,Revenue,Locate Accommodation Ltd,Boarding - Out Fees
Peterborough City Council,People & Communities,Access to Resources & Specialist Commissioning,Schools,04/12/2019,30253358,575.71,Revenue,Locate Accommodation Ltd,Boarding - Out Fees
Peterborough City Council,People & Communities,Access to Resources & Specialist Commissioning,Schools,04/12/2019,30254793,575.71,Revenue,Locate Accommodation Ltd,Boarding - Out Fees
Peterborough City Council,People & Communities,Independent Sector Placements,Services,04/12/2019,30253805,592.70,Revenue,Voyage 1 Limited,Homecare
Peterborough City Council,People & Communities,Independent Sector Placements,Services,04/12/2019,30252829,598.41,Revenue,Bee�s Care Ltd,Homecare
Peterborough City Council,People & Communities,Housing,Services,04/12/2019,30254803,600.00,Revenue,Quantum Lettings Ltd,Financial Assistance
Peterborough City Council,People & Communities,Independent Sector Placements,Services,04/12/2019,30252512,600.00,Revenue,Mencap,Homecare
Peterborough City Council,People & Communities,Independent Sector Placements,Services,04/12/2019,30252518,600.00,Revenue,Mencap,Homecare
Peterborough City Council,People & Communities,Independent Sector Placements,Services,04/12/2019,30252522,600.00,Revenue,Mencap,Homecare
Peterborough City Council,Chief Executives,HR WFD & Training,Services,04/12/2019,30254729,610.00,Revenue,St Thomas Training Ltd,Course Instructors Fees
Peterborough City Council,Chief Executives,HR WFD & Training,Services,04/12/2019,30254851,610.00,Revenue,St Thomas Training Ltd,Course Instructors Fees
Peterborough City Council,People & Communities,Early Years & Quality Improvement,Services,04/12/2019,30254395,615.00,Revenue,Seedlings Nursery,Grant Payment
Peterborough City Council,People & Communities,Access to Resources & Specialist Commissioning,Schools,04/12/2019,30253361,620.00,Revenue,Locate Accommodation Ltd,Boarding - Out Fees
Peterborough City Council,Resources,Commercial Propety,Repair & Maintenance of Buildings,04/12/2019,30254547,637.50,Revenue,Farnsworth Court Management Company Limited,Rent
Peterborough City Council,People & Communities,Independent Sector Placements,Services,04/12/2019,30254539,638.00,Revenue,Better Healthcare Services,Homecare
Peterborough City Council,People & Communities,Independent Sector Placements,Services,04/12/2019,30252549,638.24,Revenue,Alysia Caring Ltd T/a Cherry Blossom care Home,Residential Care
Peterborough City Council,People & Communities,Home Services Delivery Model,Services,04/12/2019,30253072,646.00,Revenue,Rawheat Heating & Plumbing Eng.,Contractors
Peterborough City Council,Governance,Legal Services,Services,04/12/2019,30254527,650.00,Revenue,"Walji, Miss Shabnam",Legal Costs
Peterborough City Council,Governance,Legal Services,Services,04/12/2019,30254528,650.00,Revenue,"Walji, Miss Shabnam",Legal Costs
Peterborough City Council,Governance,Legal Services,Services,04/12/2019,30254531,650.00,Revenue,"Walji, Miss Shabnam",Legal Costs
Peterborough City Council,Governance,Legal Services,Services,04/12/2019,30254533,650.00,Revenue,"Elliott, Ms Margot",Legal Costs
Peterborough City Council,Governance,Legal Services,Services,04/12/2019,30254537,650.00,Revenue,Redacted Personal Information,Legal Costs
Peterborough City Council,Public Health,DPH Office,Agency Staff,04/12/2019,30254604,653.06,Revenue,Reed Specialist Recruitment Limited,External Temporary Staff
Peterborough City Council,Public Health,DPH Office,Agency Staff,04/12/2019,30254614,653.06,Revenue,Reed Specialist Recruitment Limited,External Temporary Staff
Peterborough City Council,People & Communities,Independent Sector Placements,Services,04/12/2019,30254607,710.38,Revenue,Bee�s Care Ltd,Homecare
Peterborough City Council,People & Communities,Independent Sector Placements,Services,04/12/2019,30254608,710.80,Revenue,Bee�s Care Ltd,Respite Care
Peterborough City Council,People & Communities,Independent Sector Placements,Services,04/12/2019,30252511,720.00,Revenue,Mencap,Homecare
Peterborough City Council,Place & Economy,Westcombe Engineering,Services,04/12/2019,30254861,720.00,Revenue,Paul Clarke CNC Machine Tool Services,Materials
Peterborough City Council,People & Communities,Regulatory Services,"Printing, Stationery & General Office Expenses",04/12/2019,30254103,746.72,Revenue,Valtech Ltd,Stationery
Peterborough City Council,Governance,Legal Services,Services,04/12/2019,30254536,750.00,Revenue,"Elliott, Ms Margot",Legal Costs
Peterborough City Council,People & Communities,HTS & CSC Transport,Contract Hire and Operating Leases,04/12/2019,30254505,758.40,Revenue,Goldstar Cabs Ltd,Hired Transport
Peterborough City Council,People & Communities,Mental Capacity Act & DoLs,Services,04/12/2019,30254647,764.00,Revenue,Raj Medical Consultancy Limited,Miscellaneous
Peterborough City Council,Governance,Legal Services,Agency Staff,04/12/2019,30254241,770.00,Revenue,Fiona Spinks,External Temporary Staff
Peterborough City Council,People & Communities,Independent Sector Placements,Services,04/12/2019,8000156283,782.08,Revenue,Longhurst Group Limited,Homecare
Peterborough City Council,People & Communities,Independent Sector Placements,Services,04/12/2019,30252816,784.65,Revenue,Bee�s Care Ltd,Homecare
Peterborough City Council,People & Communities,Independent Sector Placements,Services,04/12/2019,30252823,794.25,Revenue,Bee�s Care Ltd,Respite Care
Peterborough City Council,People & Communities,Access to Resources & Specialist Commissioning,Schools,04/12/2019,30254038,795.90,Revenue,Eastern Family Services,Boarding - Out Fees
Peterborough City Council,People & Communities,Independent Sector Placements,Services,04/12/2019,30252544,802.40,Revenue,Alysia Caring Ltd T/a Cherry Blossom care Home,Residential Care
Peterborough City Council,People & Communities,Access to Resources & Specialist Commissioning,Schools,04/12/2019,30254775,819.00,Revenue,Transition Care Peterborough Ltd,Boarding - Out Fees
Peterborough City Council,People & Communities,Access to Resources & Specialist Commissioning,Schools,04/12/2019,30254776,819.00,Revenue,Transition Care Peterborough Ltd,Boarding - Out Fees
Peterborough City Council,People & Communities,Independent Sector Placements,Services,04/12/2019,30252803,821.10,Revenue,Bee�s Care Ltd,Homecare
Peterborough City Council,People & Communities,Independent Sector Placements,Services,04/12/2019,30252821,822.07,Revenue,Bee�s Care Ltd,Homecare
Peterborough City Council,People & Communities,Access to Resources & Specialist Commissioning,Schools,04/12/2019,30251656,840.00,Revenue,National Fostering Agency Ltd,Boarding - Out Fees
Peterborough City Council,People & Communities,Independent Sector Placements,Services,04/12/2019,30254555,850.64,Revenue,Better Healthcare Services,Homecare
Peterborough City Council,People & Communities,Independent Sector Placements,Services,04/12/2019,30252810,853.98,Revenue,Bee�s Care Ltd,Homecare
Peterborough City Council,People & Communities,Independent Sector Placements,Services,04/12/2019,30252827,877.98,Revenue,Bee�s Care Ltd,Homecare
Peterborough City Council,Resources,PSSP Retained Services,Services,04/12/2019,30254648,881.07,Revenue,Whistl UK Ltd,Postage
Peterborough City Council,People & Communities,Independent Sector Placements,Services,04/12/2019,30252564,888.08,Revenue,Maxey House Res Home,Residential Care
Peterborough City Council,People & Communities,Access to Resources & Specialist Commissioning,Schools,04/12/2019,30251646,891.44,Revenue,National Fostering Agency Ltd,Boarding - Out Fees
Peterborough City Council,People & Communities,Access to Resources & Specialist Commissioning,Schools,04/12/2019,30251660,891.44,Revenue,National Fostering Agency Ltd,Boarding - Out Fees
Peterborough City Council,People & Communities,Independent Sector Placements,Services,04/12/2019,30252514,900.00,Revenue,Mencap,Homecare
Peterborough City Council,People & Communities,Independent Sector Placements,Services,04/12/2019,30252516,900.00,Revenue,Mencap,Homecare
Peterborough City Council,People & Communities,Independent Sector Placements,Services,04/12/2019,30252533,900.00,Revenue,Mencap,Homecare
Peterborough City Council,People & Communities,Independent Sector Placements,Services,04/12/2019,30252858,905.09,Revenue,Bee�s Care Ltd,Homecare
Peterborough City Council,People & Communities,Independent Sector Placements,Services,04/12/2019,30252825,906.36,Revenue,Bee�s Care Ltd,Homecare
Peterborough City Council,People & Communities,Commissioning,Services,04/12/2019,30252899,908.57,Revenue,121 Social Care Limited,Hired Services
Peterborough City Council,People & Communities,Independent Sector Placements,Services,04/12/2019,30252830,910.03,Revenue,Bee�s Care Ltd,Homecare
Peterborough City Council,People & Communities,Independent Sector Placements,Services,04/12/2019,30252826,923.02,Revenue,Bee�s Care Ltd,Homecare
Peterborough City Council,People & Communities,Block Contracts,Services,04/12/2019,30254703,926.96,Revenue,Funding Affordable Homes Housing Assoc. Ltd,Homecare
Peterborough City Council,Corporate,Corporate,Non Revenue,04/12/2019,30254641,937.50,Capital,Sibcas Ltd,Building And Site Works
Peterborough City Council,People & Communities,Mental Capacity Act & DoLs,Services,04/12/2019,30254686,949.00,Revenue,Raj Medical Consultancy Limited,Miscellaneous
Peterborough City Council,People & Communities,Independent Sector Placements,Services,04/12/2019,30252566,975.00,Revenue,Maxey House Res Home,Respite Care
Peterborough City Council,People & Communities,Independent Sector Placements,Services,04/12/2019,30252558,975.20,Revenue,Maxey House Res Home,Residential Care
Peterborough City Council,People & Communities,Independent Sector Placements,Services,04/12/2019,30252806,976.96,Revenue,Bee�s Care Ltd,Homecare
Peterborough City Council,People & Communities,Home Services Delivery Model,Services,04/12/2019,30254853,977.50,Revenue,Handyman Steve,Contractors
Peterborough City Council,People & Communities,Home Services Delivery Model,Services,04/12/2019,30254801,981.75,Revenue,Handyman Steve,Contractors
Peterborough City Council,People & Communities,Independent Sector Placements,Other Establishments,04/12/2019,30254955,988.47,Revenue,Cross Keys Homes,Third Party Payments - Contract
Peterborough City Council,People & Communities,Independent Sector Placements,Services,04/12/2019,30252819,994.19,Revenue,Bee�s Care Ltd,Homecare
Peterborough City Council,People & Communities,Independent Sector Placements,Services,04/12/2019,30252556,1030.12,Revenue,Maxey House Res Home,Residential Care
Peterborough City Council,People & Communities,Independent Sector Placements,Services,04/12/2019,30245926,1037.00,Revenue,Caring Crew Ltd,Respite Care
Peterborough City Council,Resources,Insurance,Repair & Maintenance of Buildings,04/12/2019,30254447,1050.00,Revenue,Vivacity Culture and Leisure,Salaries
Peterborough City Council,Corporate,Corporate,Non Revenue,04/12/2019,30253686,1058.69,Capital,Vix Technology UK Ltd,Infrastructure
Peterborough City Council,Customer & Digital Services,ICT,Members Allowances,04/12/2019,30254887,1086.57,Revenue,Idox Software Ltd,Computer Software
Peterborough City Council,People & Communities,Independent Sector Placements,Services,04/12/2019,30252131,1094.56,Revenue,Kemps Place Ltd,Residential Care
Peterborough City Council,People & Communities,Commissioning,Services,04/12/2019,30252901,1110.00,Revenue,121 Social Care Limited,Hired Services
Peterborough City Council,People & Communities,Independent Sector Placements,Services,04/12/2019,30246347,1113.25,Revenue,Caring Crew Ltd,Respite Care
Peterborough City Council,People & Communities,Independent Sector Placements,Services,04/12/2019,30248133,1113.84,Revenue,Longhurst Group Limited,Homecare
Peterborough City Council,People & Communities,Independent Sector Placements,Services,04/12/2019,30253254,1116.32,Revenue,Alysia Caring Ltd T/a Cherry Blossom care Home,Residential Care
Peterborough City Council,People & Communities,Independent Sector Placements,Services,04/12/2019,30252729,1120.24,Revenue,Barchester Healthcare (Werrington Lodge),Residential Care
Peterborough City Council,People & Communities,Special Educational Needs / Inclusion,Agency Staff,04/12/2019,30254493,1122.00,Revenue,Sanctuary Personnel Ltd,External Temporary Staff
Peterborough City Council,People & Communities,Access to Resources & Specialist Commissioning,Schools,04/12/2019,30249846,1147.00,Revenue,Foster Care Associates Ltd FCA,Boarding - Out Fees
Peterborough City Council,People & Communities,Independent Sector Placements,Services,04/12/2019,30252513,1170.00,Revenue,Mencap,Homecare
Peterborough City Council,People & Communities,Independent Sector Placements,Services,04/12/2019,30252562,1186.12,Revenue,Maxey House Res Home,Residential Care
Peterborough City Council,People & Communities,Independent Sector Placements,Services,04/12/2019,30253252,1198.12,Revenue,Alysia Caring Ltd T/a Cherry Blossom care Home,Residential Care
Peterborough City Council,People & Communities,Independent Sector Placements,Services,04/12/2019,30252688,1211.96,Revenue,Barchester Healthcare (Werrington Lodge),Residential Care
Peterborough City Council,Place & Economy,Highway & Drainage Control,Agency Staff,04/12/2019,30254842,1235.80,Revenue,Reed Specialist Recruitment Limited,External Temporary Staff
Peterborough City Council,People & Communities,Independent Sector Placements,Services,04/12/2019,30252573,1284.48,Revenue,Maxey House Res Home,Residential Care
Peterborough City Council,Place & Economy,Planning Compliance,Services,04/12/2019,30254520,1295.00,Revenue,Redacted Personal Information,Legal Costs
Peterborough City Council,People & Communities,Independent Sector Placements,Services,04/12/2019,30252809,1303.98,Revenue,Bee�s Care Ltd,Homecare
Peterborough City Council,People & Communities,Independent Sector Placements,Services,04/12/2019,30252703,1311.09,Revenue,Barchester Healthcare (Werrington Lodge),Residential Care
Peterborough City Council,People & Communities,Independent Sector Placements,Services,04/12/2019,30252547,1317.08,Revenue,Alysia Caring Ltd T/a Cherry Blossom care Home,Residential Care
Peterborough City Council,People & Communities,Independent Sector Placements,Other Establishments,04/12/2019,30254955,1317.96,Revenue,Cross Keys Homes,Third Party Payments - Contract
Peterborough City Council,People & Communities,Independent Sector Placements,Services,04/12/2019,30252548,1334.76,Revenue,Alysia Caring Ltd T/a Cherry Blossom care Home,Residential Care
Peterborough City Council,People & Communities,Independent Sector Placements,Services,04/12/2019,30254546,1351.92,Revenue,Better Healthcare Services,Homecare
Peterborough City Council,People & Communities,Independent Sector Placements,Services,04/12/2019,30252561,1410.24,Revenue,Maxey House Res Home,Residential Care
Peterborough City Council,People & Communities,Access to Resources & Specialist Commissioning,Schools,04/12/2019,30250322,1443.85,Revenue,PCH Integration Services Ltd,Boarding - Out Fees
Peterborough City Council,People & Communities,Access to Resources & Specialist Commissioning,Schools,04/12/2019,30254878,1457.84,Revenue,Luton Community Housing Ltd,Boarding - Out Fees
Peterborough City Council,People & Communities,Independent Sector Placements,Services,04/12/2019,30254559,1458.25,Revenue,Better Healthcare Services,Homecare
Peterborough City Council,People & Communities,Independent Sector Placements,Services,04/12/2019,30252726,1471.16,Revenue,Barchester Healthcare (Werrington Lodge),Residential Care
Peterborough City Council,People & Communities,Independent Sector Placements,Services,04/12/2019,30252717,1496.00,Revenue,Barchester Healthcare (Werrington Lodge),Residential Care
Peterborough City Council,People & Communities,Independent Sector Placements,Services,04/12/2019,30252565,1502.60,Revenue,Maxey House Res Home,Residential Care
Peterborough City Council,People & Communities,Independent Sector Placements,Services,04/12/2019,30252555,1530.60,Revenue,Maxey House Res Home,Residential Care
Peterborough City Council,People & Communities,Independent Sector Placements,Services,04/12/2019,30252509,1560.00,Revenue,Mencap,Homecare
Peterborough City Council,People & Communities,Independent Sector Placements,Services,04/12/2019,30252560,1576.24,Revenue,Maxey House Res Home,Residential Care
Peterborough City Council,People & Communities,Independent Sector Placements,Services,04/12/2019,30253728,1590.40,Revenue,Voyage 1 Limited,Homecare
Peterborough City Council,People & Communities,Independent Sector Placements,Services,04/12/2019,30253742,1590.40,Revenue,Voyage 1 Limited,Homecare
Peterborough City Council,People & Communities,Independent Sector Placements,Services,04/12/2019,30252857,1602.48,Revenue,Bee�s Care Ltd,Homecare
Peterborough City Council,People & Communities,Independent Sector Placements,Services,04/12/2019,30252686,1637.68,Revenue,Barchester Healthcare (Werrington Lodge),Residential Care
Peterborough City Council,People & Communities,Independent Sector Placements,Services,04/12/2019,30252714,1652.88,Revenue,Barchester Healthcare (Werrington Lodge),Residential Care
Peterborough City Council,People & Communities,Independent Sector Placements,Services,04/12/2019,30254508,1654.76,Revenue,Alysia Caring Ltd T/a Cherry Blossom care Home,Residential Care
Peterborough City Council,Governance,Legal Services,Agency Staff,04/12/2019,30254903,1661.93,Revenue,Reed Specialist Recruitment Limited,External Temporary Staff
Peterborough City Council,People & Communities,Independent Sector Placements,Services,04/12/2019,30252572,1679.96,Revenue,Maxey House Res Home,Residential Care
Peterborough City Council,People & Communities,Independent Sector Placements,Services,04/12/2019,30252704,1685.00,Revenue,Barchester Healthcare (Werrington Lodge),Residential Care
Peterborough City Council,People & Communities,Independent Sector Placements,Services,04/12/2019,30252723,1685.72,Revenue,Barchester Healthcare (Werrington Lodge),Residential Care
Peterborough City Council,People & Communities,Independent Sector Placements,Services,04/12/2019,30254545,1693.69,Revenue,Better Healthcare Services,Homecare
Peterborough City Council,People & Communities,Independent Sector Placements,Services,04/12/2019,30252702,1705.80,Revenue,Barchester Healthcare (Werrington Lodge),Residential Care
Peterborough City Council,People & Communities,Mental Capacity Act & DoLs,Services,04/12/2019,30254687,1713.00,Revenue,Raj Medical Consultancy Limited,Miscellaneous
Peterborough City Council,People & Communities,Independent Sector Placements,Services,04/12/2019,30254480,1714.44,Revenue,Alysia Caring Ltd T/a Cherry Blossom care Home,Respite Care
Peterborough City Council,People & Communities,Independent Sector Placements,Services,04/12/2019,30253253,1714.80,Revenue,Alysia Caring Ltd T/a Cherry Blossom care Home,Residential Care
Peterborough City Council,People & Communities,Independent Sector Placements,Services,04/12/2019,30252732,1735.00,Revenue,Barchester Healthcare (Werrington Lodge),Residential Care
Peterborough City Council,People & Communities,Independent Sector Placements,Services,04/12/2019,30252538,1740.00,Revenue,Mencap,Homecare
Peterborough City Council,People & Communities,Access to Resources & Specialist Commissioning,Schools,04/12/2019,30254120,1750.00,Revenue,Horizon Care & Education Group,Boarding - Out Fees
Peterborough City Council,People & Communities,Independent Sector Placements,Services,04/12/2019,30253737,1760.80,Revenue,Voyage 1 Limited,Homecare
Peterborough City Council,People & Communities,Independent Sector Placements,Services,04/12/2019,30253738,1760.80,Revenue,Voyage 1 Limited,Homecare
Peterborough City Council,People & Communities,Independent Sector Placements,Services,04/12/2019,30252685,1769.56,Revenue,Barchester Healthcare (Werrington Lodge),Residential Care
Peterborough City Council,People & Communities,HTS & CSC Transport,Contract Hire and Operating Leases,04/12/2019,30254505,1769.60,Revenue,Goldstar Cabs Ltd,Hired Transport
Peterborough City Council,Governance,Legal Services,Agency Staff,04/12/2019,30254935,1772.75,Revenue,Reed Specialist Recruitment Limited,External Temporary Staff
Peterborough City Council,People & Communities,Independent Sector Placements,Services,04/12/2019,30252701,1775.44,Revenue,Barchester Healthcare (Werrington Lodge),Residential Care
Peterborough City Council,People & Communities,Independent Sector Placements,Services,04/12/2019,30252727,1788.12,Revenue,Barchester Healthcare (Werrington Lodge),Residential Care
Peterborough City Council,People & Communities,Independent Sector Placements,Services,04/12/2019,30252706,1799.80,Revenue,Barchester Healthcare (Werrington Lodge),Residential Care
Peterborough City Council,Corporate,Corporate,Non Revenue,04/12/2019,30253983,1800.00,Balance Sheet,SSB Law Client Account,Contributions
Peterborough City Council,People & Communities,Independent Sector Placements,Services,04/12/2019,30253250,1810.40,Revenue,Alysia Caring Ltd T/a Cherry Blossom care Home,Residential Care
Peterborough City Council,People & Communities,Independent Sector Placements,Services,04/12/2019,30252570,1821.88,Revenue,Maxey House Res Home,Residential Care
Peterborough City Council,People & Communities,Independent Sector Placements,Services,04/12/2019,30252574,1821.88,Revenue,Maxey House Res Home,Residential Care
Peterborough City Council,People & Communities,Independent Sector Placements,Services,04/12/2019,30253251,1830.60,Revenue,Alysia Caring Ltd T/a Cherry Blossom care Home,Residential Care
Peterborough City Council,People & Communities,Independent Sector Placements,Services,04/12/2019,30252692,1832.96,Revenue,Barchester Healthcare (Werrington Lodge),Residential Care
Peterborough City Council,Place & Economy,Network and Traffic Management,Services,04/12/2019,30254636,1844.92,Revenue,Dynniq UK Ltd,Contractors
Peterborough City Council,People & Communities,Independent Sector Placements,Services,04/12/2019,30253257,1847.20,Revenue,Alysia Caring Ltd T/a Cherry Blossom care Home,Residential Care
Peterborough City Council,People & Communities,Independent Sector Placements,Services,04/12/2019,30252710,1850.40,Revenue,Barchester Healthcare (Werrington Lodge),Residential Care
Peterborough City Council,People & Communities,Independent Sector Placements,Services,04/12/2019,30252716,1850.92,Revenue,Barchester Healthcare (Werrington Lodge),Residential Care
Peterborough City Council,People & Communities,Independent Sector Placements,Services,04/12/2019,30252541,1865.92,Revenue,Alysia Caring Ltd T/a Cherry Blossom care Home,Residential Care
Peterborough City Council,Governance,Legal Services,Agency Staff,04/12/2019,30253130,1887.00,Revenue,Venn Group Ltd,External Temporary Staff
Peterborough City Council,People & Communities,Independent Sector Placements,Services,04/12/2019,30252721,1903.20,Revenue,Barchester Healthcare (Werrington Lodge),Residential Care
Peterborough City Council,People & Communities,Independent Sector Placements,Services,04/12/2019,30252689,1906.84,Revenue,Barchester Healthcare (Werrington Lodge),Residential Care
Peterborough City Council,People & Communities,Independent Sector Placements,Services,04/12/2019,30254543,1913.96,Revenue,Better Healthcare Services,Homecare
Peterborough City Council,People & Communities,Independent Sector Placements,Services,04/12/2019,30254549,1913.96,Revenue,Better Healthcare Services,Homecare
Peterborough City Council,People & Communities,Independent Sector Placements,Services,04/12/2019,30253740,1931.20,Revenue,Voyage 1 Limited,Homecare
Peterborough City Council,People & Communities,Independent Sector Placements,Services,04/12/2019,30253741,1931.20,Revenue,Voyage 1 Limited,Homecare
Peterborough City Council,People & Communities,Independent Sector Placements,Services,04/12/2019,30253750,1931.20,Revenue,Voyage 1 Limited,Homecare
Peterborough City Council,People & Communities,Independent Sector Placements,Services,04/12/2019,30253757,1931.20,Revenue,Voyage 1 Limited,Homecare
Peterborough City Council,People & Communities,Commissioning,Services,04/12/2019,30247406,1933.80,Revenue,North West Anglia NHS Foundation Trust,Hired Services
Peterborough City Council,Place & Economy,Transport & Infrastructure Commissioning,Services,04/12/2019,30253376,1937.89,Revenue,Stagecoach in Peterborough,Contractors
Peterborough City Council,Place & Economy,Transport & Infrastructure Commissioning,Services,04/12/2019,30253377,1937.89,Revenue,Stagecoach in Peterborough,Contractors
Peterborough City Council,Place & Economy,Transport & Infrastructure Commissioning,Services,04/12/2019,30253400,1937.89,Revenue,Stagecoach in Peterborough,Contractors
Peterborough City Council,Place & Economy,Transport & Infrastructure Commissioning,Services,04/12/2019,30253401,1937.89,Revenue,Stagecoach in Peterborough,Contractors
Peterborough City Council,People & Communities,Independent Sector Placements,Services,04/12/2019,30252569,1950.00,Revenue,Maxey House Res Home,Temporary Accommodation Costs
Peterborough City Council,Governance,Legal Services,Services,04/12/2019,30254883,1950.00,Revenue,"Elliott, Ms Margot",Legal Costs
Peterborough City Council,People & Communities,Independent Sector Placements,Services,04/12/2019,30254421,1954.32,Revenue,Redacted Personal Information ,Residential Care
Peterborough City Council,People & Communities,Independent Sector Placements,Services,04/12/2019,30254427,1954.32,Revenue,Redacted Personal Information ,Residential Care
Peterborough City Council,People & Communities,Access to Resources & Specialist Commissioning,Schools,04/12/2019,30249835,1980.00,Revenue,Florinee Homes Ltd,Boarding - Out Fees
Peterborough City Council,People & Communities,Independent Sector Placements,Services,04/12/2019,30252805,1981.88,Revenue,Bee�s Care Ltd,Homecare
Peterborough City Council,People & Communities,Independent Sector Placements,Services,04/12/2019,30252720,1987.32,Revenue,Barchester Healthcare (Werrington Lodge),Residential Care
Peterborough City Council,People & Communities,Independent Sector Placements,Services,04/12/2019,30252557,2000.00,Revenue,Maxey House Res Home,Residential Care
Peterborough City Council,Governance,Legal Services,Agency Staff,04/12/2019,30254901,2025.38,Revenue,Reed Specialist Recruitment Limited,External Temporary Staff
Peterborough City Council,Governance,Legal Services,Agency Staff,04/12/2019,30254939,2025.38,Revenue,Reed Specialist Recruitment Limited,External Temporary Staff
Peterborough City Council,Place & Economy,Development Management,Customer and client receipts - Fees & Charges,04/12/2019,30252647,2028.00,Revenue,Planning Portal,Fees And Charges 
Peterborough City Council,Governance,Legal Services,Agency Staff,04/12/2019,30252831,2035.00,Revenue,Venn Group Ltd,External Temporary Staff
Peterborough City Council,Governance,Legal Services,Agency Staff,04/12/2019,30253129,2062.50,Revenue,Venn Group Ltd,External Temporary Staff
Peterborough City Council,People & Communities,Independent Sector Placements,Services,04/12/2019,30252712,2070.40,Revenue,Barchester Healthcare (Werrington Lodge),Residential Care
Peterborough City Council,People & Communities,Independent Sector Placements,Services,04/12/2019,30252540,2087.40,Revenue,Alysia Caring Ltd T/a Cherry Blossom care Home,Residential Care
Peterborough City Council,People & Communities,Independent Sector Placements,Services,04/12/2019,30253255,2128.00,Revenue,Alysia Caring Ltd T/a Cherry Blossom care Home,Residential Care
Peterborough City Council,People & Communities,Access to Resources & Specialist Commissioning,Schools,04/12/2019,30254697,2160.00,Revenue,Her Majesty�s Prison and Probation Service,Boarding - Out Fees
Peterborough City Council,People & Communities,Independent Sector Placements,Services,04/12/2019,30254426,2162.24,Revenue,Redacted Personal Information ,Residential Care
Peterborough City Council,People & Communities,Independent Sector Placements,Services,04/12/2019,30254433,2162.24,Revenue,Redacted Personal Information ,Residential Care
Peterborough City Council,People & Communities,Independent Sector Placements,Services,04/12/2019,30254432,2162.28,Revenue,Redacted Personal Information ,Residential Care
Peterborough City Council,People & Communities,Independent Sector Placements,Services,04/12/2019,30253249,2175.40,Revenue,Alysia Caring Ltd T/a Cherry Blossom care Home,Residential Care
Peterborough City Council,People & Communities,Access to Resources & Specialist Commissioning,Services,04/12/2019,30253224,2185.49,Revenue,Children & Families Looked After Children (Imprest),Financial Assistance
Peterborough City Council,People & Communities,Children�s Social Care,Agency Staff,04/12/2019,30254515,2210.17,Revenue,Service Care Solutions Ltd,External Temporary Staff
Peterborough City Council,People & Communities,Children�s Social Care,Agency Staff,04/12/2019,30254171,2217.25,Revenue,Service Care Solutions Ltd,External Temporary Staff
Peterborough City Council,People & Communities,Commissioning Team,Agency Staff,04/12/2019,30254898,2243.60,Revenue,Reed Specialist Recruitment Limited,External Temporary Staff
Peterborough City Council,People & Communities,Commissioning Team,Agency Staff,04/12/2019,30254946,2243.60,Revenue,Reed Specialist Recruitment Limited,External Temporary Staff
Peterborough City Council,People & Communities,Cohesion,Other Establishments,04/12/2019,30254727,2260.00,Revenue,British Youth Council,Third Party Payments - Contract
Peterborough City Council,People & Communities,Mental Capacity Act & DoLs,Agency Staff,04/12/2019,30254836,2280.00,Revenue,Sanctuary Personnel Ltd,External Temporary Staff
Peterborough City Council,People & Communities,Independent Sector Placements,Services,04/12/2019,30254592,2300.00,Revenue,Goldcare Homes t/a The Tudors Care Home,Respite Care
Peterborough City Council,People & Communities,Independent Sector Placements,Services,04/12/2019,30252528,2320.00,Revenue,Mencap,Homecare
Peterborough City Council,People & Communities,Independent Sector Placements,Services,04/12/2019,30252539,2326.44,Revenue,Alysia Caring Ltd T/a Cherry Blossom care Home,Residential Care
Peterborough City Council,People & Communities,Independent Sector Placements,Services,04/12/2019,30254424,2337.52,Revenue,Redacted Personal Information ,Residential Care
Peterborough City Council,People & Communities,Independent Sector Placements,Services,04/12/2019,30252515,2340.00,Revenue,Mencap,Homecare
Peterborough City Council,People & Communities,Independent Sector Placements,Services,04/12/2019,30254423,2345.20,Revenue,Redacted Personal Information ,Residential Care
Peterborough City Council,People & Communities,Independent Sector Placements,Services,04/12/2019,30252551,2366.36,Revenue,Alysia Caring Ltd T/a Cherry Blossom care Home,Residential Care
Peterborough City Council,People & Communities,Independent Sector Placements,Services,04/12/2019,30252543,2384.24,Revenue,Alysia Caring Ltd T/a Cherry Blossom care Home,Residential Care
Peterborough City Council,People & Communities,Independent Sector Placements,Services,04/12/2019,30252807,2418.47,Revenue,Bee�s Care Ltd,Homecare
Peterborough City Council,People & Communities,Independent Sector Placements,Services,04/12/2019,30252537,2434.88,Revenue,Mencap,Homecare
Peterborough City Council,People & Communities,Independent Sector Placements,Services,04/12/2019,30254678,2437.00,Revenue,Benell Care Services Ltd,Residential Care
Peterborough City Council,People & Communities,Independent Sector Placements,Services,04/12/2019,30253734,2442.40,Revenue,Voyage 1 Limited,Homecare
Peterborough City Council,People & Communities,Independent Sector Placements,Services,04/12/2019,30253751,2442.40,Revenue,Voyage 1 Limited,Homecare
Peterborough City Council,Place & Economy,Development Management,Agency Staff,04/12/2019,30254073,2459.20,Revenue,Reed Specialist Recruitment Limited,External Temporary Staff
Peterborough City Council,People & Communities,Independent Sector Placements,Services,04/12/2019,30252705,2487.36,Revenue,Barchester Healthcare (Werrington Lodge),Residential Care
Peterborough City Council,People & Communities,Independent Sector Placements,Services,04/12/2019,30252707,2487.36,Revenue,Barchester Healthcare (Werrington Lodge),Residential Care
Peterborough City Council,People & Communities,Independent Sector Placements,Services,04/12/2019,30252708,2487.36,Revenue,Barchester Healthcare (Werrington Lodge),Residential Care
Peterborough City Council,People & Communities,Access to Resources & Specialist Commissioning,Schools,04/12/2019,30246891,2512.86,Revenue,Sixteen Plus Limited,Boarding - Out Fees
Peterborough City Council,People & Communities,Independent Sector Placements,Services,04/12/2019,30253246,2568.36,Revenue,Alysia Caring Ltd T/a Cherry Blossom care Home,Residential Care
Peterborough City Council,Corporate,Corporate,Non Revenue,04/12/2019,30254723,2717.18,Capital,MORLEY BUILDING SERVICES LTD,Grant Payment
Peterborough City Council,People & Communities,Independent Sector Placements,Services,04/12/2019,30252129,2731.84,Revenue,Kemps Place Ltd,Residential Care
Peterborough City Council,People & Communities,Independent Sector Placements,Services,04/12/2019,30252130,2735.48,Revenue,Kemps Place Ltd,Residential Care
Peterborough City Council,People & Communities,Cohesion,Other Establishments,04/12/2019,30253540,2740.83,Revenue,Solutions 4 Health Ltd,Grant-Third Party
Peterborough City Council,People & Communities,Independent Sector Placements,Services,04/12/2019,30254523,2780.00,Revenue,PHILIA LODGE REST HOME,Residential Care
Peterborough City Council,People & Communities,Independent Sector Placements,Services,04/12/2019,30254524,2780.00,Revenue,PHILIA LODGE REST HOME,Residential Care
Peterborough City Council,People & Communities,Access to Resources & Specialist Commissioning,Schools,04/12/2019,30247752,2792.89,Revenue,Maze Independent Care Ltd,Boarding - Out Fees
Peterborough City Council,People & Communities,Independent Sector Placements,Services,04/12/2019,30254420,2794.32,Revenue,Redacted Personal Information ,Residential Care
Peterborough City Council,People & Communities,Access to Resources & Specialist Commissioning,Schools,04/12/2019,30252674,2796.51,Revenue,IAS TACT,Boarding - Out Fees
Peterborough City Council,People & Communities,Independent Sector Placements,Services,04/12/2019,30253256,2909.84,Revenue,Alysia Caring Ltd T/a Cherry Blossom care Home,Residential Care
Peterborough City Council,People & Communities,Access to Resources & Specialist Commissioning,Schools,04/12/2019,30252675,2998.32,Revenue,IAS TACT,Boarding - Out Fees
Peterborough City Council,People & Communities,Independent Sector Placements,Services,04/12/2019,30254435,3065.60,Revenue,Redacted Personal Information ,Residential Care
Peterborough City Council,People & Communities,Independent Sector Placements,Services,04/12/2019,30253766,3095.60,Revenue,Voyage 1 Limited,Homecare
Peterborough City Council,People & Communities,Independent Sector Placements,Services,04/12/2019,30253767,3095.60,Revenue,Voyage 1 Limited,Homecare
Peterborough City Council,People & Communities,Independent Sector Placements,Services,04/12/2019,30254436,3103.92,Revenue,Redacted Personal Information ,Residential Care
Peterborough City Council,Governance,Legal Services,Services,04/12/2019,30254860,3148.00,Revenue,Redacted Personal Information,Legal Costs
Peterborough City Council,Governance,Legal Services,Services,04/12/2019,30254532,3150.00,Revenue,"Elliott, Ms Margot",Legal Costs
Peterborough City Council,People & Communities,Access to Resources & Specialist Commissioning,Schools,04/12/2019,30252664,3159.52,Revenue,IAS TACT,Boarding - Out Fees
Peterborough City Council,People & Communities,Independent Sector Placements,Services,04/12/2019,30252718,3180.00,Revenue,Barchester Healthcare (Werrington Lodge),Residential Care
Peterborough City Council,People & Communities,Independent Sector Placements,Services,04/12/2019,30254431,3200.00,Revenue,Redacted Personal Information ,Residential Care
Peterborough City Council,People & Communities,Access to Resources & Specialist Commissioning,Schools,04/12/2019,30254154,3210.71,Revenue,Pride Fostering,Boarding - Out Fees
Peterborough City Council,People & Communities,Access to Resources & Specialist Commissioning,Schools,04/12/2019,30254156,3210.71,Revenue,Pride Fostering,Boarding - Out Fees
Peterborough City Council,Place & Economy,Transport & Infrastructure Commissioning,Services,04/12/2019,30254668,3333.33,Revenue,North East Combined Authority,Subscriptions
Peterborough City Council,People & Communities,Access to Resources & Specialist Commissioning,Schools,04/12/2019,30249929,3363.00,Revenue,Affinity Fostering Services Ltd,Boarding - Out Fees
Peterborough City Council,People & Communities,Access to Resources & Specialist Commissioning,Schools,04/12/2019,30247754,3400.04,Revenue,Maze Independent Care Ltd,Boarding - Out Fees
Peterborough City Council,People & Communities,Access to Resources & Specialist Commissioning,Schools,04/12/2019,30254118,3479.00,Revenue,Horizon Care & Education Group,Boarding - Out Fees
Peterborough City Council,People & Communities,Access to Resources & Specialist Commissioning,Schools,04/12/2019,30248049,3480.00,Revenue,Nexus Fostering Ltd,Boarding - Out Fees
Peterborough City Council,People & Communities,Access to Resources & Specialist Commissioning,Schools,04/12/2019,30248050,3480.00,Revenue,Nexus Fostering Ltd,Boarding - Out Fees
Peterborough City Council,People & Communities,Access to Resources & Specialist Commissioning,Schools,04/12/2019,30248051,3480.00,Revenue,Nexus Fostering Ltd,Boarding - Out Fees
Peterborough City Council,People & Communities,Access to Resources & Specialist Commissioning,Schools,04/12/2019,30249932,3540.00,Revenue,Affinity Fostering Services Ltd,Boarding - Out Fees
Peterborough City Council,People & Communities,Access to Resources & Specialist Commissioning,Schools,04/12/2019,30252676,3565.00,Revenue,IAS TACT,Boarding - Out Fees
Peterborough City Council,People & Communities,Access to Resources & Specialist Commissioning,Schools,04/12/2019,30254256,3607.47,Revenue,Banya Family Placement Agency,Boarding - Out Fees
Peterborough City Council,People & Communities,Finance,Services,04/12/2019,30253539,3625.00,Revenue,Solutions 4 Health Ltd,Counselling
Peterborough City Council,People & Communities,Independent Sector Placements,Services,04/12/2019,30254438,3625.08,Revenue,Redacted Personal Information ,Residential Care
Peterborough City Council,People & Communities,Access to Resources & Specialist Commissioning,Schools,04/12/2019,30253867,3658.00,Revenue,Affinity Fostering Services Ltd,Boarding - Out Fees
Peterborough City Council,People & Communities,Independent Sector Placements,Services,04/12/2019,30253729,3743.92,Revenue,Voyage 1 Limited,Homecare
Peterborough City Council,People & Communities,Independent Sector Placements,Services,04/12/2019,30253736,3743.92,Revenue,Voyage 1 Limited,Homecare
Peterborough City Council,People & Communities,Independent Sector Placements,Services,04/12/2019,30254437,3812.84,Revenue,Redacted Personal Information ,Residential Care
Peterborough City Council,People & Communities,Access to Resources & Specialist Commissioning,Schools,04/12/2019,30254681,3814.20,Revenue,Byrne House Ltd,Boarding - Out Fees
Peterborough City Council,People & Communities,Independent Sector Placements,Services,04/12/2019,30254682,3864.68,Revenue,Consensus Support Services Ltd,Residential Care
Peterborough City Council,People & Communities,Cohesion,Other Establishments,04/12/2019,30254459,3970.50,Revenue,PETERBOROUGH FOOTBALL & SPORTS DEVELOPMENT FOUNDATION,Grant-Third Party
Peterborough City Council,People & Communities,Independent Sector Placements,Services,04/12/2019,30253764,4160.60,Revenue,Voyage 1 Limited,Homecare
Peterborough City Council,People & Communities,Independent Sector Placements,Services,04/12/2019,30253770,4160.60,Revenue,Voyage 1 Limited,Homecare
Peterborough City Council,People & Communities,Independent Sector Placements,Services,04/12/2019,30253748,4198.72,Revenue,Voyage 1 Limited,Homecare
Peterborough City Council,People & Communities,Independent Sector Placements,Services,04/12/2019,30253753,4198.72,Revenue,Voyage 1 Limited,Homecare
Peterborough City Council,People & Communities,Independent Sector Placements,Services,04/12/2019,30254430,4288.00,Revenue,Redacted Personal Information ,Residential Care
Peterborough City Council,People & Communities,Independent Sector Placements,Services,04/12/2019,30253765,4291.04,Revenue,Voyage 1 Limited,Homecare
Peterborough City Council,People & Communities,Independent Sector Placements,Services,04/12/2019,30253769,4291.04,Revenue,Voyage 1 Limited,Homecare
Peterborough City Council,People & Communities,Access to Resources & Specialist Commissioning,Schools,04/12/2019,30254350,4380.90,Revenue,Futures For Children,Boarding - Out Fees
Peterborough City Council,People & Communities,Independent Sector Placements,Services,04/12/2019,30253730,4382.88,Revenue,Voyage 1 Limited,Homecare
Peterborough City Council,People & Communities,Independent Sector Placements,Services,04/12/2019,30253732,4382.88,Revenue,Voyage 1 Limited,Homecare
Peterborough City Council,People & Communities,Independent Sector Placements,Services,04/12/2019,30254425,4391.48,Revenue,Redacted Personal Information ,Residential Care
Peterborough City Council,People & Communities,Independent Sector Placements,Services,04/12/2019,30253811,4443.24,Revenue,Craegmoor Belmont Road Priory,Residential Care
Peterborough City Council,Corporate,Corporate,Non Revenue,04/12/2019,30253161,4499.95,Capital,MORLEY BUILDING SERVICES LTD,Grant Payment
Peterborough City Council,People & Communities,Access to Resources & Specialist Commissioning,Schools,04/12/2019,30245934,4526.93,Revenue,Futures For Children,Boarding - Out Fees
Peterborough City Council,People & Communities,Independent Sector Placements,Services,04/12/2019,30253716,4559.00,Revenue,Voyage 1 Limited,Homecare
Peterborough City Council,People & Communities,Independent Sector Placements,Services,04/12/2019,30253720,4559.00,Revenue,Voyage 1 Limited,Homecare
Peterborough City Council,People & Communities,Independent Sector Placements,Services,04/12/2019,30253724,4559.00,Revenue,Voyage 1 Limited,Homecare
Peterborough City Council,People & Communities,Independent Sector Placements,Services,04/12/2019,30253727,4559.00,Revenue,Voyage 1 Limited,Homecare
Peterborough City Council,Resources,Peterborough Serco Strategic Partnership,Members Allowances,04/12/2019,30254716,4702.22,Revenue,Capita Business Services Ltd,Computer Software
Peterborough City Council,People & Communities,Independent Sector Placements,Services,04/12/2019,30254429,4904.00,Revenue,Redacted Personal Information ,Residential Care
Peterborough City Council,Place & Economy,Planning Compliance,Services,04/12/2019,30254907,5000.00,Revenue,Milton Keynes Council,Subscriptions
Peterborough City Council,Public Health,DPH Office,Other Establishments,04/12/2019,30253532,5150.00,Revenue,Cambridgeshire County Council,Contributions
Peterborough City Council,Place & Economy,Housing & Strategic Planning,Services,04/12/2019,30253532,5150.00,Revenue,Cambridgeshire County Council,Research
Peterborough City Council,People & Communities,Early Years & Quality Improvement,Other Establishments,04/12/2019,30253532,5150.00,Revenue,Cambridgeshire County Council,Third Party Payments - Contract
Peterborough City Council,People & Communities,Independent Sector Placements,Services,04/12/2019,30254428,5234.63,Revenue,Redacted Personal Information ,Residential Care
Peterborough City Council,People & Communities,Independent Sector Placements,Services,04/12/2019,30253768,5285.00,Revenue,Voyage 1 Limited,Homecare
Peterborough City Council,People & Communities,Independent Sector Placements,Services,04/12/2019,30253773,5285.00,Revenue,Voyage 1 Limited,Homecare
Peterborough City Council,Place & Economy,Network and Traffic Management,Services,04/12/2019,30254637,5511.71,Revenue,Dynniq UK Ltd,Contractors
Peterborough City Council,People & Communities,Access to Resources & Specialist Commissioning,Schools,04/12/2019,30251004,5560.00,Revenue,The Cambridge Housing Society Limited,Boarding - Out Fees
Peterborough City Council,People & Communities,Access to Resources & Specialist Commissioning,Schools,04/12/2019,30254347,5562.90,Revenue,I S P,Boarding - Out Fees
Peterborough City Council,People & Communities,Access to Resources & Specialist Commissioning,Schools,04/12/2019,30254348,5562.90,Revenue,I S P,Boarding - Out Fees
Peterborough City Council,People & Communities,Access to Resources & Specialist Commissioning,Schools,04/12/2019,30254349,5562.90,Revenue,I S P,Boarding - Out Fees
Peterborough City Council,People & Communities,Independent Sector Placements,Services,04/12/2019,30253715,5615.32,Revenue,Voyage 1 Limited,Homecare
Peterborough City Council,People & Communities,Independent Sector Placements,Services,04/12/2019,30253719,5615.32,Revenue,Voyage 1 Limited,Homecare
Peterborough City Council,People & Communities,Access to Resources & Specialist Commissioning,Schools,04/12/2019,30254303,5616.00,Revenue,Semi-Independent House,Boarding - Out Fees
Peterborough City Council,People & Communities,Access to Resources & Specialist Commissioning,Schools,04/12/2019,30252673,5652.23,Revenue,IAS TACT,Boarding - Out Fees
Peterborough City Council,People & Communities,Independent Sector Placements,Services,04/12/2019,30254684,5686.80,Revenue,Lifeways Community Care,Residential Care
Peterborough City Council,People & Communities,Access to Resources & Specialist Commissioning,Schools,04/12/2019,30254183,5687.88,Revenue,Five Rivers,Boarding - Out Fees
Peterborough City Council,People & Communities,Access to Resources & Specialist Commissioning,Schools,04/12/2019,30254196,5740.27,Revenue,Kasper Fostering,Boarding - Out Fees
Peterborough City Council,People & Communities,Independent Sector Placements,Services,04/12/2019,30253744,5749.80,Revenue,Voyage 1 Limited,Homecare
Peterborough City Council,Corporate,Corporate,Non Revenue,04/12/2019,30254704,5896.30,Balance Sheet,Teachers Pensions,Pensions
Peterborough City Council,People & Communities,Access to Resources & Specialist Commissioning,Schools,04/12/2019,30254286,6278.40,Revenue,Nexus Fostering Ltd,Boarding - Out Fees
Peterborough City Council,People & Communities,Access to Resources & Specialist Commissioning,Schools,04/12/2019,30254176,6281.53,Revenue,ALL4U Fostering Ltd,Boarding - Out Fees
Peterborough City Council,People & Communities,Independent Sector Placements,Services,04/12/2019,30252170,6320.44,Revenue,NORTH EAST AUTISM SOCIETY,Residential Care
Peterborough City Council,People & Communities,Special Educational Needs / Inclusion,Agency Staff,04/12/2019,30254640,6600.00,Revenue,PSI(UK)Ltd,External Temporary Staff
Peterborough City Council,People & Communities,Independent Sector Placements,Services,04/12/2019,30253754,7666.40,Revenue,Voyage 1 Limited,Homecare
Peterborough City Council,Corporate,Corporate,Non Revenue,04/12/2019,30254656,7943.00,Balance Sheet,SSB Law Office Account,Contributions
Peterborough City Council,People & Communities,Finance,Services,04/12/2019,30254406,8000.00,Revenue,Triodos Bank NV,Miscellaneous
Peterborough City Council,People & Communities,Independent Sector Placements,Services,04/12/2019,30252530,8020.28,Revenue,Mencap,Homecare
Peterborough City Council,People & Communities,Independent Sector Placements,Services,04/12/2019,30252517,8050.80,Revenue,Mencap,Homecare
Peterborough City Council,People & Communities,Independent Sector Placements,Services,04/12/2019,30252519,8469.72,Revenue,Mencap,Homecare
Peterborough City Council,Corporate,Corporate,Non Revenue,04/12/2019,30254704,8635.10,Balance Sheet,Teachers Pensions,Pensions
Peterborough City Council,People & Communities,Independent Sector Placements,Services,04/12/2019,30252520,8889.72,Revenue,Mencap,Homecare
Peterborough City Council,Corporate,Corporate,Non Revenue,04/12/2019,30254704,8979.52,Balance Sheet,Teachers Pensions,Pensions
Peterborough City Council,Corporate,Corporate,Non Revenue,04/12/2019,30254704,9184.04,Balance Sheet,Teachers Pensions,Pensions
Peterborough City Council,People & Communities,Cohesion,Other Establishments,04/12/2019,30254458,9401.00,Revenue,The Princes Trust,Grant-Third Party
Peterborough City Council,People & Communities,Independent Sector Placements,Services,04/12/2019,30253785,9499.80,Revenue,Voyage 1 Limited,Homecare
Peterborough City Council,Corporate,Corporate,Non Revenue,04/12/2019,30254704,9849.24,Balance Sheet,Teachers Pensions,Pensions
Peterborough City Council,People & Communities,Cohesion,Other Establishments,04/12/2019,30254391,9946.00,Revenue,Gladstone District Community Association,Grant-Third Party
Peterborough City Council,Corporate,Corporate,Non Revenue,04/12/2019,30254704,10040.40,Balance Sheet,Teachers Pensions,Pensions
Peterborough City Council,Corporate,Corporate,Non Revenue,04/12/2019,30254704,10416.54,Balance Sheet,Teachers Pensions,Pensions
Peterborough City Council,Corporate,Corporate,Non Revenue,04/12/2019,30254704,10446.08,Balance Sheet,Teachers Pensions,Pensions
Peterborough City Council,Corporate,Corporate,Non Revenue,04/12/2019,30254704,10747.10,Balance Sheet,Teachers Pensions,Pensions
Peterborough City Council,Corporate,Corporate,Non Revenue,04/12/2019,30254704,11446.01,Balance Sheet,Teachers Pensions,Pensions
Peterborough City Council,Corporate,Corporate,Non Revenue,04/12/2019,30253975,11765.00,Balance Sheet,Trade Union Legal LLP,Contributions
Peterborough City Council,Resources,Strategic Projects,Agency Staff,04/12/2019,30254816,12187.50,Revenue,Penna Plc,External Temporary Staff
Peterborough City Council,Corporate,Corporate,Non Revenue,04/12/2019,30254704,12249.06,Balance Sheet,Teachers Pensions,Pensions
Peterborough City Council,People & Communities,Access to Resources & Specialist Commissioning,Schools,04/12/2019,30254304,13392.00,Revenue,Semi-Independent House,Boarding - Out Fees
Peterborough City Council,People & Communities,Access to Resources & Specialist Commissioning,Schools,04/12/2019,30254305,13392.00,Revenue,Semi-Independent House,Boarding - Out Fees
Peterborough City Council,People & Communities,Independent Sector Placements,Services,04/12/2019,30254680,14588.00,Revenue,Decoy Farm,Residential Care
Peterborough City Council,People & Communities,Access to Resources & Specialist Commissioning,Schools,04/12/2019,30254362,14797.20,Revenue,Windows for Children,Boarding - Out Fees
Peterborough City Council,People & Communities,Access to Resources & Specialist Commissioning,Schools,04/12/2019,30254369,14910.00,Revenue,Horizon Care & Education Group,Boarding - Out Fees
Peterborough City Council,People & Communities,Access to Resources & Specialist Commissioning,Schools,04/12/2019,30249957,15290.44,Revenue,Windows for Children,Boarding - Out Fees
Peterborough City Council,Corporate,Corporate,Non Revenue,04/12/2019,30254638,15473.27,Capital,Dynniq UK Ltd,Infrastructure
Peterborough City Council,Corporate,Corporate,Non Revenue,04/12/2019,30253984,16200.00,Balance Sheet,Accountant General of the Senior Court,Contributions
Peterborough City Council,Place & Economy,Transport & Infrastructure Commissioning,Services,04/12/2019,30254529,16610.22,Revenue,Delaine Buses Ltd,Contractors
Peterborough City Council,Place & Economy,Development Management,Customer and client receipts - Fees & Charges,04/12/2019,30252648,18194.00,Revenue,Planning Portal,Fees And Charges 
Peterborough City Council,Corporate,Corporate,Non Revenue,04/12/2019,30254704,18498.82,Balance Sheet,Teachers Pensions,Pensions
Peterborough City Council,Place & Economy,Waste Management,Services,04/12/2019,30253735,18659.69,Revenue,Material Change Composting Ltd,Recycling
Peterborough City Council,Corporate,Corporate,Non Revenue,04/12/2019,30254704,19038.01,Balance Sheet,Teachers Pensions,Pensions
Peterborough City Council,Corporate,Corporate,Non Revenue,04/12/2019,30254704,21360.01,Balance Sheet,Teachers Pensions,Pensions
Peterborough City Council,Corporate,Corporate,Non Revenue,04/12/2019,30254704,21746.12,Balance Sheet,Teachers Pensions,Pensions
Peterborough City Council,Corporate,Corporate,Non Revenue,04/12/2019,30254704,24291.39,Balance Sheet,Teachers Pensions,Pensions
Peterborough City Council,Corporate,Corporate,Non Revenue,04/12/2019,30254704,28257.14,Balance Sheet,Teachers Pensions,Pensions
Peterborough City Council,Corporate,Corporate,Non Revenue,04/12/2019,30254704,29168.11,Balance Sheet,Teachers Pensions,Pensions
Peterborough City Council,Corporate,Corporate,Non Revenue,04/12/2019,30254704,29998.62,Balance Sheet,Teachers Pensions,Pensions
Peterborough City Council,Corporate,Corporate,Non Revenue,04/12/2019,30254704,33140.32,Balance Sheet,Teachers Pensions,Pensions
Peterborough City Council,Corporate,Corporate,Non Revenue,04/12/2019,30254704,35389.21,Balance Sheet,Teachers Pensions,Pensions
Peterborough City Council,Corporate,Corporate,Non Revenue,04/12/2019,30254704,38520.58,Balance Sheet,Teachers Pensions,Pensions
Peterborough City Council,Corporate,Corporate,Non Revenue,04/12/2019,30254704,47482.73,Balance Sheet,Teachers Pensions,Pensions
Peterborough City Council,Corporate,Corporate,Non Revenue,04/12/2019,30254704,79987.10,Balance Sheet,Teachers Pensions,Pensions
Peterborough City Council,Corporate,Corporate,Non Revenue,04/12/2019,30254704,173517.50,Balance Sheet,Teachers Pensions,Pensions
Peterborough City Council,Place & Economy,Waste Management,Services,04/12/2019,30253703,378416.89,Revenue,Viridor Peterborough Ltd,Waste Disposal
Peterborough City Council,Corporate,Corporate,Non Revenue,06/12/2019,30254671,-7901.00,Capital,Garfield Builders Ltd,Grant Payment
Peterborough City Council,Corporate,Corporate,Non Revenue,06/12/2019,30254671,-7901.00,Capital,Garfield Builders Ltd,Grant Payment
Peterborough City Council,People & Communities,OP/PD/SI,"Tools, Equipment, Furniture & Materials",06/12/2019,30254047,-6608.30,Revenue,NRS Healthcare,Occupational Therapy Equipment
Peterborough City Council,Corporate,Corporate,Non Revenue,06/12/2019,30254796,-4785.00,Capital,M J Greaves,Grant Payment
Peterborough City Council,People & Communities,Independent Sector Placements,Services,06/12/2019,30254042,-2845.44,Revenue,Deafblind Uk Trading Ltd,Homecare
Peterborough City Council,Corporate,Corporate,Non Revenue,06/12/2019,30254797,-2102.20,Capital,M J Greaves,Grant Payment
Peterborough City Council,People & Communities,Home Services Delivery Model,Customer and client receipts - Fees & Charges,06/12/2019,30254659,-1796.55,Revenue,Casbon Building Services,Grant Payment
Peterborough City Council,People & Communities,Home Services Delivery Model,Customer and client receipts - Fees & Charges,06/12/2019,30254797,-1285.20,Revenue,M J Greaves,Grant Payment
Peterborough City Council,Corporate,Corporate,Non Revenue,06/12/2019,30254671,-1252.65,Capital,Garfield Builders Ltd,Grant Payment
Peterborough City Council,People & Communities,Independent Sector Placements,Services,06/12/2019,30254043,-1185.60,Revenue,Deafblind Uk Trading Ltd,Homecare
Peterborough City Council,Corporate,Corporate,Non Revenue,06/12/2019,30254671,-1117.65,Capital,Garfield Builders Ltd,Grant Payment
Peterborough City Council,People & Communities,Home Services Delivery Model,Customer and client receipts - Fees & Charges,06/12/2019,30254671,-900.24,Revenue,Garfield Builders Ltd,Grant Payment
Peterborough City Council,People & Communities,Home Services Delivery Model,Customer and client receipts - Fees & Charges,06/12/2019,30254690,-856.35,Revenue,Gaswise Services Ltd,Grant Payment
Peterborough City Council,People & Communities,Clare Lodge,Services,06/12/2019,30254651,-760.93,Revenue,Clare Lodge Secure Unit (Imprest),Miscellaneous
Peterborough City Council,Corporate,Corporate,Non Revenue,06/12/2019,30254796,-717.75,Capital,M J Greaves,Grant Payment
Peterborough City Council,People & Communities,Regulatory Services,Services,06/12/2019,30252241,-700.00,Revenue,University Of Derby,Courses And Seminars
Peterborough City Council,People & Communities,Home Services Delivery Model,Customer and client receipts - Fees & Charges,06/12/2019,30254657,-678.75,Revenue,MORLEY BUILDING SERVICES LTD,Grant Payment
Peterborough City Council,People & Communities,Home Services Delivery Model,Customer and client receipts - Fees & Charges,06/12/2019,30254721,-613.50,Revenue,MORLEY BUILDING SERVICES LTD,Grant Payment
Peterborough City Council,People & Communities,Home Services Delivery Model,Customer and client receipts - Fees & Charges,06/12/2019,30254689,-606.75,Revenue,Casbon Building Services,Grant Payment
Peterborough City Council,People & Communities,Home Services Delivery Model,Customer and client receipts - Fees & Charges,06/12/2019,30254672,-598.65,Revenue,Gaswise Services Ltd,Grant Payment
Peterborough City Council,People & Communities,Home Services Delivery Model,Customer and client receipts - Fees & Charges,06/12/2019,30254696,-534.00,Revenue,MORLEY BUILDING SERVICES LTD,Grant Payment
Peterborough City Council,Corporate,Corporate,Non Revenue,06/12/2019,30254953,500.00,Capital,Leighton Primary Pre-School,Grant Payment
Peterborough City Council,People & Communities,HTS & CSC Transport,Contract Hire and Operating Leases,06/12/2019,8000156394,500.00,Revenue,Redacted Personal Information,Hired Transport
Peterborough City Council,Resources,Office Accomodation,Services,06/12/2019,30255100,501.12,Revenue,PHS Group Plc,Contractors
Peterborough City Council,People & Communities,Independent Sector Placements,Services,06/12/2019,30246362,504.08,Revenue,Hales Group Ltd,Homecare
Peterborough City Council,Place & Economy,"Markets, Tourism & Events",Services,06/12/2019,30254856,530.00,Revenue,APMS Ambulance Service Limited,Conferences
Peterborough City Council,People & Communities,Early Help ASC/CSC,Agency Staff,06/12/2019,30254900,565.83,Revenue,Reed Specialist Recruitment Limited,External Temporary Staff
Peterborough City Council,People & Communities,Early Help ASC/CSC,Agency Staff,06/12/2019,30254932,569.83,Revenue,Reed Specialist Recruitment Limited,External Temporary Staff
Peterborough City Council,People & Communities,Independent Sector Placements,Services,06/12/2019,30254795,578.88,Revenue,Nurseplus Uk,Daycare
Peterborough City Council,Place & Economy,Highway & Drainage Control,Agency Staff,06/12/2019,30255058,580.50,Revenue,Reed Specialist Recruitment Limited,External Temporary Staff
Peterborough City Council,Resources,PSSP Retained Services,"Tools, Equipment, Furniture & Materials",06/12/2019,30255273,590.36,Revenue,Pitney Bowes Limited,Equipment
Peterborough City Council,People & Communities,Early Years & Quality Improvement,Services,06/12/2019,30254130,601.25,Revenue,St Josephs Day Nursery,Grant Payment
Peterborough City Council,People & Communities,Early Help ASC/CSC,Agency Staff,06/12/2019,30255034,604.51,Revenue,Reed Specialist Recruitment Limited,External Temporary Staff
Peterborough City Council,Place & Economy,Development Management,Services,06/12/2019,30254740,632.22,Revenue,JPIMedia Publishing Ltd,Advertising
Peterborough City Council,People & Communities,HTS & CSC Transport,Contract Hire and Operating Leases,06/12/2019,8000156403,680.00,Revenue,The Taxi Firm Limited,Hired Transport
Peterborough City Council,People & Communities,Clare Lodge,Services,06/12/2019,30254651,682.51,Revenue,Clare Lodge Secure Unit (Imprest),Financial Assistance
Peterborough City Council,People & Communities,HTS & CSC Transport,Contract Hire and Operating Leases,06/12/2019,8000156455,685.60,Revenue,Peterborough Cars,Hired Transport
Peterborough City Council,Governance,Legal Services,Services,06/12/2019,30254947,700.00,Revenue,Redacted Personal Information,Legal Costs
Peterborough City Council,Customer & Digital Services,ICT,Agency Staff,06/12/2019,30254892,708.31,Revenue,Reed Specialist Recruitment Limited,External Temporary Staff
Peterborough City Council,People & Communities,Access to Resources & Specialist Commissioning,Schools,06/12/2019,30254422,764.40,Revenue,Swiis Foster Care Ltd,Boarding - Out Fees
Peterborough City Council,People & Communities,Early Years & Quality Improvement,Services,06/12/2019,30254999,771.00,Revenue,Redacted Personal Information,Grant Payment
Peterborough City Council,People & Communities,Access to Resources & Specialist Commissioning,Schools,06/12/2019,30253345,780.01,Revenue,Swiis Foster Care Ltd,Boarding - Out Fees
Peterborough City Council,People & Communities,Independent Sector Placements,Services,06/12/2019,30254873,780.40,Revenue,Swanton Community Support,Homecare
Peterborough City Council,People & Communities,HTS & CSC Transport,Contract Hire and Operating Leases,06/12/2019,30254821,782.70,Revenue,Goldstar Cabs Ltd,Hired Transport
Peterborough City Council,Customer & Digital Services,ICT,Agency Staff,06/12/2019,30254937,786.31,Revenue,Reed Specialist Recruitment Limited,External Temporary Staff
Peterborough City Council,People & Communities,HTS & CSC Transport,Contract Hire and Operating Leases,06/12/2019,8000156391,808.50,Revenue,Goldstar Cabs Ltd,Hired Transport
Peterborough City Council,People & Communities,Early Years & Quality Improvement,Services,06/12/2019,30254997,813.82,Revenue,Redacted Personal Information,Grant Payment
Peterborough City Council,People & Communities,Independent Sector Placements,Services,06/12/2019,30254328,823.00,Revenue,Richmond Fellowship (The),Residential Care
Peterborough City Council,People & Communities,Independent Sector Placements,Services,06/12/2019,30254329,823.00,Revenue,Richmond Fellowship (The),Residential Care
Peterborough City Council,Governance,Legal Services,Agency Staff,06/12/2019,30255036,844.80,Revenue,Reed Specialist Recruitment Limited,External Temporary Staff
Peterborough City Council,People & Communities,Housing,Services,06/12/2019,30254981,845.00,Revenue,Bee Lettings Ltd,Financial Assistance
Peterborough City Council,People & Communities,HTS & CSC Transport,Contract Hire and Operating Leases,06/12/2019,8000156402,885.00,Revenue,The Taxi Firm Limited,Hired Transport
Peterborough City Council,People & Communities,Regulatory Services,"Printing, Stationery & General Office Expenses",06/12/2019,30254263,904.68,Revenue,Allied Publicity Services (Manchester) Limited,Stationery
Peterborough City Council,People & Communities,Independent Sector Placements,Services,06/12/2019,30253482,919.52,Revenue,Park Vista Care Home,Residential Care
Peterborough City Council,Governance,Legal Services,Services,06/12/2019,30255105,950.16,Revenue,Thomson Reuters UK Limited,Subscriptions
Peterborough City Council,People & Communities,Early Years & Quality Improvement,Services,06/12/2019,30254994,961.18,Revenue,Redacted Personal Information,Grant Payment
Peterborough City Council,People & Communities,Mental Capacity Act & DoLs,Services,06/12/2019,30254940,967.32,Revenue,Redacted Personal Information,Miscellaneous
Peterborough City Council,People & Communities,Commissioning,Services,06/12/2019,30253399,982.50,Revenue,Crisp and Crane Training Limited,Hired Services
Peterborough City Council,People & Communities,Early Years & Quality Improvement,Services,06/12/2019,30254995,998.84,Revenue,Redacted Personal Information,Grant Payment
Peterborough City Council,Corporate,Corporate,Non Revenue,06/12/2019,30254660,1000.00,Capital,Cambs Police Amateur Boxing Club,Grant Payment
Peterborough City Council,People & Communities,HTS & CSC Transport,Contract Hire and Operating Leases,06/12/2019,30254823,1008.00,Revenue,A2B Euro Cars,Hired Transport
Peterborough City Council,People & Communities,Independent Sector Placements,Services,06/12/2019,30253503,1062.60,Revenue,Avery Homes (Nelson) Ltd,Residential Care
Peterborough City Council,People & Communities,HTS & CSC Transport,Contract Hire and Operating Leases,06/12/2019,30254822,1064.00,Revenue,A2B Euro Cars,Hired Transport
Peterborough City Council,Customer & Digital Services,Marketing & Communications,Services,06/12/2019,30254699,1065.00,Revenue,Print 4 Business Ltd,Printing
Peterborough City Council,People & Communities,HTS & CSC Transport,Contract Hire and Operating Leases,06/12/2019,8000156404,1095.00,Revenue,The Taxi Firm Limited,Hired Transport
Peterborough City Council,Place & Economy,Highway & Drainage Control,Agency Staff,06/12/2019,30255057,1102.20,Revenue,Reed Specialist Recruitment Limited,External Temporary Staff
Peterborough City Council,People & Communities,Independent Sector Placements,Services,06/12/2019,30254922,1106.56,Revenue,Deafblind Uk Trading Ltd,Homecare
Peterborough City Council,People & Communities,HTS & CSC Transport,Contract Hire and Operating Leases,06/12/2019,8000156456,1125.04,Revenue,Redacted Personal Information ,Hired Transport
Peterborough City Council,People & Communities,Independent Sector Placements,Services,06/12/2019,30254921,1185.60,Revenue,Deafblind Uk Trading Ltd,Homecare
Peterborough City Council,People & Communities,Independent Sector Placements,Services,06/12/2019,30254924,1185.60,Revenue,Deafblind Uk Trading Ltd,Homecare
Peterborough City Council,Corporate,Corporate,Non Revenue,06/12/2019,30254673,1217.60,Capital,Sovereign Property Services Ltd,Grant Payment
Peterborough City Council,People & Communities,HTS & CSC Transport,Contract Hire and Operating Leases,06/12/2019,8000156458,1228.50,Revenue,Redacted Personal Information ,Hired Transport
Peterborough City Council,Place & Economy,Highway & Drainage Control,Agency Staff,06/12/2019,30255053,1235.80,Revenue,Reed Specialist Recruitment Limited,External Temporary Staff
Peterborough City Council,People & Communities,Commissioning,Services,06/12/2019,30253389,1262.50,Revenue,Crisp and Crane Training Limited,Hired Services
Peterborough City Council,Place & Economy,"Markets, Tourism & Events",Services,06/12/2019,30254560,1263.00,Revenue,FTF Worldwide Event Management Ltd,Conferences
Peterborough City Council,People & Communities,Commissioning,Services,06/12/2019,30253383,1280.00,Revenue,Crisp and Crane Training Limited,Hired Services
Peterborough City Council,Place & Economy,Transport & Infrastructure Commissioning,Energy Costs,06/12/2019,30254645,1315.74,Revenue,E.ON Energy,Electricity
Peterborough City Council,People & Communities,Access to Resources & Specialist Commissioning,Schools,06/12/2019,30252984,1323.00,Revenue,National Fostering Agency Ltd,Boarding - Out Fees
Peterborough City Council,Place & Economy,Highway & Drainage Control,Agency Staff,06/12/2019,30255225,1336.00,Revenue,Reed Specialist Recruitment Limited,External Temporary Staff
Peterborough City Council,People & Communities,Independent Sector Placements,Services,06/12/2019,30254794,1350.72,Revenue,Nurseplus Uk,Daycare
Peterborough City Council,Governance,Legal Services,Agency Staff,06/12/2019,30254989,1364.17,Revenue,Reed Specialist Recruitment Limited,External Temporary Staff
Peterborough City Council,Place & Economy,Development Management,Agency Staff,06/12/2019,30254843,1365.01,Revenue,Reed Specialist Recruitment Limited,External Temporary Staff
Peterborough City Council,People & Communities,HTS & CSC Transport,Contract Hire and Operating Leases,06/12/2019,8000156457,1386.76,Revenue,Redacted Personal Information ,Hired Transport
Peterborough City Council,People & Communities,Housing,Repair & Maintenance of Buildings,06/12/2019,30254847,1483.23,Revenue,Tower Properties (Peterborough) Ltd,Rent
Peterborough City Council,People & Communities,HTS & CSC Transport,Contract Hire and Operating Leases,06/12/2019,8000156454,1552.01,Revenue,A2B Euro Cars,Hired Transport
Peterborough City Council,People & Communities,HTS & CSC Transport,Contract Hire and Operating Leases,06/12/2019,8000156391,1617.00,Revenue,Goldstar Cabs Ltd,Hired Transport
Peterborough City Council,People & Communities,Independent Sector Placements,Services,06/12/2019,30254920,1620.32,Revenue,Deafblind Uk Trading Ltd,Homecare
Peterborough City Council,People & Communities,Commissioning,Services,06/12/2019,30253388,1672.50,Revenue,Crisp and Crane Training Limited,Hired Services
Peterborough City Council,People & Communities,Commissioning,Services,06/12/2019,30253397,1681.50,Revenue,Crisp and Crane Training Limited,Hired Services
Peterborough City Council,People & Communities,Commissioning,Services,06/12/2019,30253385,1695.00,Revenue,Crisp and Crane Training Limited,Hired Services
Peterborough City Council,People & Communities,Commissioning,Services,06/12/2019,30253395,1695.00,Revenue,Crisp and Crane Training Limited,Hired Services
Peterborough City Council,People & Communities,Independent Sector Placements,Services,06/12/2019,30254925,1738.88,Revenue,Deafblind Uk Trading Ltd,Homecare
Peterborough City Council,People & Communities,Parking,Agency Staff,06/12/2019,30255266,1792.00,Revenue,L A Support Limited,External Temporary Staff
Peterborough City Council,Resources,PSSP Retained Services,Services,06/12/2019,30255304,1805.15,Revenue,Whistl UK Ltd,Postage
Peterborough City Council,People & Communities,Commissioning,Services,06/12/2019,30253391,1823.50,Revenue,Crisp and Crane Training Limited,Hired Services
Peterborough City Council,People & Communities,Independent Sector Placements,Services,06/12/2019,30253504,1824.64,Revenue,Avery Homes (Nelson) Ltd,Residential Care
Peterborough City Council,People & Communities,HTS & CSC Transport,Contract Hire and Operating Leases,06/12/2019,30254821,1826.30,Revenue,Goldstar Cabs Ltd,Hired Transport
Peterborough City Council,People & Communities,Commissioning,Services,06/12/2019,30253393,1843.50,Revenue,Crisp and Crane Training Limited,Hired Services
Peterborough City Council,People & Communities,Independent Sector Placements,Services,06/12/2019,30254824,1886.10,Revenue,Allied Health Services Ltd T/A Allied Healthcare,Homecare
Peterborough City Council,People & Communities,Access to Resources & Specialist Commissioning,Schools,06/12/2019,30253612,1980.00,Revenue,Florinee Homes Ltd,Boarding - Out Fees
Peterborough City Council,People & Communities,Access to Resources & Specialist Commissioning,Schools,06/12/2019,30253613,1980.00,Revenue,Florinee Homes Ltd,Boarding - Out Fees
Peterborough City Council,Corporate,Corporate,Non Revenue,06/12/2019,30254721,1986.32,Capital,MORLEY BUILDING SERVICES LTD,Grant Payment
Peterborough City Council,People & Communities,Special Educational Needs / Inclusion,Services,06/12/2019,30255262,1990.00,Revenue,NASEN,Conferences
Peterborough City Council,People & Communities,HTS & CSC Transport,Contract Hire and Operating Leases,06/12/2019,8000156452,1991.01,Revenue,A2B Euro Cars,Hired Transport
Peterborough City Council,People & Communities,Independent Sector Placements,Services,06/12/2019,30254928,2015.52,Revenue,Deafblind Uk Trading Ltd,Homecare
Peterborough City Council,People & Communities,Housing,Services,06/12/2019,30255050,2055.00,Revenue,Singh and Sons Property Management Ltd,Temporary Accommodation Costs
Peterborough City Council,People & Communities,Early Years & Quality Improvement,Services,06/12/2019,30254132,2060.50,Revenue,Stars Preschool Woodston,Grant Payment
Peterborough City Council,People & Communities,Independent Sector Placements,Services,06/12/2019,30254912,2139.24,Revenue,HC-One Beamish Limited - St Clares Court,Residential Care
Peterborough City Council,People & Communities,Early Years & Quality Improvement,Services,06/12/2019,30254521,2210.00,Revenue,Alpha Kindergarton (Fletton),Grant Payment
Peterborough City Council,People & Communities,Commissioning,Services,06/12/2019,30253392,2217.00,Revenue,Crisp and Crane Training Limited,Hired Services
Peterborough City Council,People & Communities,HTS & CSC Transport,Contract Hire and Operating Leases,06/12/2019,8000156451,2233.00,Revenue,A2B Euro Cars,Hired Transport
Peterborough City Council,Corporate,Corporate,Non Revenue,06/12/2019,30254941,2268.60,Capital,Reed Specialist Recruitment Limited,Consultants Fees
Peterborough City Council,Corporate,Corporate,Non Revenue,06/12/2019,30255055,2268.60,Capital,Reed Specialist Recruitment Limited,Consultants Fees
Peterborough City Council,People & Communities,Independent Sector Placements,Services,06/12/2019,30254919,2371.20,Revenue,Deafblind Uk Trading Ltd,Homecare
Peterborough City Council,People & Communities,HTS & CSC Transport,Contract Hire and Operating Leases,06/12/2019,8000156438,2388.14,Revenue,Goldstar Cabs Ltd,Hired Transport
Peterborough City Council,People & Communities,Independent Sector Placements,Services,06/12/2019,30254926,2400.84,Revenue,Deafblind Uk Trading Ltd,Homecare
Peterborough City Council,People & Communities,Regulatory Services,Interview & Training Expenses,06/12/2019,30255121,2490.00,Revenue,University Of Derby,Training
Peterborough City Council,People & Communities,Parking,Agency Staff,06/12/2019,30255265,2560.00,Revenue,L A Support Limited,External Temporary Staff
Peterborough City Council,People & Communities,HTS & CSC Transport,Contract Hire and Operating Leases,06/12/2019,30245706,2740.00,Revenue,Cambridgeshire County Council,Hired Transport
Peterborough City Council,People & Communities,Access to Resources & Specialist Commissioning,Schools,06/12/2019,30253617,2750.00,Revenue,Florinee Homes Ltd,Boarding - Out Fees
Peterborough City Council,People & Communities,Independent Sector Placements,Services,06/12/2019,30254927,2786.16,Revenue,Deafblind Uk Trading Ltd,Homecare
Peterborough City Council,Corporate,Corporate,Non Revenue,06/12/2019,30254658,2806.22,Capital,Sovereign Property Services Ltd,Grant Payment
Peterborough City Council,People & Communities,Independent Sector Placements,Services,06/12/2019,30254923,2845.44,Revenue,Deafblind Uk Trading Ltd,Homecare
Peterborough City Council,People & Communities,Housing,Services,06/12/2019,30255054,2910.00,Revenue,Singh and Sons Property Management Ltd,Temporary Accommodation Costs
Peterborough City Council,People & Communities,Housing,Services,06/12/2019,30255052,2975.00,Revenue,Singh and Sons Property Management Ltd,Temporary Accommodation Costs
Peterborough City Council,People & Communities,Commissioning,Services,06/12/2019,30253394,3040.50,Revenue,Crisp and Crane Training Limited,Hired Services
Peterborough City Council,People & Communities,Access to Resources & Specialist Commissioning,Schools,06/12/2019,30254302,3133.85,Revenue,Compass Fostering Central Limited,Boarding - Out Fees
Peterborough City Council,People & Communities,Access to Resources & Specialist Commissioning,Schools,06/12/2019,30254300,3214.20,Revenue,Compass Fostering Central Limited,Boarding - Out Fees
Peterborough City Council,Corporate,Corporate,Non Revenue,06/12/2019,30254886,3214.99,Capital,Quadrant Security Group Ltd,Infrastructure
Peterborough City Council,People & Communities,Housing,Repair & Maintenance of Buildings,06/12/2019,30254846,3217.03,Revenue,Tower Properties (Peterborough) Ltd,Rent
Peterborough City Council,People & Communities,Housing,Services,06/12/2019,30255049,3220.00,Revenue,Singh and Sons Property Management Ltd,Temporary Accommodation Costs
Peterborough City Council,People & Communities,Access to Resources & Specialist Commissioning,Schools,06/12/2019,30254298,3240.00,Revenue,Compass Fostering Central Limited,Boarding - Out Fees
Peterborough City Council,People & Communities,Access to Resources & Specialist Commissioning,Schools,06/12/2019,30254294,3342.85,Revenue,Fostering UK Ltd,Boarding - Out Fees
Peterborough City Council,People & Communities,Access to Resources & Specialist Commissioning,Schools,06/12/2019,30254297,3342.85,Revenue,Fostering UK Ltd,Boarding - Out Fees
Peterborough City Council,People & Communities,Access to Resources & Specialist Commissioning,Schools,06/12/2019,30254299,3360.00,Revenue,Compass Fostering Central Limited,Boarding - Out Fees
Peterborough City Council,People & Communities,Access to Resources & Specialist Commissioning,Schools,06/12/2019,30254295,3385.71,Revenue,Fostering UK Ltd,Boarding - Out Fees
Peterborough City Council,People & Communities,Access to Resources & Specialist Commissioning,Schools,06/12/2019,30254290,3508.50,Revenue,Nexus Fostering Ltd,Boarding - Out Fees
Peterborough City Council,People & Communities,Access to Resources & Specialist Commissioning,Schools,06/12/2019,30254293,3508.50,Revenue,Nexus Fostering Ltd,Boarding - Out Fees
Peterborough City Council,People & Communities,Access to Resources & Specialist Commissioning,Schools,06/12/2019,30254301,3557.10,Revenue,Compass Fostering Central Limited,Boarding - Out Fees
Peterborough City Council,People & Communities,Access to Resources & Specialist Commissioning,Schools,06/12/2019,30254363,3630.60,Revenue,Orange Grove Fostercare Ltd,Boarding - Out Fees
Peterborough City Council,People & Communities,Access to Resources & Specialist Commissioning,Schools,06/12/2019,30254534,3642.90,Revenue,Compass Fostering South Limited,Boarding - Out Fees
Peterborough City Council,People & Communities,PFI,Services,06/12/2019,30254809,3657.07,Revenue,IIC by Education (P�boro) Ltd,Rent
Peterborough City Council,People & Communities,Access to Resources & Specialist Commissioning,Schools,06/12/2019,30254296,3685.71,Revenue,Fostering UK Ltd,Boarding - Out Fees
Peterborough City Council,People & Communities,Access to Resources & Specialist Commissioning,Schools,06/12/2019,30254287,3693.00,Revenue,Nexus Fostering Ltd,Boarding - Out Fees
Peterborough City Council,People & Communities,Access to Resources & Specialist Commissioning,Schools,06/12/2019,30254288,3693.00,Revenue,Nexus Fostering Ltd,Boarding - Out Fees
Peterborough City Council,People & Communities,Access to Resources & Specialist Commissioning,Schools,06/12/2019,30254289,3693.00,Revenue,Nexus Fostering Ltd,Boarding - Out Fees
Peterborough City Council,People & Communities,Access to Resources & Specialist Commissioning,Schools,06/12/2019,30254291,3693.00,Revenue,Nexus Fostering Ltd,Boarding - Out Fees
Peterborough City Council,People & Communities,Access to Resources & Specialist Commissioning,Schools,06/12/2019,30254292,3693.00,Revenue,Nexus Fostering Ltd,Boarding - Out Fees
Peterborough City Council,People & Communities,Access to Resources & Specialist Commissioning,Schools,06/12/2019,30254345,3693.00,Revenue,Nexus Fostering Ltd,Boarding - Out Fees
Peterborough City Council,People & Communities,Other Enforcement,Services,06/12/2019,30254855,3712.90,Revenue,Quadrant Security Group Ltd,Cctv
Peterborough City Council,People & Communities,Independent Sector Placements,Services,06/12/2019,30253466,3762.00,Revenue,Community Care Solutions Ltd,Homecare
Peterborough City Council,People & Communities,Independent Sector Placements,Services,06/12/2019,30253462,3762.00,Revenue,Community Care Solutions Ltd,Residential Care
Peterborough City Council,People & Communities,Independent Sector Placements,Services,06/12/2019,30253465,3762.00,Revenue,Community Care Solutions Ltd,Residential Care
Peterborough City Council,Corporate,Corporate,Non Revenue,06/12/2019,30254696,4094.00,Capital,MORLEY BUILDING SERVICES LTD,Grant Payment
Peterborough City Council,People & Communities,Independent Sector Placements,Services,06/12/2019,30254933,4145.36,Revenue,PossAbilities CIC,Homecare
Peterborough City Council,People & Communities,Independent Sector Placements,Services,06/12/2019,30254936,4145.36,Revenue,PossAbilities CIC,Homecare
Peterborough City Council,People & Communities,Access to Resources & Specialist Commissioning,Schools,06/12/2019,30254550,4242.90,Revenue,Dreamers Global Ltd,Boarding - Out Fees
Peterborough City Council,People & Communities,Children�s Social Care,Contract Hire and Operating Leases,06/12/2019,30255023,4269.27,Revenue,Northumbria Healthcare NHS Foundation Trust,Hired Transport
Peterborough City Council,People & Communities,Independent Sector Placements,Services,06/12/2019,30254864,4391.80,Revenue,OAKFIELD (EASTON MAUDIT) LTD,Residential Care
Peterborough City Council,People & Communities,Access to Resources & Specialist Commissioning,Schools,06/12/2019,30252983,4410.00,Revenue,National Fostering Agency Ltd,Boarding - Out Fees
Peterborough City Council,People & Communities,Independent Sector Placements,Services,06/12/2019,30254943,4437.80,Revenue,Mencap,Residential Care
Peterborough City Council,People & Communities,Access to Resources & Specialist Commissioning,Schools,06/12/2019,30252187,4530.00,Revenue,Ethelbert Childrens Services,Boarding - Out Fees
Peterborough City Council,Corporate,Corporate,Non Revenue,06/12/2019,30254672,4589.65,Capital,Gaswise Services Ltd,Grant Payment
Peterborough City Council,Corporate,Corporate,Non Revenue,06/12/2019,30254689,4651.75,Capital,Casbon Building Services,Grant Payment
Peterborough City Council,People & Communities,Independent Sector Placements,Services,06/12/2019,30254945,4734.60,Revenue,Mencap,Residential Care
Peterborough City Council,People & Communities,Independent Sector Placements,Services,06/12/2019,30254944,4924.60,Revenue,Mencap,Residential Care
Peterborough City Council,People & Communities,CSC Quality Assurance,Contract Hire and Operating Leases,06/12/2019,30255024,4937.20,Revenue,Northumbria Healthcare NHS Foundation Trust,Hired Transport
Peterborough City Council,People & Communities,Commissioning,Services,06/12/2019,30254014,5000.00,Revenue,Longhurst Group Limited,Purchased Social Care Services
Peterborough City Council,People & Communities,Finance,Agency Staff,06/12/2019,30254875,5062.39,Revenue,Eden Brown Ltd,External Temporary Staff
Peterborough City Council,Corporate,Corporate,Non Revenue,06/12/2019,30254657,5203.75,Capital,MORLEY BUILDING SERVICES LTD,Grant Payment
Peterborough City Council,People & Communities,Independent Sector Placements,Services,06/12/2019,30255096,5297.96,Revenue,Augusta Care Ltd,Homecare
Peterborough City Council,People & Communities,Independent Sector Placements,Services,06/12/2019,30255098,5297.96,Revenue,Augusta Care Ltd,Homecare
Peterborough City Council,People & Communities,Therapy/Reablement/Community Equipment,Agency Staff,06/12/2019,30254877,5371.66,Revenue,Eden Brown Ltd,External Temporary Staff
Peterborough City Council,People & Communities,Independent Sector Placements,Services,06/12/2019,30253464,5600.00,Revenue,Community Care Solutions Ltd,Residential Care
Peterborough City Council,People & Communities,Block Contracts,Other Establishments,06/12/2019,30254165,6020.64,Revenue,Axiom Housing Association Ltd,Third Party Payments - Contract
Peterborough City Council,People & Communities,Block Contracts,Other Establishments,06/12/2019,30255004,6020.64,Revenue,Axiom Housing Association Ltd,Third Party Payments - Contract
Peterborough City Council,People & Communities,Community Team,Contract Hire and Operating Leases,06/12/2019,30255022,6262.96,Revenue,Northumbria Healthcare NHS Foundation Trust,Hired Transport
Peterborough City Council,People & Communities,Independent Sector Placements,Services,06/12/2019,30254911,6320.44,Revenue,NORTH EAST AUTISM SOCIETY,Residential Care
Peterborough City Council,Corporate,Corporate,Non Revenue,06/12/2019,30254690,6565.35,Capital,Gaswise Services Ltd,Grant Payment
Peterborough City Council,People & Communities,Independent Sector Placements,Services,06/12/2019,30255125,7754.60,Revenue,K2 CARE LTD,Homecare
Peterborough City Council,People & Communities,Independent Sector Placements,Services,06/12/2019,30253463,8049.72,Revenue,Community Care Solutions Ltd,Residential Care
Peterborough City Council,Corporate,Corporate,Non Revenue,06/12/2019,30254796,8483.74,Capital,M J Greaves,Grant Payment
Peterborough City Council,People & Communities,Housing,Services,06/12/2019,30253571,9014.04,Revenue,DA Rosalia Hotel,Temporary Accommodation Costs
Peterborough City Council,People & Communities,Housing,Services,06/12/2019,30253573,9598.71,Revenue,Eastfield Guesthouse,Temporary Accommodation Costs
Peterborough City Council,Customer & Digital Services,Marketing & Communications,Interview & Training Expenses,06/12/2019,30254409,10000.00,Revenue,Paul Stainton Media Ltd,Training
Peterborough City Council,People & Communities,Other Services,Other Establishments,06/12/2019,30255271,10416.00,Revenue,P�Boro Council For Voluntary Srvs (PCVS),Third Party Payments - Contract
Peterborough City Council,Corporate,Corporate,Non Revenue,06/12/2019,30254966,10500.00,Capital,Permanent Futures Ltd,Consultants Fees
Peterborough City Council,Corporate,Corporate,Non Revenue,06/12/2019,30254963,10570.00,Capital,Permanent Futures Ltd,Consultants Fees
Peterborough City Council,People & Communities,Child Health,Services,06/12/2019,30247836,11995.50,Revenue,Circles Network,Purchased Social Care Services
Peterborough City Council,People & Communities,Child Health,Services,06/12/2019,30247838,11995.50,Revenue,Circles Network,Purchased Social Care Services
Peterborough City Council,Corporate,Corporate,Non Revenue,06/12/2019,30254970,12000.00,Capital,Permanent Futures Ltd,Consultants Fees
Peterborough City Council,Corporate,Corporate,Non Revenue,06/12/2019,30254797,12270.73,Capital,M J Greaves,Grant Payment
Peterborough City Council,People & Communities,Finance,Other Establishments,06/12/2019,30255276,12791.17,Revenue,Healthwatch Cambridgeshire and Peterborough,Third Party Payments - Contract
Peterborough City Council,People & Communities,Housing,Services,06/12/2019,30253572,13519.08,Revenue,Eastfield Guesthouse,Temporary Accommodation Costs
Peterborough City Council,Resources,Strategic Client Services,"Tools, Equipment, Furniture & Materials",06/12/2019,30255264,13602.39,Revenue,J C Decaux UK,Equipment Hire
Peterborough City Council,Corporate,Corporate,Non Revenue,06/12/2019,30254659,13773.55,Capital,Casbon Building Services,Grant Payment
Peterborough City Council,Corporate,Corporate,Non Revenue,06/12/2019,30254965,14520.00,Capital,Permanent Futures Ltd,Consultants Fees
Peterborough City Council,People & Communities,Access to Resources & Specialist Commissioning,Schools,06/12/2019,30253600,14785.80,Revenue,4D Care Ltd,Boarding - Out Fees
Peterborough City Council,People & Communities,Access to Resources & Specialist Commissioning,Schools,06/12/2019,30254267,22120.36,Revenue,Dove Adolescent Services Ltd,Boarding - Out Fees
Peterborough City Council,People & Communities,Service Director Education,Severance Payments,06/12/2019,30254728,27162.69,Revenue,Teachers Pensions,Redundancy Costs
Peterborough City Council,Corporate,Corporate,Non Revenue,06/12/2019,30254671,28524.16,Capital,Garfield Builders Ltd,Grant Payment
Peterborough City Council,People & Communities,OP/PD/SI,"Tools, Equipment, Furniture & Materials",06/12/2019,30254642,74019.18,Revenue,NRS Healthcare,Occupational Therapy Equipment
Peterborough City Council,People & Communities,Mental Health,Other Establishments,06/12/2019,30253841,103447.50,Revenue,Cambs & P�boro NHS Foundation Trust,Third Party Payments - Contract
Peterborough City Council,People & Communities,Independent Sector Placements,Services,09/12/2019,30255484,-761.94,Revenue,Longhurst Group Limited,Homecare
Peterborough City Council,People & Communities,Independent Sector Placements,Services,09/12/2019,8000155002,514.08,Revenue,Longhurst Group Limited,Homecare
Peterborough City Council,People & Communities,Independent Sector Placements,Services,09/12/2019,8000155018,514.08,Revenue,Longhurst Group Limited,Homecare
Peterborough City Council,People & Communities,Independent Sector Placements,Services,09/12/2019,8000155020,514.08,Revenue,Longhurst Group Limited,Homecare
Peterborough City Council,People & Communities,Independent Sector Placements,Services,09/12/2019,8000155051,514.08,Revenue,Longhurst Group Limited,Homecare
Peterborough City Council,People & Communities,Independent Sector Placements,Services,09/12/2019,8000155055,514.08,Revenue,Longhurst Group Limited,Homecare
Peterborough City Council,People & Communities,Cultural Services,Repair & Maintenance of Buildings,09/12/2019,30253697,515.00,Revenue,Jones Lang LaSalle,Rent
Peterborough City Council,People & Communities,Special Educational Needs / Inclusion,Agency Staff,09/12/2019,30254814,516.60,Revenue,Ewing Foundation,External Temporary Staff
Peterborough City Council,People & Communities,Independent Sector Placements,Services,09/12/2019,8000155065,526.32,Revenue,Longhurst Group Limited,Homecare
Peterborough City Council,Resources,Bereavement Service,"Tools, Equipment, Furniture & Materials",09/12/2019,30255336,533.85,Revenue,Barlow Tyrie Ltd,Memorials
Peterborough City Council,People & Communities,Independent Sector Placements,Services,09/12/2019,8000155760,540.00,Revenue,Longhurst Group Limited,Assistive Technology
Peterborough City Council,Governance,Legal Services,Services,09/12/2019,30255002,550.00,Revenue,Redacted Personal Information,Legal Costs
Peterborough City Council,People & Communities,Clare Lodge,Agency Staff,09/12/2019,30251480,553.33,Revenue,Reed Specialist Recruitment Limited,External Temporary Staff
Peterborough City Council,People & Communities,Special Educational Needs / Inclusion,Agency Staff,09/12/2019,30254813,561.06,Revenue,Ewing Foundation,External Temporary Staff
Peterborough City Council,People & Communities,Clare Lodge,Agency Staff,09/12/2019,30252908,584.68,Revenue,Reed Specialist Recruitment Limited,External Temporary Staff
Peterborough City Council,People & Communities,Independent Sector Placements,Services,09/12/2019,8000155000,599.76,Revenue,Longhurst Group Limited,Homecare
Peterborough City Council,People & Communities,Independent Sector Placements,Services,09/12/2019,8000155010,599.76,Revenue,Longhurst Group Limited,Homecare
Peterborough City Council,People & Communities,Independent Sector Placements,Services,09/12/2019,8000155025,599.76,Revenue,Longhurst Group Limited,Homecare
Peterborough City Council,People & Communities,Independent Sector Placements,Services,09/12/2019,8000155069,599.76,Revenue,Longhurst Group Limited,Homecare
Peterborough City Council,People & Communities,Independent Sector Placements,Services,09/12/2019,8000155759,599.76,Revenue,Longhurst Group Limited,Homecare
Peterborough City Council,Resources,Commercial Propety,Services,09/12/2019,30255236,600.00,Revenue,HM Revenues & Customs,Legal Costs
Peterborough City Council,People & Communities,Clare Lodge,Agency Staff,09/12/2019,30251575,614.90,Revenue,Reed Specialist Recruitment Limited,External Temporary Staff
Peterborough City Council,People & Communities,Clare Lodge,Agency Staff,09/12/2019,30251578,614.90,Revenue,Reed Specialist Recruitment Limited,External Temporary Staff
Peterborough City Council,People & Communities,Clare Lodge,Agency Staff,09/12/2019,30251583,614.90,Revenue,Reed Specialist Recruitment Limited,External Temporary Staff
Peterborough City Council,People & Communities,Commissioning,Services,09/12/2019,30255496,644.43,Revenue,CAPITA Translation and Interpreting,Interpretation Expenses
Peterborough City Council,People & Communities,Clare Lodge,Agency Staff,09/12/2019,30251606,646.51,Revenue,Reed Specialist Recruitment Limited,External Temporary Staff
Peterborough City Council,People & Communities,Special Educational Needs / Inclusion,Services,09/12/2019,30255552,649.20,Revenue,Children�s Therapy Solutions Ltd,Occupational Health
Peterborough City Council,People & Communities,Independent Sector Placements,Services,09/12/2019,30254961,685.44,Revenue,Longhurst Group Limited,Homecare
Peterborough City Council,People & Communities,Independent Sector Placements,Services,09/12/2019,8000155064,685.44,Revenue,Longhurst Group Limited,Homecare
Peterborough City Council,People & Communities,Independent Sector Placements,Services,09/12/2019,8000155756,685.44,Revenue,Longhurst Group Limited,Homecare
Peterborough City Council,Place & Economy,Westcombe Engineering,Services,09/12/2019,30254959,688.18,Revenue,M O 8 Specialities Ltd,Materials
Peterborough City Council,Resources,Insurance,Services,09/12/2019,30254104,690.00,Revenue,Weightmans LLP,Insurance
Peterborough City Council,People & Communities,HTS & CSC Transport,Contract Hire and Operating Leases,09/12/2019,8000156654,703.12,Revenue,Redacted Personal Information ,Hired Transport
Peterborough City Council,Place & Economy,Transport & Infrastructure Commissioning,Services,09/12/2019,30255139,714.90,Revenue,Delaine Buses Ltd,Contractors
Peterborough City Council,People & Communities,Independent Sector Placements,Services,09/12/2019,8000155924,722.16,Revenue,Longhurst Group Limited,Homecare
Peterborough City Council,People & Communities,Independent Sector Placements,Services,09/12/2019,8000155754,728.28,Revenue,Longhurst Group Limited,Homecare
Peterborough City Council,People & Communities,Clare Lodge,Agency Staff,09/12/2019,30251465,762.71,Revenue,Reed Specialist Recruitment Limited,External Temporary Staff
Peterborough City Council,People & Communities,Therapy/Reablement/Community Equipment,Agency Staff,09/12/2019,30255017,765.90,Revenue,Sanctuary Personnel Ltd,External Temporary Staff
Peterborough City Council,People & Communities,Clare Lodge,Agency Staff,09/12/2019,30251579,766.26,Revenue,Reed Specialist Recruitment Limited,External Temporary Staff
Peterborough City Council,People & Communities,Clare Lodge,Agency Staff,09/12/2019,30251585,766.26,Revenue,Reed Specialist Recruitment Limited,External Temporary Staff
Peterborough City Council,People & Communities,Clare Lodge,Agency Staff,09/12/2019,30252910,767.34,Revenue,Reed Specialist Recruitment Limited,External Temporary Staff
Peterborough City Council,People & Communities,Early Years & Quality Improvement,Services,09/12/2019,30255503,769.60,Revenue,Alpha Kindergarton (Fletton),Grant Payment
Peterborough City Council,People & Communities,Independent Sector Placements,Services,09/12/2019,8000155003,771.12,Revenue,Longhurst Group Limited,Homecare
Peterborough City Council,People & Communities,Independent Sector Placements,Services,09/12/2019,8000155056,771.12,Revenue,Longhurst Group Limited,Homecare
Peterborough City Council,People & Communities,Independent Sector Placements,Services,09/12/2019,8000155059,771.12,Revenue,Longhurst Group Limited,Homecare
Peterborough City Council,People & Communities,Independent Sector Placements,Services,09/12/2019,8000155062,783.36,Revenue,Longhurst Group Limited,Homecare
Peterborough City Council,People & Communities,Independent Sector Placements,Services,09/12/2019,8000155066,783.36,Revenue,Longhurst Group Limited,Homecare
Peterborough City Council,Place & Economy,Westcombe Engineering,Services,09/12/2019,30253583,784.76,Revenue,Barron Clark Castings Ltd,Materials
Peterborough City Council,People & Communities,School Standards & Effectiveness,Services,09/12/2019,30254958,800.00,Revenue,Norwich Puppet Theatre Trust Ltd,Conferences
Peterborough City Council,People & Communities,Independent Sector Placements,Services,09/12/2019,8000155753,807.84,Revenue,Longhurst Group Limited,Homecare
Peterborough City Council,Corporate,Corporate,Non Revenue,09/12/2019,30254980,810.00,Capital,M J Greaves,Grant Payment
Peterborough City Council,People & Communities,HTS & CSC Transport,Contract Hire and Operating Leases,09/12/2019,8000156656,814.12,Revenue,Redacted Personal Information ,Hired Transport
Peterborough City Council,Chief Executives,HR WFD & Training,Interview & Training Expenses,09/12/2019,30255013,825.00,Revenue,Interface Enterprises Ltd,Training
Peterborough City Council,People & Communities,Independent Sector Placements,Services,09/12/2019,8000155001,856.80,Revenue,Longhurst Group Limited,Homecare
Peterborough City Council,People & Communities,Clare Lodge,Agency Staff,09/12/2019,30252914,900.37,Revenue,Reed Specialist Recruitment Limited,External Temporary Staff
Peterborough City Council,People & Communities,Parking Services,Services,09/12/2019,30255012,906.00,Revenue,British Parking Association,Subscriptions
Peterborough City Council,People & Communities,Independent Sector Placements,Services,09/12/2019,8000155019,948.60,Revenue,Longhurst Group Limited,Homecare
Peterborough City Council,People & Communities,Clare Lodge,Agency Staff,09/12/2019,30252242,950.73,Revenue,Reed Specialist Recruitment Limited,External Temporary Staff
Peterborough City Council,People & Communities,HTS & CSC Transport,Contract Hire and Operating Leases,09/12/2019,8000156653,952.50,Revenue,Redacted Personal Information ,Hired Transport
Peterborough City Council,People & Communities,Independent Sector Placements,Services,09/12/2019,8000155068,991.44,Revenue,Longhurst Group Limited,Homecare
Peterborough City Council,People & Communities,HTS & CSC Transport,Contract Hire and Operating Leases,09/12/2019,8000156651,1039.50,Revenue,Redacted Personal Information ,Hired Transport
Peterborough City Council,Corporate,Corporate,Non Revenue,09/12/2019,30254845,1044.67,Capital,Care & Independence  Ltd,Grant Payment
Peterborough City Council,People & Communities,Parking,Agency Staff,09/12/2019,30255375,1056.00,Revenue,L A Support Limited,External Temporary Staff
Peterborough City Council,People & Communities,HTS & CSC Transport,Contract Hire and Operating Leases,09/12/2019,8000156652,1083.82,Revenue,Redacted Personal Information ,Hired Transport
Peterborough City Council,People & Communities,Clare Lodge,Agency Staff,09/12/2019,30252909,1104.82,Revenue,Reed Specialist Recruitment Limited,External Temporary Staff
Peterborough City Council,People & Communities,Child Health,Services,09/12/2019,30255658,1106.25,Revenue,Total Promotions Ltd,Uniform/Protective Clothing
Peterborough City Council,People & Communities,Access to Resources & Specialist Commissioning,Schools,09/12/2019,30254606,1150.03,Revenue,Transition Care Peterborough Ltd,Boarding - Out Fees
Peterborough City Council,People & Communities,Independent Sector Placements,Services,09/12/2019,8000154999,1199.52,Revenue,Longhurst Group Limited,Homecare
Peterborough City Council,Place & Economy,Westcombe Engineering,Services,09/12/2019,30253522,1244.40,Revenue,AALCO,Materials
Peterborough City Council,People & Communities,Independent Sector Placements,Services,09/12/2019,8000155007,1285.20,Revenue,Longhurst Group Limited,Homecare
Peterborough City Council,People & Communities,Independent Sector Placements,Services,09/12/2019,8000155052,1627.92,Revenue,Longhurst Group Limited,Homecare
Peterborough City Council,People & Communities,Independent Sector Placements,Services,09/12/2019,8000155067,1713.60,Revenue,Longhurst Group Limited,Homecare
Peterborough City Council,People & Communities,Independent Sector Placements,Services,09/12/2019,8000156479,1753.66,Revenue,Hales Group Ltd,Homecare
Peterborough City Council,People & Communities,Independent Sector Placements,Services,09/12/2019,8000155008,1884.96,Revenue,Longhurst Group Limited,Homecare
Peterborough City Council,People & Communities,Independent Sector Placements,Services,09/12/2019,8000155016,1884.96,Revenue,Longhurst Group Limited,Homecare
Peterborough City Council,People & Communities,Independent Sector Placements,Services,09/12/2019,8000155015,2056.32,Revenue,Longhurst Group Limited,Homecare
Peterborough City Council,Corporate,Corporate,Non Revenue,09/12/2019,30254488,2860.00,Capital,8/5 Electrical Ltd,Building And Site Works
Peterborough City Council,Resources,Finance,Agency Staff,09/12/2019,30253640,2976.15,Revenue,Allen Lane,External Temporary Staff
Peterborough City Council,People & Communities,Targeted Youth Service,Services,09/12/2019,30255556,3500.00,Revenue,Families First Peterborough,Property Maintenance
Peterborough City Council,People & Communities,Independent Sector Placements,Services,09/12/2019,30254960,3576.32,Revenue,Redacted Personal Information,Residential Care
Peterborough City Council,Place & Economy,Building Control,Services,09/12/2019,30255620,5120.00,Revenue,IHS Global Ltd,Subscriptions
Peterborough City Council,Corporate,Corporate,Non Revenue,09/12/2019,30255117,5435.55,Balance Sheet,The Prudential Assurance Company Ltd,Salaries
Peterborough City Council,People & Communities,Children�s Social Care,Agency Staff,09/12/2019,30252367,5936.85,Revenue,Liquid Personnel,External Temporary Staff
Peterborough City Council,People & Communities,Parking,Agency Staff,09/12/2019,30255499,7168.00,Revenue,L A Support Limited,External Temporary Staff
Peterborough City Council,People & Communities,Finance,Services,09/12/2019,30255486,8750.00,Revenue,NHS Cambs & P�boro CCG (Clinical Commissioning Group),Miscellaneous
Peterborough City Council,People & Communities,Cohesion,Other Establishments,09/12/2019,30253533,10000.00,Revenue,Cambridgeshire County Council,Third Party Payments - Contract
Peterborough City Council,Corporate,Corporate,Non Revenue,09/12/2019,30255544,44650.00,Capital,CMS Accommodating People Ltd,Building And Site Works
Peterborough City Council,Corporate,Corporate,Non Revenue,11/12/2019,30254978,-13364.35,Capital,Turner Contracting Ltd,Grant Payment
Peterborough City Council,People & Communities,Access to Resources & Specialist Commissioning,Schools,11/12/2019,30253028,-3541.44,Revenue,Fostering Solutions Limited,Boarding - Out Fees
Peterborough City Council,People & Communities,Independent Sector Placements,Services,11/12/2019,30254585,-3000.00,Revenue,BROADLEIGH NURSING HOME,Residential Care
Peterborough City Council,Corporate,Corporate,Non Revenue,11/12/2019,30254978,-1683.00,Capital,Turner Contracting Ltd,Grant Payment
Peterborough City Council,People & Communities,Independent Sector Placements,Services,11/12/2019,30254891,-1642.86,Revenue,Goldcare Homes t/a The Tudors Care Home,Respite Care
Peterborough City Council,People & Communities,Home Services Delivery Model,Customer and client receipts - Fees & Charges,11/12/2019,30254978,-1347.41,Revenue,Turner Contracting Ltd,Grant Payment
Peterborough City Council,People & Communities,Independent Sector Placements,Services,11/12/2019,30255988,-1297.44,Revenue,Avery House (Peterborough) t/a Brighterkind,Residential Care
Peterborough City Council,People & Communities,Independent Sector Placements,Services,11/12/2019,30255609,-1257.14,Revenue,Askham Village Community Ltd,Residential Care
Peterborough City Council,People & Communities,Independent Sector Placements,Services,11/12/2019,30254581,-927.90,Revenue,BROADLEIGH NURSING HOME,Residential Care
Peterborough City Council,People & Communities,Home Services Delivery Model,Customer and client receipts - Fees & Charges,11/12/2019,30254810,-652.80,Revenue,MORLEY BUILDING SERVICES LTD,Grant Payment
Peterborough City Council,People & Communities,Cultural Services,Energy Costs,11/12/2019,30254720,-551.49,Revenue,Corona Energy Retail 4 Limited,Gas
Peterborough City Council,People & Communities,Cultural Services,Energy Costs,11/12/2019,30254720,-551.49,Revenue,Corona Energy Retail 4 Limited,Gas
Peterborough City Council,People & Communities,Cultural Services,Energy Costs,11/12/2019,30254720,-551.49,Revenue,Corona Energy Retail 4 Limited,Gas
Peterborough City Council,People & Communities,Cultural Services,Energy Costs,11/12/2019,30254720,-551.49,Revenue,Corona Energy Retail 4 Limited,Gas
Peterborough City Council,People & Communities,Cultural Services,Energy Costs,11/12/2019,30254722,-551.49,Revenue,Corona Energy Retail 4 Limited,Gas
Peterborough City Council,People & Communities,Cultural Services,Energy Costs,11/12/2019,30254722,-551.49,Revenue,Corona Energy Retail 4 Limited,Gas
Peterborough City Council,People & Communities,Cultural Services,Energy Costs,11/12/2019,30254720,-533.70,Revenue,Corona Energy Retail 4 Limited,Gas
Peterborough City Council,People & Communities,Cultural Services,Energy Costs,11/12/2019,30254720,-533.70,Revenue,Corona Energy Retail 4 Limited,Gas
Peterborough City Council,People & Communities,Cultural Services,Energy Costs,11/12/2019,30254722,-515.91,Revenue,Corona Energy Retail 4 Limited,Gas
Peterborough City Council,People & Communities,Access to Resources & Specialist Commissioning,Schools,11/12/2019,30255045,-514.71,Revenue,PCH Integration Services Ltd,Boarding - Out Fees
Peterborough City Council,People & Communities,HTS & CSC Transport,Direct Transport Costs,11/12/2019,30253459,500.00,Revenue,Nationwide Gladwins Repair Centres,Repairs and Maintenance
Peterborough City Council,People & Communities,Access to Resources & Specialist Commissioning,Schools,11/12/2019,8000156955,501.72,Revenue,Redacted Personal Information,Boarding - Out Fees
Peterborough City Council,People & Communities,Access to Resources & Specialist Commissioning,Schools,11/12/2019,8000156955,503.44,Revenue,Redacted Personal Information,Boarding - Out Fees
Peterborough City Council,People & Communities,Independent Sector Placements,Services,11/12/2019,8000156741,504.08,Revenue,Hales Group Ltd,Homecare
Peterborough City Council,People & Communities,Clare Lodge,Agency Staff,11/12/2019,30254071,510.12,Revenue,Reed Specialist Recruitment Limited,External Temporary Staff
Peterborough City Council,People & Communities,Clare Lodge,Agency Staff,11/12/2019,30255042,510.12,Revenue,Reed Specialist Recruitment Limited,External Temporary Staff
Peterborough City Council,People & Communities,Independent Sector Placements,Services,11/12/2019,8000155034,514.08,Revenue,Longhurst Group Limited,Homecare
Peterborough City Council,People & Communities,Cultural Services,Energy Costs,11/12/2019,30255812,515.91,Revenue,Corona Energy Retail 4 Limited,Gas
Peterborough City Council,People & Communities,Clare Lodge,Agency Staff,11/12/2019,30252931,517.33,Revenue,Reed Specialist Recruitment Limited,External Temporary Staff
Peterborough City Council,Chief Executives,HR WFD & Training,Services,11/12/2019,30255281,525.00,Revenue,Epilepsy Awareness Ltd,Course Instructors Fees
Peterborough City Council,People & Communities,Clare Lodge,Agency Staff,11/12/2019,30251601,526.54,Revenue,Reed Specialist Recruitment Limited,External Temporary Staff
Peterborough City Council,People & Communities,Access to Resources & Specialist Commissioning,Schools,11/12/2019,8000156955,527.52,Revenue,Redacted Personal Information,Boarding - Out Fees
Peterborough City Council,People & Communities,Access to Resources & Specialist Commissioning,Schools,11/12/2019,8000156955,527.52,Revenue,Redacted Personal Information,Boarding - Out Fees
Peterborough City Council,People & Communities,Access to Resources & Specialist Commissioning,Schools,11/12/2019,8000156955,527.52,Revenue,Redacted Personal Information,Boarding - Out Fees
Peterborough City Council,People & Communities,Access to Resources & Specialist Commissioning,Schools,11/12/2019,8000156955,527.52,Revenue,Redacted Personal Information,Boarding - Out Fees
Peterborough City Council,People & Communities,Access to Resources & Specialist Commissioning,Schools,11/12/2019,8000156955,527.52,Revenue,Redacted Personal Information,Boarding - Out Fees
Peterborough City Council,People & Communities,Access to Resources & Specialist Commissioning,Schools,11/12/2019,8000156955,527.52,Revenue,Redacted Personal Information,Boarding - Out Fees
Peterborough City Council,People & Communities,Access to Resources & Specialist Commissioning,Schools,11/12/2019,8000156955,527.52,Revenue,Redacted Personal Information,Boarding - Out Fees
Peterborough City Council,People & Communities,Access to Resources & Specialist Commissioning,Schools,11/12/2019,8000156955,527.52,Revenue,Redacted Personal Information,Boarding - Out Fees
Peterborough City Council,People & Communities,Access to Resources & Specialist Commissioning,Schools,11/12/2019,8000156955,527.52,Revenue,Redacted Personal Information,Boarding - Out Fees
Peterborough City Council,People & Communities,Access to Resources & Specialist Commissioning,Schools,11/12/2019,8000156955,527.52,Revenue,Redacted Personal Information,Boarding - Out Fees
Peterborough City Council,People & Communities,Access to Resources & Specialist Commissioning,Schools,11/12/2019,8000156955,527.52,Revenue,Redacted Personal Information,Boarding - Out Fees
Peterborough City Council,People & Communities,Access to Resources & Specialist Commissioning,Schools,11/12/2019,8000156955,527.52,Revenue,Redacted Personal Information,Boarding - Out Fees
Peterborough City Council,People & Communities,Access to Resources & Specialist Commissioning,Schools,11/12/2019,8000156955,527.52,Revenue,Redacted Personal Information,Boarding - Out Fees
Peterborough City Council,People & Communities,Access to Resources & Specialist Commissioning,Schools,11/12/2019,8000156955,527.52,Revenue,Redacted Personal Information,Boarding - Out Fees
Peterborough City Council,People & Communities,Access to Resources & Specialist Commissioning,Schools,11/12/2019,8000156955,530.88,Revenue,Redacted Personal Information,Boarding - Out Fees
Peterborough City Council,People & Communities,Cultural Services,Energy Costs,11/12/2019,30255810,533.70,Revenue,Corona Energy Retail 4 Limited,Gas
Peterborough City Council,People & Communities,Cultural Services,Energy Costs,11/12/2019,30255810,533.70,Revenue,Corona Energy Retail 4 Limited,Gas
Peterborough City Council,People & Communities,Clare Lodge,Agency Staff,11/12/2019,30255051,539.22,Revenue,Reed Specialist Recruitment Limited,External Temporary Staff
Peterborough City Council,People & Communities,Cohesion,Public Transport,11/12/2019,30254837,540.00,Revenue,PARCA,Bus Fares
Peterborough City Council,People & Communities,Access to Resources & Specialist Commissioning,Schools,11/12/2019,8000156955,545.88,Revenue,Redacted Personal Information,Boarding - Out Fees
Peterborough City Council,People & Communities,Access to Resources & Specialist Commissioning,Schools,11/12/2019,8000156955,545.88,Revenue,Redacted Personal Information,Boarding - Out Fees
Peterborough City Council,People & Communities,Access to Resources & Specialist Commissioning,Schools,11/12/2019,8000156955,545.88,Revenue,Redacted Personal Information,Boarding - Out Fees
Peterborough City Council,People & Communities,HTS & CSC Transport,Contract Hire and Operating Leases,11/12/2019,30254254,550.80,Revenue,Mayfair Cars Northampton Ltd,Hired Transport
Peterborough City Council,People & Communities,Cultural Services,Energy Costs,11/12/2019,30255810,551.49,Revenue,Corona Energy Retail 4 Limited,Gas
Peterborough City Council,People & Communities,Cultural Services,Energy Costs,11/12/2019,30255810,551.49,Revenue,Corona Energy Retail 4 Limited,Gas
Peterborough City Council,People & Communities,Cultural Services,Energy Costs,11/12/2019,30255810,551.49,Revenue,Corona Energy Retail 4 Limited,Gas
Peterborough City Council,People & Communities,Cultural Services,Energy Costs,11/12/2019,30255810,551.49,Revenue,Corona Energy Retail 4 Limited,Gas
Peterborough City Council,People & Communities,Cultural Services,Energy Costs,11/12/2019,30255810,551.49,Revenue,Corona Energy Retail 4 Limited,Gas
Peterborough City Council,People & Communities,Cultural Services,Energy Costs,11/12/2019,30255856,551.49,Revenue,Corona Energy Retail 4 Limited,Gas
Peterborough City Council,People & Communities,Access to Resources & Specialist Commissioning,Schools,11/12/2019,8000156955,552.44,Revenue,Redacted Personal Information,Boarding - Out Fees
Peterborough City Council,Place & Economy,Transport & Infrastructure Commissioning,Energy Costs,11/12/2019,30255902,554.03,Revenue,British Gas Business,Electricity
Peterborough City Council,People & Communities,Access to Resources & Specialist Commissioning,Schools,11/12/2019,8000156955,556.64,Revenue,Redacted Personal Information,Boarding - Out Fees
Peterborough City Council,People & Communities,Independent Sector Placements,Services,11/12/2019,8000156779,568.12,Revenue,Cross Keys Homes,Respite Care
Peterborough City Council,People & Communities,Access to Resources & Specialist Commissioning,Schools,11/12/2019,8000156955,571.59,Revenue,Redacted Personal Information,Boarding - Out Fees
Peterborough City Council,People & Communities,External Education Placements,Services,11/12/2019,30255714,581.80,Revenue,Stretton Pre-School,Out Of Area Education Costs
Peterborough City Council,People & Communities,Access to Resources & Specialist Commissioning,Schools,11/12/2019,8000156955,584.08,Revenue,Redacted Personal Information,Boarding - Out Fees
Peterborough City Council,People & Communities,Access to Resources & Specialist Commissioning,Schools,11/12/2019,8000156955,584.08,Revenue,Redacted Personal Information,Boarding - Out Fees
Peterborough City Council,People & Communities,Access to Resources & Specialist Commissioning,Schools,11/12/2019,8000156955,584.08,Revenue,Redacted Personal Information,Boarding - Out Fees
Peterborough City Council,People & Communities,Access to Resources & Specialist Commissioning,Schools,11/12/2019,8000156955,584.08,Revenue,Redacted Personal Information,Boarding - Out Fees
Peterborough City Council,People & Communities,Access to Resources & Specialist Commissioning,Schools,11/12/2019,8000156955,584.08,Revenue,Redacted Personal Information,Boarding - Out Fees
Peterborough City Council,People & Communities,Access to Resources & Specialist Commissioning,Schools,11/12/2019,8000156955,584.08,Revenue,Redacted Personal Information,Boarding - Out Fees
Peterborough City Council,People & Communities,Access to Resources & Specialist Commissioning,Schools,11/12/2019,8000156955,584.08,Revenue,Redacted Personal Information,Boarding - Out Fees
Peterborough City Council,People & Communities,Access to Resources & Specialist Commissioning,Schools,11/12/2019,8000156955,584.08,Revenue,Redacted Personal Information,Boarding - Out Fees
Peterborough City Council,People & Communities,Access to Resources & Specialist Commissioning,Schools,11/12/2019,8000156955,584.08,Revenue,Redacted Personal Information,Boarding - Out Fees
Peterborough City Council,People & Communities,Access to Resources & Specialist Commissioning,Schools,11/12/2019,8000156955,584.08,Revenue,Redacted Personal Information,Boarding - Out Fees
Peterborough City Council,People & Communities,Access to Resources & Specialist Commissioning,Schools,11/12/2019,8000156955,584.08,Revenue,Redacted Personal Information,Boarding - Out Fees
Peterborough City Council,People & Communities,Access to Resources & Specialist Commissioning,Schools,11/12/2019,8000156955,584.08,Revenue,Redacted Personal Information,Boarding - Out Fees
Peterborough City Council,People & Communities,Access to Resources & Specialist Commissioning,Schools,11/12/2019,8000156955,584.08,Revenue,Redacted Personal Information,Boarding - Out Fees
Peterborough City Council,People & Communities,Access to Resources & Specialist Commissioning,Schools,11/12/2019,8000156955,584.08,Revenue,Redacted Personal Information,Boarding - Out Fees
Peterborough City Council,People & Communities,Access to Resources & Specialist Commissioning,Schools,11/12/2019,8000156955,584.08,Revenue,Redacted Personal Information,Boarding - Out Fees
Peterborough City Council,People & Communities,Access to Resources & Specialist Commissioning,Schools,11/12/2019,8000156955,584.08,Revenue,Redacted Personal Information,Boarding - Out Fees
Peterborough City Council,People & Communities,Access to Resources & Specialist Commissioning,Schools,11/12/2019,8000156955,584.08,Revenue,Redacted Personal Information,Boarding - Out Fees
Peterborough City Council,People & Communities,Access to Resources & Specialist Commissioning,Schools,11/12/2019,8000156955,584.08,Revenue,Redacted Personal Information,Boarding - Out Fees
Peterborough City Council,People & Communities,Access to Resources & Specialist Commissioning,Schools,11/12/2019,8000156955,584.08,Revenue,Redacted Personal Information,Boarding - Out Fees
Peterborough City Council,People & Communities,Access to Resources & Specialist Commissioning,Schools,11/12/2019,8000156955,584.08,Revenue,Redacted Personal Information,Boarding - Out Fees
Peterborough City Council,People & Communities,Access to Resources & Specialist Commissioning,Schools,11/12/2019,8000156955,584.08,Revenue,Redacted Personal Information,Boarding - Out Fees
Peterborough City Council,People & Communities,Access to Resources & Specialist Commissioning,Schools,11/12/2019,8000156955,584.08,Revenue,Redacted Personal Information,Boarding - Out Fees
Peterborough City Council,People & Communities,Access to Resources & Specialist Commissioning,Schools,11/12/2019,8000156955,584.08,Revenue,Redacted Personal Information,Boarding - Out Fees
Peterborough City Council,People & Communities,Access to Resources & Specialist Commissioning,Schools,11/12/2019,8000156955,584.08,Revenue,Redacted Personal Information,Boarding - Out Fees
Peterborough City Council,People & Communities,Access to Resources & Specialist Commissioning,Schools,11/12/2019,8000156955,584.08,Revenue,Redacted Personal Information,Boarding - Out Fees
Peterborough City Council,People & Communities,Access to Resources & Specialist Commissioning,Schools,11/12/2019,8000156955,584.08,Revenue,Redacted Personal Information,Boarding - Out Fees
Peterborough City Council,People & Communities,Therapy/Reablement/Community Equipment,"Tools, Equipment, Furniture & Materials",11/12/2019,30255973,585.00,Revenue,Casbon Building Services,Occupational Therapy Equipment
Peterborough City Council,People & Communities,Clare Lodge,Agency Staff,11/12/2019,30255498,585.09,Revenue,Randstad Care Ltd,External Temporary Staff
Peterborough City Council,People & Communities,Access to Resources & Specialist Commissioning,Schools,11/12/2019,8000156955,585.62,Revenue,Redacted Personal Information,Boarding - Out Fees
Peterborough City Council,People & Communities,Strategic Commissioning - Management,Agency Staff,11/12/2019,30255059,587.10,Revenue,Reed Specialist Recruitment Limited,External Temporary Staff
Peterborough City Council,People & Communities,Independent Sector Placements,Services,11/12/2019,8000155038,599.76,Revenue,Longhurst Group Limited,Homecare
Peterborough City Council,People & Communities,Independent Sector Placements,Services,11/12/2019,8000155042,599.76,Revenue,Longhurst Group Limited,Homecare
Peterborough City Council,Place & Economy,Network and Traffic Management,Services,11/12/2019,30254733,603.48,Revenue,JPIMedia Publishing Ltd,Advertising
Peterborough City Council,Place & Economy,Network and Traffic Management,Services,11/12/2019,30254735,603.48,Revenue,JPIMedia Publishing Ltd,Advertising
Peterborough City Council,Place & Economy,Network and Traffic Management,Services,11/12/2019,30254741,603.48,Revenue,JPIMedia Publishing Ltd,Advertising
Peterborough City Council,Place & Economy,Network and Traffic Management,Services,11/12/2019,30254743,603.48,Revenue,JPIMedia Publishing Ltd,Advertising
Peterborough City Council,People & Communities,Access to Resources & Specialist Commissioning,Schools,11/12/2019,8000156955,613.62,Revenue,Redacted Personal Information,Boarding - Out Fees
Peterborough City Council,People & Communities,Clare Lodge,Agency Staff,11/12/2019,30255033,614.90,Revenue,Reed Specialist Recruitment Limited,External Temporary Staff
Peterborough City Council,People & Communities,Clare Lodge,Agency Staff,11/12/2019,30254063,619.63,Revenue,Reed Specialist Recruitment Limited,External Temporary Staff
Peterborough City Council,People & Communities,Clare Lodge,Agency Staff,11/12/2019,30254066,619.63,Revenue,Reed Specialist Recruitment Limited,External Temporary Staff
Peterborough City Council,People & Communities,Clare Lodge,Agency Staff,11/12/2019,30252235,624.36,Revenue,Reed Specialist Recruitment Limited,External Temporary Staff
Peterborough City Council,People & Communities,Access to Resources & Specialist Commissioning,Schools,11/12/2019,8000156955,627.06,Revenue,Redacted Personal Information,Boarding - Out Fees
Peterborough City Council,People & Communities,Access to Resources & Specialist Commissioning,Schools,11/12/2019,8000156955,627.06,Revenue,Redacted Personal Information,Boarding - Out Fees
Peterborough City Council,People & Communities,Access to Resources & Specialist Commissioning,Schools,11/12/2019,8000156955,627.06,Revenue,Redacted Personal Information,Boarding - Out Fees
Peterborough City Council,People & Communities,Access to Resources & Specialist Commissioning,Schools,11/12/2019,8000156955,627.06,Revenue,Redacted Personal Information,Boarding - Out Fees
Peterborough City Council,People & Communities,Access to Resources & Specialist Commissioning,Schools,11/12/2019,8000156955,627.06,Revenue,Redacted Personal Information,Boarding - Out Fees
Peterborough City Council,People & Communities,Access to Resources & Specialist Commissioning,Schools,11/12/2019,8000156955,627.06,Revenue,Redacted Personal Information,Boarding - Out Fees
Peterborough City Council,People & Communities,Access to Resources & Specialist Commissioning,Schools,11/12/2019,8000156955,627.06,Revenue,Redacted Personal Information,Boarding - Out Fees
Peterborough City Council,People & Communities,Access to Resources & Specialist Commissioning,Schools,11/12/2019,8000156955,627.06,Revenue,Redacted Personal Information,Boarding - Out Fees
Peterborough City Council,People & Communities,Access to Resources & Specialist Commissioning,Schools,11/12/2019,8000156955,627.06,Revenue,Redacted Personal Information,Boarding - Out Fees
Peterborough City Council,People & Communities,Access to Resources & Specialist Commissioning,Schools,11/12/2019,8000156955,628.95,Revenue,Redacted Personal Information,Boarding - Out Fees
Peterborough City Council,Place & Economy,"Markets, Tourism & Events",Services,11/12/2019,30252640,630.00,Revenue,Chapter of Peterborough Cathedral,Tickets
Peterborough City Council,People & Communities,Access to Resources & Specialist Commissioning,Schools,11/12/2019,8000156955,632.38,Revenue,Redacted Personal Information,Boarding - Out Fees
Peterborough City Council,People & Communities,Clare Lodge,Agency Staff,11/12/2019,30255038,638.55,Revenue,Reed Specialist Recruitment Limited,External Temporary Staff
Peterborough City Council,People & Communities,Access to Resources & Specialist Commissioning,Schools,11/12/2019,8000156955,646.16,Revenue,Redacted Personal Information,Boarding - Out Fees
Peterborough City Council,People & Communities,Access to Resources & Specialist Commissioning,Schools,11/12/2019,8000156955,646.16,Revenue,Redacted Personal Information,Boarding - Out Fees
Peterborough City Council,People & Communities,Clare Lodge,Agency Staff,11/12/2019,30253090,648.01,Revenue,Reed Specialist Recruitment Limited,External Temporary Staff
Peterborough City Council,People & Communities,Clare Lodge,Agency Staff,11/12/2019,30253093,648.01,Revenue,Reed Specialist Recruitment Limited,External Temporary Staff
Peterborough City Council,People & Communities,Special Educational Needs / Inclusion,Services,11/12/2019,30255888,650.00,Revenue,Send Education,Conferences
Peterborough City Council,Governance,Legal Services,Services,11/12/2019,30255151,650.00,Revenue,"Elliott, Ms Margot",Legal Costs
Peterborough City Council,Resources,Bereavement Service,"Tools, Equipment, Furniture & Materials",11/12/2019,30255967,650.00,Revenue,Nene Engineering (Peterborough) Ltd,Memorials
Peterborough City Council,People & Communities,Access to Resources & Specialist Commissioning,Schools,11/12/2019,8000156955,650.55,Revenue,Redacted Personal Information,Boarding - Out Fees
Peterborough City Council,People & Communities,Independent Sector Placements,Services,11/12/2019,8000156744,658.33,Revenue,Hales Group Ltd,Homecare
Peterborough City Council,People & Communities,Independent Sector Placements,Services,11/12/2019,8000156784,658.33,Revenue,Hales Group Ltd,Homecare
Peterborough City Council,People & Communities,Independent Sector Placements,Services,11/12/2019,8000155032,660.96,Revenue,Longhurst Group Limited,Homecare
Peterborough City Council,People & Communities,Access to Resources & Specialist Commissioning,Schools,11/12/2019,8000156955,663.95,Revenue,Redacted Personal Information,Boarding - Out Fees
Peterborough City Council,People & Communities,Clare Lodge,Agency Staff,11/12/2019,30255039,679.05,Revenue,Reed Specialist Recruitment Limited,External Temporary Staff
Peterborough City Council,Customer & Digital Services,ICT,Agency Staff,11/12/2019,30254897,681.17,Revenue,Reed Specialist Recruitment Limited,External Temporary Staff
Peterborough City Council,People & Communities,Independent Sector Placements,Services,11/12/2019,8000155035,685.44,Revenue,Longhurst Group Limited,Homecare
Peterborough City Council,People & Communities,Independent Sector Placements,Services,11/12/2019,8000155046,685.44,Revenue,Longhurst Group Limited,Homecare
Peterborough City Council,People & Communities,Independent Sector Placements,Services,11/12/2019,8000155047,685.44,Revenue,Longhurst Group Limited,Homecare
Peterborough City Council,People & Communities,Access to Resources & Specialist Commissioning,Schools,11/12/2019,8000156955,691.95,Revenue,Redacted Personal Information,Boarding - Out Fees
Peterborough City Council,People & Communities,Clare Lodge,Agency Staff,11/12/2019,30254050,698.53,Revenue,Reed Specialist Recruitment Limited,External Temporary Staff
Peterborough City Council,People & Communities,Independent Sector Placements,Services,11/12/2019,30256030,703.35,Revenue,Atlas Care Services Ltd,Homecare
Peterborough City Council,People & Communities,Clare Lodge,Agency Staff,11/12/2019,30255497,709.20,Revenue,Randstad Care Ltd,External Temporary Staff
Peterborough City Council,People & Communities,Independent Sector Placements,Services,11/12/2019,30256029,717.10,Revenue,Atlas Care Services Ltd,Homecare
Peterborough City Council,People & Communities,Access to Resources & Specialist Commissioning,Schools,11/12/2019,8000156955,726.88,Revenue,Redacted Personal Information,Boarding - Out Fees
Peterborough City Council,People & Communities,Access to Resources & Specialist Commissioning,Schools,11/12/2019,8000156955,726.88,Revenue,Redacted Personal Information,Boarding - Out Fees
Peterborough City Council,People & Communities,Access to Resources & Specialist Commissioning,Schools,11/12/2019,8000156955,746.55,Revenue,Redacted Personal Information,Boarding - Out Fees
Peterborough City Council,People & Communities,Special Educational Needs / Inclusion,Services,11/12/2019,30255728,752.59,Revenue,Children�s Therapy Solutions Ltd,Occupational Health
Peterborough City Council,Resources,Bereavement Service,Repair & Maintenance of Buildings,11/12/2019,30255931,760.00,Revenue,JAT Ingledew,Infrastructure
Peterborough City Council,Place & Economy,Westcombe Engineering,Services,11/12/2019,30253521,779.39,Revenue,AALCO,Materials
Peterborough City Council,People & Communities,Access to Resources & Specialist Commissioning,Schools,11/12/2019,8000156955,788.69,Revenue,Redacted Personal Information,Boarding - Out Fees
Peterborough City Council,People & Communities,Access to Resources & Specialist Commissioning,Schools,11/12/2019,8000156955,791.49,Revenue,Redacted Personal Information,Boarding - Out Fees
Peterborough City Council,People & Communities,Access to Resources & Specialist Commissioning,Schools,11/12/2019,8000156955,792.96,Revenue,Redacted Personal Information,Boarding - Out Fees
Peterborough City Council,People & Communities,Access to Resources & Specialist Commissioning,Schools,11/12/2019,8000156955,792.96,Revenue,Redacted Personal Information,Boarding - Out Fees
Peterborough City Council,People & Communities,Access to Resources & Specialist Commissioning,Schools,11/12/2019,30255749,793.52,Revenue,Axiom Housing Association Ltd,Boarding - Out Fees
Peterborough City Council,People & Communities,Access to Resources & Specialist Commissioning,Schools,11/12/2019,8000156955,800.00,Revenue,Redacted Personal Information,Boarding - Out Fees
Peterborough City Council,People & Communities,Access to Resources & Specialist Commissioning,Schools,11/12/2019,8000156955,800.00,Revenue,Redacted Personal Information,Boarding - Out Fees
Peterborough City Council,People & Communities,Access to Resources & Specialist Commissioning,Schools,11/12/2019,8000156955,800.00,Revenue,Redacted Personal Information,Boarding - Out Fees
Peterborough City Council,Governance,Legal Services,Services,11/12/2019,30255743,800.00,Revenue,Buckles Solicitors LLP,Legal Costs
Peterborough City Council,People & Communities,Early Years & Quality Improvement,Interview & Training Expenses,11/12/2019,30255011,800.00,Revenue,SwimBag Ltd,Training
Peterborough City Council,Chief Executives,HR WFD & Training,Interview & Training Expenses,11/12/2019,30255145,800.00,Revenue,In-Trac Training & Consultancy Services,Training
Peterborough City Council,People & Communities,Commissioning,Services,11/12/2019,30253579,803.00,Revenue,BDP Social Care Ltd,Hired Services
Peterborough City Council,People & Communities,Independent Sector Placements,Contract Hire and Operating Leases,11/12/2019,30255319,805.00,Revenue,Peterborough Cars,Hired Transport
Peterborough City Council,People & Communities,Access to Resources & Specialist Commissioning,Schools,11/12/2019,8000156955,806.12,Revenue,Redacted Personal Information,Boarding - Out Fees
Peterborough City Council,People & Communities,Access to Resources & Specialist Commissioning,Schools,11/12/2019,8000156955,806.12,Revenue,Redacted Personal Information,Boarding - Out Fees
Peterborough City Council,Place & Economy,Westcombe Engineering,Services,11/12/2019,30255490,811.44,Revenue,Eaton Ltd,Materials
Peterborough City Council,People & Communities,Access to Resources & Specialist Commissioning,Schools,11/12/2019,8000156955,812.88,Revenue,Redacted Personal Information,Boarding - Out Fees
Peterborough City Council,People & Communities,Clare Lodge,Agency Staff,11/12/2019,30254062,814.86,Revenue,Reed Specialist Recruitment Limited,External Temporary Staff
Peterborough City Council,People & Communities,Access to Resources & Specialist Commissioning,Schools,11/12/2019,30255708,819.00,Revenue,Transition Care Peterborough Ltd,Boarding - Out Fees
Peterborough City Council,People & Communities,Access to Resources & Specialist Commissioning,Schools,11/12/2019,8000156955,822.36,Revenue,Redacted Personal Information,Boarding - Out Fees
Peterborough City Council,People & Communities,Access to Resources & Specialist Commissioning,Schools,11/12/2019,8000156955,822.36,Revenue,Redacted Personal Information,Boarding - Out Fees
Peterborough City Council,People & Communities,HTS & CSC Transport,Contract Hire and Operating Leases,11/12/2019,8000156943,826.80,Revenue,ST Transport Solutions Ltd,Hired Transport
Peterborough City Council,People & Communities,Access to Resources & Specialist Commissioning,Schools,11/12/2019,8000156955,835.80,Revenue,Redacted Personal Information,Boarding - Out Fees
Peterborough City Council,People & Communities,Access to Resources & Specialist Commissioning,Schools,11/12/2019,8000156955,835.80,Revenue,Redacted Personal Information,Boarding - Out Fees
Peterborough City Council,People & Communities,Independent Sector Placements,Services,11/12/2019,30253484,838.56,Revenue,Park Vista Care Home,Respite Care
Peterborough City Council,People & Communities,Access to Resources & Specialist Commissioning,Schools,11/12/2019,8000156955,840.00,Revenue,Redacted Personal Information,Boarding - Out Fees
Peterborough City Council,People & Communities,Access to Resources & Specialist Commissioning,Schools,11/12/2019,8000156955,841.26,Revenue,Redacted Personal Information,Boarding - Out Fees
Peterborough City Council,People & Communities,Access to Resources & Specialist Commissioning,Schools,11/12/2019,8000156955,841.26,Revenue,Redacted Personal Information,Boarding - Out Fees
Peterborough City Council,People & Communities,Access to Resources & Specialist Commissioning,Schools,11/12/2019,8000156955,841.26,Revenue,Redacted Personal Information,Boarding - Out Fees
Peterborough City Council,People & Communities,Access to Resources & Specialist Commissioning,Schools,11/12/2019,8000156955,841.26,Revenue,Redacted Personal Information,Boarding - Out Fees
Peterborough City Council,People & Communities,Access to Resources & Specialist Commissioning,Schools,11/12/2019,8000156955,841.26,Revenue,Redacted Personal Information,Boarding - Out Fees
Peterborough City Council,People & Communities,Access to Resources & Specialist Commissioning,Schools,11/12/2019,8000156955,844.06,Revenue,Redacted Personal Information,Boarding - Out Fees
Peterborough City Council,People & Communities,Access to Resources & Specialist Commissioning,Schools,11/12/2019,8000156955,844.06,Revenue,Redacted Personal Information,Boarding - Out Fees
Peterborough City Council,People & Communities,Access to Resources & Specialist Commissioning,Schools,11/12/2019,8000156955,844.06,Revenue,Redacted Personal Information,Boarding - Out Fees
Peterborough City Council,People & Communities,Access to Resources & Specialist Commissioning,Schools,11/12/2019,8000156955,844.48,Revenue,Redacted Personal Information,Boarding - Out Fees
Peterborough City Council,Governance,Legal Services,Agency Staff,11/12/2019,30255938,844.80,Revenue,Reed Specialist Recruitment Limited,External Temporary Staff
Peterborough City Council,People & Communities,Access to Resources & Specialist Commissioning,Schools,11/12/2019,8000156955,844.90,Revenue,Redacted Personal Information,Boarding - Out Fees
Peterborough City Council,People & Communities,Access to Resources & Specialist Commissioning,Schools,11/12/2019,8000156955,851.48,Revenue,Redacted Personal Information,Boarding - Out Fees
Peterborough City Council,People & Communities,Access to Resources & Specialist Commissioning,Schools,11/12/2019,8000156955,854.28,Revenue,Redacted Personal Information,Boarding - Out Fees
Peterborough City Council,People & Communities,Access to Resources & Specialist Commissioning,Schools,11/12/2019,8000156955,854.28,Revenue,Redacted Personal Information,Boarding - Out Fees
Peterborough City Council,People & Communities,Community Capacity,Energy Costs,11/12/2019,30256130,859.84,Revenue,British Gas Business,Electricity
Peterborough City Council,People & Communities,Clare Lodge,Agency Staff,11/12/2019,30254075,860.86,Revenue,Reed Specialist Recruitment Limited,External Temporary Staff
Peterborough City Council,People & Communities,Day opportunities - Older People,Catering,11/12/2019,30255390,862.10,Revenue,The Cresset (Peterborough) Ltd,Catering Provisions
Peterborough City Council,People & Communities,Access to Resources & Specialist Commissioning,Schools,11/12/2019,30254599,875.00,Revenue,Transition Care Peterborough Ltd,Boarding - Out Fees
Peterborough City Council,People & Communities,Access to Resources & Specialist Commissioning,Schools,11/12/2019,30255705,875.00,Revenue,Transition Care Peterborough Ltd,Boarding - Out Fees
Peterborough City Council,People & Communities,Clare Lodge,Agency Staff,11/12/2019,30255040,879.78,Revenue,Reed Specialist Recruitment Limited,External Temporary Staff
Peterborough City Council,People & Communities,Access to Resources & Specialist Commissioning,Schools,11/12/2019,8000156955,882.42,Revenue,Redacted Personal Information,Boarding - Out Fees
Peterborough City Council,People & Communities,Independent Sector Placements,Services,11/12/2019,8000156739,882.84,Revenue,Hales Group Ltd,Homecare
Peterborough City Council,People & Communities,Independent Sector Placements,Services,11/12/2019,8000156745,882.84,Revenue,Hales Group Ltd,Homecare
Peterborough City Council,People & Communities,Access to Resources & Specialist Commissioning,Schools,11/12/2019,8000156955,909.86,Revenue,Redacted Personal Information,Boarding - Out Fees
Peterborough City Council,People & Communities,Access to Resources & Specialist Commissioning,Schools,11/12/2019,8000156955,909.86,Revenue,Redacted Personal Information,Boarding - Out Fees
Peterborough City Council,People & Communities,Access to Resources & Specialist Commissioning,Schools,11/12/2019,8000156955,909.86,Revenue,Redacted Personal Information,Boarding - Out Fees
Peterborough City Council,People & Communities,Access to Resources & Specialist Commissioning,Schools,11/12/2019,8000156955,909.86,Revenue,Redacted Personal Information,Boarding - Out Fees
Peterborough City Council,People & Communities,Clare Lodge,Agency Staff,11/12/2019,30255043,917.62,Revenue,Reed Specialist Recruitment Limited,External Temporary Staff
Peterborough City Council,People & Communities,Independent Sector Placements,Services,11/12/2019,8000155041,918.00,Revenue,Longhurst Group Limited,Homecare
Peterborough City Council,People & Communities,Clare Lodge,Agency Staff,11/12/2019,30255727,923.75,Revenue,Service Care Solutions Ltd,External Temporary Staff
Peterborough City Council,People & Communities,Independent Sector Placements,Contract Hire and Operating Leases,11/12/2019,30255318,924.12,Revenue,Peterborough Cars,Hired Transport
Peterborough City Council,People & Communities,Cultural Services,Services,11/12/2019,30255297,950.00,Revenue,W H Fowler & Son (Coaches) Ltd,Hired Services
Peterborough City Council,People & Communities,Access to Resources & Specialist Commissioning,Schools,11/12/2019,8000156955,970.06,Revenue,Redacted Personal Information,Boarding - Out Fees
Peterborough City Council,People & Communities,Therapy/Reablement/Community Equipment,Interview & Training Expenses,11/12/2019,30255261,971.55,Revenue,Sensory Integration Network,Training
Peterborough City Council,People & Communities,Independent Sector Placements,Services,11/12/2019,8000155039,979.20,Revenue,Longhurst Group Limited,Homecare
Peterborough City Council,People & Communities,Access to Resources & Specialist Commissioning,Schools,11/12/2019,8000156955,981.68,Revenue,Redacted Personal Information,Boarding - Out Fees
Peterborough City Council,People & Communities,Access to Resources & Specialist Commissioning,Schools,11/12/2019,8000156955,981.68,Revenue,Redacted Personal Information,Boarding - Out Fees
Peterborough City Council,People & Communities,Access to Resources & Specialist Commissioning,Schools,11/12/2019,8000156955,981.68,Revenue,Redacted Personal Information,Boarding - Out Fees
Peterborough City Council,Governance,Legal Services,Agency Staff,11/12/2019,30256182,990.00,Revenue,Fiona Spinks,External Temporary Staff
Peterborough City Council,People & Communities,Early Years & Quality Improvement,Interview & Training Expenses,11/12/2019,30254242,991.43,Revenue,Early Education,Training
Peterborough City Council,Governance,Elections,"Printing, Stationery & General Office Expenses",11/12/2019,30255018,1014.00,Revenue,Shaw & Sons Ltd,Stationery
Peterborough City Council,Governance,Elections,"Printing, Stationery & General Office Expenses",11/12/2019,30255018,1014.00,Revenue,Shaw & Sons Ltd,Stationery
Peterborough City Council,People & Communities,Access to Resources & Specialist Commissioning,Schools,11/12/2019,8000156955,1029.98,Revenue,Redacted Personal Information,Boarding - Out Fees
Peterborough City Council,People & Communities,Independent Sector Placements,Services,11/12/2019,30255733,1057.16,Revenue,Avery House (Peterborough) t/a Brighterkind,Residential Care
Peterborough City Council,Resources,Commercial Propety,Repair & Maintenance of Buildings,11/12/2019,30253547,1060.00,Revenue,Smooth Removals,Other Occupancy Costs
Peterborough City Council,Place & Economy,Highway & Drainage Control,Agency Staff,11/12/2019,30255946,1068.80,Revenue,Reed Specialist Recruitment Limited,External Temporary Staff
Peterborough City Council,Place & Economy,Building Control,Agency Staff,11/12/2019,30255592,1075.05,Revenue,Reed Specialist Recruitment Limited,External Temporary Staff
Peterborough City Council,Place & Economy,Building Control,Agency Staff,11/12/2019,30255593,1075.05,Revenue,Reed Specialist Recruitment Limited,External Temporary Staff
Peterborough City Council,Place & Economy,Building Control,Agency Staff,11/12/2019,30255598,1075.05,Revenue,Reed Specialist Recruitment Limited,External Temporary Staff
Peterborough City Council,People & Communities,Independent Sector Placements,Services,11/12/2019,30254593,1111.48,Revenue,Goldcare Homes t/a The Tudors Care Home,Residential Care
Peterborough City Council,People & Communities,Independent Sector Placements,Services,11/12/2019,30255366,1136.00,Revenue,Voyage 1 Limited,Homecare
Peterborough City Council,Place & Economy,Transport & Infrastructure Commissioning,Other Establishments,11/12/2019,30250134,1136.50,Revenue,Royal Voluntary Service,Grant-Third Party
Peterborough City Council,People & Communities,Access to Resources & Specialist Commissioning,Schools,11/12/2019,30255750,1148.94,Revenue,Axiom Housing Association Ltd,Boarding - Out Fees
Peterborough City Council,People & Communities,Access to Resources & Specialist Commissioning,Schools,11/12/2019,30254597,1150.03,Revenue,Transition Care Peterborough Ltd,Boarding - Out Fees
Peterborough City Council,People & Communities,Access to Resources & Specialist Commissioning,Schools,11/12/2019,30254602,1150.03,Revenue,Transition Care Peterborough Ltd,Boarding - Out Fees
Peterborough City Council,People & Communities,Access to Resources & Specialist Commissioning,Schools,11/12/2019,30255694,1150.03,Revenue,Transition Care Peterborough Ltd,Boarding - Out Fees
Peterborough City Council,People & Communities,Access to Resources & Specialist Commissioning,Schools,11/12/2019,30255706,1150.03,Revenue,Transition Care Peterborough Ltd,Boarding - Out Fees
Peterborough City Council,People & Communities,Access to Resources & Specialist Commissioning,Schools,11/12/2019,30255712,1150.03,Revenue,Transition Care Peterborough Ltd,Boarding - Out Fees
Peterborough City Council,People & Communities,Targeted Youth Service,Services,11/12/2019,30255270,1182.67,Revenue,Thomas Deacon Academy,Property Maintenance
Peterborough City Council,People & Communities,Early Years & Quality Improvement,Services,11/12/2019,30255233,1183.00,Revenue,South Bretton Pre School,Grant Payment
Peterborough City Council,People & Communities,Independent Sector Placements,Services,11/12/2019,30246807,1234.76,Revenue,The Regard Partnership Limited,Residential Care
Peterborough City Council,Place & Economy,Highway & Drainage Control,Agency Staff,11/12/2019,30255921,1235.80,Revenue,Reed Specialist Recruitment Limited,External Temporary Staff
Peterborough City Council,Chief Executives,HR,Advertising,11/12/2019,30253798,1247.30,Revenue,TMP (UK) LTD,Recruitment Advertising
Peterborough City Council,Place & Economy,"Markets, Tourism & Events",Services,11/12/2019,30255291,1250.00,Revenue,Perfect Motion,Conferences
Peterborough City Council,People & Communities,Access to Resources & Specialist Commissioning,Schools,11/12/2019,30255672,1278.85,Revenue,PCH Integration Services Ltd,Boarding - Out Fees
Peterborough City Council,People & Communities,Independent Sector Placements,Services,11/12/2019,30255285,1300.00,Revenue,LAVENDER HOUSE RESIDENTIAL HOME,Temporary Accommodation Costs
Peterborough City Council,Governance,Legal Services,Agency Staff,11/12/2019,30255933,1313.55,Revenue,Reed Specialist Recruitment Limited,External Temporary Staff
Peterborough City Council,People & Communities,HTS & CSC Transport,Contract Hire and Operating Leases,11/12/2019,8000156925,1320.00,Revenue,A2B Euro Cars,Hired Transport
Peterborough City Council,People & Communities,Mental Capacity Act & DoLs,Services,11/12/2019,30255306,1344.52,Revenue,Redacted Personal Information,Miscellaneous
Peterborough City Council,Place & Economy,Development Management,Agency Staff,11/12/2019,30254902,1365.01,Revenue,Reed Specialist Recruitment Limited,External Temporary Staff
Peterborough City Council,People & Communities,Access to Resources & Specialist Commissioning,Schools,11/12/2019,8000156955,1372.00,Revenue,Redacted Personal Information,Boarding - Out Fees
Peterborough City Council,People & Communities,Access to Resources & Specialist Commissioning,Schools,11/12/2019,8000156955,1400.00,Revenue,Redacted Personal Information,Boarding - Out Fees
Peterborough City Council,People & Communities,Access to Resources & Specialist Commissioning,Schools,11/12/2019,8000156955,1400.00,Revenue,Redacted Personal Information,Boarding - Out Fees
Peterborough City Council,People & Communities,Access to Resources & Specialist Commissioning,Schools,11/12/2019,30255669,1444.28,Revenue,PCH Integration Services Ltd,Boarding - Out Fees
Peterborough City Council,Governance,Legal Services,Agency Staff,11/12/2019,30255912,1464.60,Revenue,Reed Specialist Recruitment Limited,External Temporary Staff
Peterborough City Council,Place & Economy,Highway & Drainage Control,Agency Staff,11/12/2019,30255920,1486.31,Revenue,Reed Specialist Recruitment Limited,External Temporary Staff
Peterborough City Council,People & Communities,Independent Sector Placements,Services,11/12/2019,30254595,1525.46,Revenue,Goldcare Homes t/a The Tudors Care Home,Residential Care
Peterborough City Council,People & Communities,Independent Sector Placements,Services,11/12/2019,8000155031,1542.24,Revenue,Longhurst Group Limited,Homecare
Peterborough City Council,People & Communities,Independent Sector Placements,Services,11/12/2019,30255156,1546.29,Revenue,Cambridgeshire County Council,Daycare
Peterborough City Council,People & Communities,Clare Lodge,Agency Staff,11/12/2019,30254049,1559.40,Revenue,Reed Specialist Recruitment Limited,External Temporary Staff
Peterborough City Council,People & Communities,Access to Resources & Specialist Commissioning,Schools,11/12/2019,8000156955,1600.00,Revenue,Redacted Personal Information,Boarding - Out Fees
Peterborough City Council,Resources,Strategic Projects,Services,11/12/2019,30254906,1600.00,Revenue,Eddisons Commercial Ltd t/a Barker Storey Matthews,Consultants Fees
Peterborough City Council,People & Communities,Independent Sector Placements,Services,11/12/2019,30255734,1619.84,Revenue,Avery House (Peterborough) t/a Brighterkind,Residential Care
Peterborough City Council,People & Communities,Independent Sector Placements,Services,11/12/2019,8000155033,1627.92,Revenue,Longhurst Group Limited,Homecare
Peterborough City Council,Place & Economy,Planning Compliance,Agency Staff,11/12/2019,30255086,1637.70,Revenue,Park Avenue Recruitment Limited,External Temporary Staff
Peterborough City Council,People & Communities,Access to Resources & Specialist Commissioning,Schools,11/12/2019,30255666,1691.14,Revenue,PCH Integration Services Ltd,Boarding - Out Fees
Peterborough City Council,People & Communities,Access to Resources & Specialist Commissioning,Schools,11/12/2019,30255667,1691.14,Revenue,PCH Integration Services Ltd,Boarding - Out Fees
Peterborough City Council,Place & Economy,"Markets, Tourism & Events",Services,11/12/2019,30249654,1717.00,Revenue,Anna�s Hope,Conferences
Peterborough City Council,People & Communities,HTS & CSC Transport,Contract Hire and Operating Leases,11/12/2019,8000156938,1764.00,Revenue,Goldstar Cabs Ltd,Hired Transport
Peterborough City Council,People & Communities,Early Years & Quality Improvement,Services,11/12/2019,30255357,1774.50,Revenue,Queen Katherine Academy Nursery,Grant Payment
Peterborough City Council,Business Improvement,Programme Management Office,Agency Staff,11/12/2019,30255044,1788.86,Revenue,Reed Specialist Recruitment Limited,External Temporary Staff
Peterborough City Council,People & Communities,Independent Sector Placements,Services,11/12/2019,30255527,1822.32,Revenue,Ashmere,Residential Care
Peterborough City Council,People & Communities,Independent Sector Placements,Services,11/12/2019,30255630,1822.32,Revenue,Ashmere,Residential Care
Peterborough City Council,Resources,Bereavement Service,Repair & Maintenance of Buildings,11/12/2019,30255931,1827.00,Revenue,JAT Ingledew,Infrastructure
Peterborough City Council,Governance,Legal Services,Agency Staff,11/12/2019,30252820,1887.00,Revenue,Venn Group Ltd,External Temporary Staff
Peterborough City Council,People & Communities,HTS & CSC Transport,Contract Hire and Operating Leases,11/12/2019,8000156933,1889.00,Revenue,Goldstar Cabs Ltd,Hired Transport
Peterborough City Council,People & Communities,HTS & CSC Transport,Contract Hire and Operating Leases,11/12/2019,8000156924,1980.00,Revenue,A2B Euro Cars,Hired Transport
Peterborough City Council,Governance,Legal Services,Agency Staff,11/12/2019,30255253,2025.38,Revenue,Reed Specialist Recruitment Limited,External Temporary Staff
Peterborough City Council,Governance,Legal Services,Agency Staff,11/12/2019,30252822,2035.00,Revenue,Venn Group Ltd,External Temporary Staff
Peterborough City Council,Governance,Legal Services,Agency Staff,11/12/2019,30253127,2062.50,Revenue,Venn Group Ltd,External Temporary Staff
Peterborough City Council,People & Communities,Independent Sector Placements,Services,11/12/2019,30253489,2150.60,Revenue,HEREWARD CARE SERVICES LIMITED,Residential Care
Peterborough City Council,People & Communities,Children�s Social Care,Agency Staff,11/12/2019,30256181,2229.07,Revenue,Service Care Solutions Ltd,External Temporary Staff
Peterborough City Council,People & Communities,Commissioning Team,Agency Staff,11/12/2019,30255949,2243.60,Revenue,Reed Specialist Recruitment Limited,External Temporary Staff
Peterborough City Council,People & Communities,Independent Sector Placements,Services,11/12/2019,30254583,2250.00,Revenue,BROADLEIGH NURSING HOME,Residential Care
Peterborough City Council,People & Communities,Housing,Services,11/12/2019,30255886,2275.00,Revenue,Singh and Sons Property Management Ltd,Temporary Accommodation Costs
Peterborough City Council,People & Communities,Commissioning,Services,11/12/2019,30255088,2282.25,Revenue,Carter Brown The Expert Service Limited,Hired Services
Peterborough City Council,People & Communities,Clare Lodge,Services,11/12/2019,30255289,2300.00,Revenue,Redacted Personal Information ,Hired Services
Peterborough City Council,People & Communities,Independent Sector Placements,Services,11/12/2019,8000155036,2399.04,Revenue,Longhurst Group Limited,Homecare
Peterborough City Council,Place & Economy,Development Management,Agency Staff,11/12/2019,30255056,2459.20,Revenue,Reed Specialist Recruitment Limited,External Temporary Staff
Peterborough City Council,People & Communities,HTS & CSC Transport,Contract Hire and Operating Leases,11/12/2019,8000156935,2475.00,Revenue,Goldstar Cabs Ltd,Hired Transport
Peterborough City Council,People & Communities,Independent Sector Placements,Services,11/12/2019,30255149,2515.80,Revenue,PRIME LIFE LTD (Caenarvon House),Residential Care
Peterborough City Council,People & Communities,Clare Lodge,Agency Staff,11/12/2019,30255727,2559.25,Revenue,Service Care Solutions Ltd,External Temporary Staff
Peterborough City Council,People & Communities,Independent Sector Placements,Services,11/12/2019,30255112,2575.00,Revenue,HC-One Oval Limited,Residential Care
Peterborough City Council,People & Communities,Independent Sector Placements,Services,11/12/2019,30253490,2585.80,Revenue,HEREWARD CARE SERVICES LIMITED,Residential Care
Peterborough City Council,People & Communities,Independent Sector Placements,Services,11/12/2019,30253488,2590.00,Revenue,HEREWARD CARE SERVICES LIMITED,Residential Care
Peterborough City Council,People & Communities,Housing,Services,11/12/2019,30255884,2600.00,Revenue,Singh and Sons Property Management Ltd,Temporary Accommodation Costs
Peterborough City Council,People & Communities,Special Educational Needs / Inclusion,Services,11/12/2019,30256214,2643.95,Revenue,Sonova UK Ltd,Street Cleansing
Peterborough City Council,People & Communities,Independent Sector Placements,Services,11/12/2019,30253487,2666.64,Revenue,HEREWARD CARE SERVICES LIMITED,Residential Care
Peterborough City Council,People & Communities,Independent Sector Placements,Services,11/12/2019,30253491,2677.32,Revenue,HEREWARD CARE SERVICES LIMITED,Residential Care
Peterborough City Council,Corporate,Corporate,Non Revenue,11/12/2019,30255918,2722.32,Capital,Reed Specialist Recruitment Limited,Consultants Fees
Peterborough City Council,People & Communities,Director,Services,11/12/2019,30255093,2724.62,Revenue,Suffolk County Council,Subscriptions
Peterborough City Council,People & Communities,Access to Resources & Specialist Commissioning,Schools,11/12/2019,30253556,2768.49,Revenue,Fostering Solutions Limited,Boarding - Out Fees
Peterborough City Council,People & Communities,Housing,Services,11/12/2019,30255885,2840.00,Revenue,Singh and Sons Property Management Ltd,Temporary Accommodation Costs
Peterborough City Council,People & Communities,Housing,Agency Staff,11/12/2019,30255723,2919.30,Revenue,Service Care Solutions Ltd,External Temporary Staff
Peterborough City Council,People & Communities,Housing,Agency Staff,11/12/2019,30256003,2919.30,Revenue,Service Care Solutions Ltd,External Temporary Staff
Peterborough City Council,People & Communities,Independent Sector Placements,Services,11/12/2019,30254584,3000.00,Revenue,BROADLEIGH NURSING HOME,Residential Care
Peterborough City Council,People & Communities,Independent Sector Placements,Services,11/12/2019,30255282,3000.00,Revenue,The Bancroft Residential Home Limited,Residential Care
Peterborough City Council,People & Communities,Parking Services,Services,11/12/2019,30256174,3067.40,Revenue,Flowbird Smart City UK Limited,Contractors
Peterborough City Council,People & Communities,Housing,Services,11/12/2019,30255887,3150.00,Revenue,Singh and Sons Property Management Ltd,Temporary Accommodation Costs
Peterborough City Council,People & Communities,Independent Sector Placements,Services,11/12/2019,30255110,3175.00,Revenue,HC-One Oval Limited,Residential Care
Peterborough City Council,People & Communities,Access to Resources & Specialist Commissioning,Schools,11/12/2019,30253555,3385.80,Revenue,Fostering Solutions Limited,Boarding - Out Fees
Peterborough City Council,People & Communities,Children�s Social Care,Agency Staff,11/12/2019,30256002,3404.00,Revenue,Swim Recruitment,External Temporary Staff
Peterborough City Council,People & Communities,Independent Sector Placements,Services,11/12/2019,30253486,3425.92,Revenue,HEREWARD CARE SERVICES LIMITED,Residential Care
Peterborough City Council,People & Communities,Access to Resources & Specialist Commissioning,Schools,11/12/2019,30253557,3427.20,Revenue,Fostering Solutions Limited,Boarding - Out Fees
Peterborough City Council,People & Communities,Access to Resources & Specialist Commissioning,Schools,11/12/2019,30253558,3427.20,Revenue,Fostering Solutions Limited,Boarding - Out Fees
Peterborough City Council,People & Communities,Access to Resources & Specialist Commissioning,Schools,11/12/2019,30255772,3432.63,Revenue,St Christopher�s Fellowship,Boarding - Out Fees
Peterborough City Council,People & Communities,Access to Resources & Specialist Commissioning,Schools,11/12/2019,30253559,3433.80,Revenue,Fostering Solutions Limited,Boarding - Out Fees
Peterborough City Council,People & Communities,Service Director - Adults & Communities,Other Establishments,11/12/2019,30255254,3445.57,Revenue,KingsGate Community Church,Grant-Third Party
Peterborough City Council,People & Communities,Independent Sector Placements,Services,11/12/2019,30255249,3458.76,Revenue,Cross Keys Homes,Homecare
Peterborough City Council,People & Communities,Access to Resources & Specialist Commissioning,Schools,11/12/2019,30253554,3492.90,Revenue,Fostering Solutions Limited,Boarding - Out Fees
Peterborough City Council,People & Communities,External Education Placements,Schools,11/12/2019,30255239,3585.00,Revenue,Kirkstone House School,Boarding - Out Fees
Peterborough City Council,People & Communities,Access to Resources & Specialist Commissioning,Schools,11/12/2019,30255776,3658.00,Revenue,Tree House Care Fostering Solutions Ltd,Boarding - Out Fees
Peterborough City Council,People & Communities,Therapy/Reablement/Community Equipment,Agency Staff,11/12/2019,30255895,3663.01,Revenue,Sanctuary Personnel Ltd,External Temporary Staff
Peterborough City Council,People & Communities,Cohesion,Other Establishments,11/12/2019,30255272,3685.00,Revenue,P�Boro Council For Voluntary Srvs (PCVS),Third Party Payments - Contract
Peterborough City Council,Corporate,Corporate,Non Revenue,11/12/2019,30255865,3730.13,Balance Sheet,NHS Pensions,Local Government Pension
Peterborough City Council,People & Communities,Access to Resources & Specialist Commissioning,Schools,11/12/2019,30253553,3882.56,Revenue,Fostering Solutions Limited,Boarding - Out Fees
Peterborough City Council,People & Communities,Access to Resources & Specialist Commissioning,Schools,11/12/2019,30253564,3882.56,Revenue,Fostering Solutions Limited,Boarding - Out Fees
Peterborough City Council,People & Communities,Housing,Agency Staff,11/12/2019,30256001,3892.40,Revenue,Service Care Solutions Ltd,External Temporary Staff
Peterborough City Council,People & Communities,Children�s Social Care,Agency Staff,11/12/2019,30255855,4084.80,Revenue,Swim Recruitment,External Temporary Staff
Peterborough City Council,People & Communities,Service Director - Adults & Communities,Other Establishments,11/12/2019,30255255,4265.21,Revenue,KingsGate Community Church,Grant-Third Party
Peterborough City Council,People & Communities,Access to Resources & Specialist Commissioning,Schools,11/12/2019,30251065,4394.88,Revenue,Nexus Fostering Ltd,Boarding - Out Fees
Peterborough City Council,People & Communities,Special Educational Needs / Inclusion,Services,11/12/2019,30256212,4629.79,Revenue,Sonova UK Ltd,Street Cleansing
Peterborough City Council,People & Communities,PFI,Services,11/12/2019,30255243,4645.14,Revenue,IIC by Education (P�boro) Ltd,Rent
Peterborough City Council,People & Communities,Independent Sector Placements,Services,11/12/2019,30255608,4714.29,Revenue,Askham Village Community Ltd,Residential Care
Peterborough City Council,People & Communities,Independent Sector Placements,Services,11/12/2019,30251283,4734.60,Revenue,Mencap,Residential Care
Peterborough City Council,People & Communities,Cultural Services,Rents,11/12/2019,30255549,4750.00,Revenue,Jones Lang LaSalle,Rent
Peterborough City Council,Corporate,Corporate,Non Revenue,11/12/2019,30253642,4777.20,Capital,Rawheat Heating & Plumbing Eng.,Building And Site Works
Peterborough City Council,People & Communities,Access to Resources & Specialist Commissioning,Schools,11/12/2019,30253560,4800.00,Revenue,Fostering Solutions Limited,Boarding - Out Fees
Peterborough City Council,Resources,Commercial Propety,Repair & Maintenance of Buildings,11/12/2019,30253576,4882.00,Revenue,Bee Lettings Ltd,Maintenance
Peterborough City Council,Corporate,Corporate,Non Revenue,11/12/2019,30254810,5004.80,Capital,MORLEY BUILDING SERVICES LTD,Grant Payment
Peterborough City Council,People & Communities,Block Contracts,Contract Hire and Operating Leases,11/12/2019,30255122,5034.04,Revenue,Sense,Hired Transport
Peterborough City Council,Corporate,Corporate,Non Revenue,11/12/2019,30254967,5550.00,Capital,Permanent Futures Ltd,Consultants Fees
Peterborough City Council,People & Communities,External Education Placements,Services,11/12/2019,30255240,5606.25,Revenue,Kirkstone House School,Out Of Area Education Costs
Peterborough City Council,Place & Economy,Waste Management,Services,11/12/2019,30254269,5801.97,Revenue,Invixon Limited,Recycling
Peterborough City Council,People & Communities,Access to Resources & Specialist Commissioning,Schools,11/12/2019,30253561,5815.80,Revenue,Fostering Solutions Limited,Boarding - Out Fees
Peterborough City Council,Corporate,Corporate,Non Revenue,11/12/2019,30255555,6000.00,Balance Sheet,Irwin Mitchell LLP,Contributions
Peterborough City Council,People & Communities,Community Safety,Other Establishments,11/12/2019,30255819,6250.00,Revenue,Midland Environmental Contracts (Canine),Third Party Payments - Contract
Peterborough City Council,People & Communities,Community Safety,Other Establishments,11/12/2019,30255820,6250.00,Revenue,Midland Environmental Contracts (Canine),Third Party Payments - Contract
Peterborough City Council,People & Communities,Independent Sector Placements,Services,11/12/2019,30255113,6320.44,Revenue,NORTH EAST AUTISM SOCIETY,Residential Care
Peterborough City Council,People & Communities,Independent Sector Placements,Services,11/12/2019,30254594,6762.86,Revenue,Goldcare Homes t/a The Tudors Care Home,Residential Care
Peterborough City Council,Corporate,Corporate,Non Revenue,11/12/2019,30255864,6824.27,Balance Sheet,NHS Pensions,Local Government Pension
Peterborough City Council,People & Communities,Targeted Youth Service,Services,11/12/2019,30255779,7000.00,Revenue,Peterborough Open Awards Centre CIC,Property Maintenance
Peterborough City Council,People & Communities,External Education Placements,Services,11/12/2019,30255568,7041.75,Revenue,William de Yaxley School,Out Of Area Education Costs
Peterborough City Council,People & Communities,Children�s Social Care,Catering,11/12/2019,30255275,7175.00,Revenue,Vivacity Culture and Leisure,Conferences
Peterborough City Council,Corporate,Corporate,Non Revenue,11/12/2019,30253230,7425.00,Capital,Permanent Futures Ltd,Consultants Fees
Peterborough City Council,People & Communities,Commissioning Team,Interview & Training Expenses,11/12/2019,30254492,7500.00,Revenue,Worldwide Training Partnership,Training
Peterborough City Council,Place & Economy,Waste & Operational Svs Mgmt,Other Establishments,11/12/2019,30254744,7948.07,Revenue,Peterborough Limited,Third Party Payments - Contract
Peterborough City Council,Chief Executives,HR,Services,11/12/2019,30255531,8141.95,Revenue,Edenred,Childcare
Peterborough City Council,People & Communities,Home Services Delivery Model,Other Establishments,11/12/2019,30256015,8259.09,Revenue,Cross Keys Homes,Grant-Third Party
Peterborough City Council,People & Communities,Independent Sector Placements,Services,11/12/2019,30255649,8468.88,Revenue,Augusta Care Ltd,Homecare
Peterborough City Council,People & Communities,External Education Placements,Services,11/12/2019,30255565,9389.00,Revenue,William de Yaxley School,Out Of Area Education Costs
Peterborough City Council,People & Communities,External Education Placements,Services,11/12/2019,30253536,9535.50,Revenue,Cambridgeshire County Council,Education Expenses
Peterborough City Council,People & Communities,Independent Sector Placements,Services,11/12/2019,8000157063,10330.56,Revenue,Cambridgeshirehomecare,Homecare
Peterborough City Council,People & Communities,Independent Sector Placements,Services,11/12/2019,8000157061,10360.10,Revenue,Cambridgeshirehomecare,Homecare
Peterborough City Council,Corporate,Corporate,Non Revenue,11/12/2019,30254969,10450.00,Capital,Permanent Futures Ltd,Consultants Fees
Peterborough City Council,Corporate,Corporate,Non Revenue,11/12/2019,30254964,12100.00,Capital,Permanent Futures Ltd,Consultants Fees
Peterborough City Council,People & Communities,Independent Sector Placements,Services,11/12/2019,8000156776,12432.00,Revenue,PRESTIGE NURSING LIMITED,Homecare
Peterborough City Council,People & Communities,Early Years & Quality Improvement,Services,11/12/2019,30255602,12795.00,Revenue,Little Owls Day Nursery,Grant Payment
Peterborough City Council,Place & Economy,Waste & Operational Svs Mgmt,Other Establishments,11/12/2019,30254744,14006.08,Revenue,Peterborough Limited,Third Party Payments - Contract
Peterborough City Council,Place & Economy,Waste Management,Services,11/12/2019,30254239,14299.64,Revenue,Biogen (UK) Ltd,Recycling
Peterborough City Council,People & Communities,Independent Sector Placements,Services,11/12/2019,30255365,14588.00,Revenue,Decoy Farm,Residential Care
Peterborough City Council,Corporate,Corporate,Non Revenue,11/12/2019,30255861,15407.44,Balance Sheet,LGSS Cambridgeshire Pension Fund,Local Government Pension
Peterborough City Council,People & Communities,External Education Placements,Services,11/12/2019,30253536,15991.90,Revenue,Cambridgeshire County Council,Out Of Area Education Costs
Peterborough City Council,People & Communities,Special Educational Needs / Inclusion,Services,11/12/2019,30255084,16950.00,Revenue,University of Nottingham,Conferences
Peterborough City Council,People & Communities,External Education Placements,Services,11/12/2019,30255155,18484.92,Revenue,Cambridgeshire County Council,Education Expenses
Peterborough City Council,Corporate,Corporate,Non Revenue,11/12/2019,30254978,19877.51,Capital,Turner Contracting Ltd,Grant Payment
Peterborough City Council,People & Communities,Independent Sector Placements,Services,11/12/2019,30246808,20478.21,Revenue,The Regard Partnership Limited,Homecare
Peterborough City Council,Business Improvement,Programme Management Office,Services,11/12/2019,30253534,26590.00,Revenue,Cambridgeshire County Council,Consultants Fees
Peterborough City Council,People & Communities,PFI,Services,11/12/2019,30255247,33488.05,Revenue,IIC by Education (P�boro) Ltd,Rent
Peterborough City Council,Place & Economy,Waste & Operational Svs Mgmt,Other Establishments,11/12/2019,30254744,37535.23,Revenue,Peterborough Limited,Third Party Payments - Contract
Peterborough City Council,Customer & Digital Services,ICT,Members Allowances,11/12/2019,30253422,38350.06,Revenue,Serco Ltd,Computer Software
Peterborough City Council,Customer & Digital Services,ICT,Members Allowances,11/12/2019,30255267,43902.45,Revenue,Amazon Web Services Inc.,Computer Software
Peterborough City Council,Place & Economy,Waste & Operational Svs Mgmt,Other Establishments,11/12/2019,30254744,54039.48,Revenue,Peterborough Limited,Third Party Payments - Contract
Peterborough City Council,Corporate,Corporate,Non Revenue,11/12/2019,30255955,54728.03,Capital,Bride Hall Developments Limited,Building And Site Works
Peterborough City Council,Place & Economy,Waste & Operational Svs Mgmt,Repair & Maintenance of Buildings,11/12/2019,30254744,55678.70,Revenue,Peterborough Limited,Maintenance
Peterborough City Council,People & Communities,Block Contracts,Other Establishments,11/12/2019,30255153,60548.12,Revenue,HEREWARD CARE SERVICES LIMITED,Third Party Payments - Contract
Peterborough City Council,Corporate,Corporate,Non Revenue,11/12/2019,30255860,62466.57,Balance Sheet,LGSS Cambridgeshire Pension Fund,Local Government Pension
Peterborough City Council,People & Communities,Early Years & Quality Improvement,Services,11/12/2019,30255501,66273.96,Revenue,Alpha Kindergarton (Fletton),Grant Payment
Peterborough City Council,Place & Economy,Waste & Operational Svs Mgmt,Other Establishments,11/12/2019,30254744,143036.83,Revenue,Peterborough Limited,Third Party Payments - Contract
Peterborough City Council,People & Communities,Cohesion,Other Establishments,11/12/2019,30253535,145797.25,Revenue,Cambridgeshire County Council,Grant-Third Party
Peterborough City Council,Place & Economy,Waste & Operational Svs Mgmt,Other Establishments,11/12/2019,30254744,170725.68,Revenue,Peterborough Limited,Third Party Payments - Contract
Peterborough City Council,Corporate,Corporate,Non Revenue,11/12/2019,30255858,197611.20,Balance Sheet,LGSS Cambridgeshire Pension Fund,Local Government Pension
Peterborough City Council,Public Health,PH Commissioning,Services,11/12/2019,30255367,274000.00,Revenue,Cambs & P�boro NHS Foundation Trust,Hired Services
Peterborough City Council,Place & Economy,Waste & Operational Svs Mgmt,Other Establishments,11/12/2019,30254744,312061.46,Revenue,Peterborough Limited,Third Party Payments - Contract
Peterborough City Council,Place & Economy,Waste Management,Services,11/12/2019,30254693,378416.89,Revenue,Viridor Peterborough Ltd,Waste Disposal
Peterborough City Council,Corporate,Corporate,Non Revenue,11/12/2019,30255859,491807.16,Balance Sheet,LGSS Cambridgeshire Pension Fund,Local Government Pension
Peterborough City Council,Place & Economy,Growth HoS,Services,11/12/2019,30255547,1995616.63,Revenue,Skanska Construction UK Ltd,Miscellaneous
Peterborough City Council,Place & Economy,Transport & Infrastructure Commissioning,Energy Costs,13/12/2019,30255177,-79874.63,Revenue,EDF Energy Networks Ltd,Electricity
Peterborough City Council,Place & Economy,Transport & Infrastructure Commissioning,Energy Costs,13/12/2019,30255179,-73318.48,Revenue,EDF Energy Networks Ltd,Electricity
Peterborough City Council,People & Communities,Independent Sector Placements,Services,13/12/2019,30255610,-8127.58,Revenue,Athena (Ashlynn Grange),Residential Care
Peterborough City Council,Corporate,Corporate,Non Revenue,13/12/2019,30254984,-5566.00,Capital,Care & Independence  Ltd,Grant Payment
Peterborough City Council,People & Communities,Independent Sector Placements,Services,13/12/2019,30255872,-3010.21,Revenue,Athena (Ashlynn Grange),Respite Care
Peterborough City Council,People & Communities,Independent Sector Placements,Services,13/12/2019,30254893,-2950.01,Revenue,Athena (Ashlynn Grange),Residential Care
Peterborough City Council,People & Communities,Independent Sector Placements,Services,13/12/2019,30256319,-2736.67,Revenue,HEREWARD CARE SERVICES LIMITED,Residential Care
Peterborough City Council,People & Communities,Independent Sector Placements,Services,13/12/2019,30254177,-2264.10,Revenue,Athena (Ashlynn Grange),Residential Care
Peterborough City Council,People & Communities,Clare Lodge,Contract Hire and Operating Leases,13/12/2019,30254804,-2024.55,Revenue,Lex Autolease Ltd,Leasing Charges
Peterborough City Council,People & Communities,Independent Sector Placements,Services,13/12/2019,30255016,-1830.60,Revenue,RBL Field House Care LTD,Residential Care
Peterborough City Council,People & Communities,Independent Sector Placements,Services,13/12/2019,30255732,-1797.36,Revenue,Athena (Ashlynn Grange),Residential Care
Peterborough City Council,People & Communities,Independent Sector Placements,Services,13/12/2019,30254092,-1677.11,Revenue,Athena (Ashlynn Grange),Residential Care
Peterborough City Council,People & Communities,Independent Sector Placements,Services,13/12/2019,30254712,-1088.79,Revenue,Athena (Ashlynn Grange),Residential Care
Peterborough City Council,People & Communities,Home Services Delivery Model,Customer and client receipts - Fees & Charges,13/12/2019,30256074,-876.15,Revenue,Casbon Building Services,Grant Payment
Peterborough City Council,Corporate,Corporate,Non Revenue,13/12/2019,30254984,-834.90,Capital,Care & Independence  Ltd,Grant Payment
Peterborough City Council,Corporate,Corporate,Non Revenue,13/12/2019,30256076,-574.33,Capital,Garfield Builders Ltd,Grant Payment
Peterborough City Council,People & Communities,Therapy/Reablement/Community Equipment,"Tools, Equipment, Furniture & Materials",13/12/2019,30256537,518.00,Revenue,Casbon Building Services,Occupational Therapy Equipment
Peterborough City Council,People & Communities,Community Capacity,Energy Costs,13/12/2019,30256128,535.42,Revenue,British Gas Business,Electricity
Peterborough City Council,People & Communities,Other Enforcement,Services,13/12/2019,30255104,550.00,Revenue,Redacted Personal Information,Legal Costs
Peterborough City Council,People & Communities,Independent Sector Placements,Services,13/12/2019,30256238,567.50,Revenue,Hales Group Ltd,Homecare
Peterborough City Council,People & Communities,Early Help ASC/CSC,Agency Staff,13/12/2019,30255956,569.83,Revenue,Reed Specialist Recruitment Limited,External Temporary Staff
Peterborough City Council,People & Communities,Independent Sector Placements,Services,13/12/2019,30256236,588.56,Revenue,Hales Group Ltd,Homecare
Peterborough City Council,People & Communities,Independent Sector Placements,Services,13/12/2019,30254162,612.28,Revenue,Athena (Ashlynn Grange),Residential Care
Peterborough City Council,People & Communities,Community Capacity,Energy Costs,13/12/2019,30256128,613.19,Revenue,British Gas Business,Electricity
Peterborough City Council,Resources,PSSP Retained Services,Services,13/12/2019,30255795,635.91,Revenue,Whistl UK Ltd,Postage
Peterborough City Council,People & Communities,Community Capacity,Energy Costs,13/12/2019,30256128,638.15,Revenue,British Gas Business,Electricity
Peterborough City Council,Place & Economy,Waste & Operational Svs Mgmt,Energy Costs,13/12/2019,30256340,643.13,Revenue,British Gas Business,Electricity
Peterborough City Council,People & Communities,Community Capacity,Energy Costs,13/12/2019,30256128,645.23,Revenue,British Gas Business,Electricity
Peterborough City Council,People & Communities,Independent Sector Placements,Services,13/12/2019,30254190,662.25,Revenue,Athena (Ashlynn Grange),Residential Care
Peterborough City Council,People & Communities,Community Capacity,Energy Costs,13/12/2019,30256121,687.91,Revenue,British Gas Business,Electricity
Peterborough City Council,People & Communities,Independent Sector Placements,Services,13/12/2019,30255650,688.85,Revenue,Athena (Ashlynn Grange),Residential Care
Peterborough City Council,People & Communities,Community Capacity,Energy Costs,13/12/2019,30256128,704.85,Revenue,British Gas Business,Electricity
Peterborough City Council,People & Communities,Independent Sector Placements,Services,13/12/2019,30254179,708.16,Revenue,Athena (Ashlynn Grange),Residential Care
Peterborough City Council,People & Communities,Independent Sector Placements,Services,13/12/2019,30254232,711.12,Revenue,Athena (Ashlynn Grange),Residential Care
Peterborough City Council,People & Communities,Community Capacity,Energy Costs,13/12/2019,30256128,734.06,Revenue,British Gas Business,Electricity
Peterborough City Council,People & Communities,Community Capacity,Energy Costs,13/12/2019,30256128,747.15,Revenue,British Gas Business,Electricity
Peterborough City Council,People & Communities,Community Capacity,Energy Costs,13/12/2019,30256128,748.89,Revenue,British Gas Business,Electricity
Peterborough City Council,People & Communities,Independent Sector Placements,Services,13/12/2019,30255607,751.18,Revenue,Athena (Ashlynn Grange),Residential Care
Peterborough City Council,People & Communities,Community Capacity,Energy Costs,13/12/2019,30256128,755.09,Revenue,British Gas Business,Electricity
Peterborough City Council,People & Communities,Mental Capacity Act & DoLs,Agency Staff,13/12/2019,30256244,760.00,Revenue,Sanctuary Personnel Ltd,External Temporary Staff
Peterborough City Council,People & Communities,Access to Resources & Specialist Commissioning,Schools,13/12/2019,30255301,764.40,Revenue,Swiis Foster Care Ltd,Boarding - Out Fees
Peterborough City Council,People & Communities,PFI,Water Services,13/12/2019,30256217,767.53,Revenue,Anglian Water Business National,Water
Peterborough City Council,Place & Economy,Waste Management,Services,13/12/2019,30255963,774.00,Revenue,Mick George Ltd,Recycling
Peterborough City Council,Place & Economy,Westcombe Engineering,Services,13/12/2019,30255851,784.76,Revenue,Barron Clark Castings Ltd,Materials
Peterborough City Council,People & Communities,Therapy/Reablement/Community Equipment,"Tools, Equipment, Furniture & Materials",13/12/2019,30256622,786.75,Revenue,Action on Hearing Loss (Equipment),Occupational Therapy Equipment
Peterborough City Council,People & Communities,Independent Sector Placements,Services,13/12/2019,30254186,797.20,Revenue,Athena (Ashlynn Grange),Residential Care
Peterborough City Council,Place & Economy,Waste & Operational Svs Mgmt,Water Services,13/12/2019,30256388,801.16,Revenue,Anglian Water Business National,Water
Peterborough City Council,People & Communities,Independent Sector Placements,Services,13/12/2019,30254221,804.04,Revenue,Athena (Ashlynn Grange),Residential Care
Peterborough City Council,People & Communities,Cultural Services,Water Services,13/12/2019,30256217,806.11,Revenue,Anglian Water Business National,Water
Peterborough City Council,People & Communities,Community Capacity,Energy Costs,13/12/2019,30256128,815.32,Revenue,British Gas Business,Electricity
Peterborough City Council,People & Communities,Independent Sector Placements,Services,13/12/2019,30254327,823.00,Revenue,Richmond Fellowship (The),Residential Care
Peterborough City Council,People & Communities,Independent Sector Placements,Services,13/12/2019,30254330,823.00,Revenue,Richmond Fellowship (The),Residential Care
Peterborough City Council,Corporate,Corporate,Non Revenue,13/12/2019,30254807,846.84,Capital,Eastern Shires Purchasing Organisation,Furniture And Equipment Purchase
Peterborough City Council,People & Communities,Independent Sector Placements,Services,13/12/2019,30254230,854.78,Revenue,Athena (Ashlynn Grange),Residential Care
Peterborough City Council,People & Communities,Independent Sector Placements,Services,13/12/2019,30254314,856.52,Revenue,Pilgrim Havens,Residential Care
Peterborough City Council,People & Communities,Independent Sector Placements,Services,13/12/2019,30254157,863.96,Revenue,Athena (Ashlynn Grange),Residential Care
Peterborough City Council,People & Communities,Independent Sector Placements,Services,13/12/2019,30254181,882.64,Revenue,Athena (Ashlynn Grange),Residential Care
Peterborough City Council,People & Communities,Independent Sector Placements,Services,13/12/2019,30254216,894.88,Revenue,Athena (Ashlynn Grange),Residential Care
Peterborough City Council,People & Communities,Independent Sector Placements,Services,13/12/2019,30254174,903.06,Revenue,Athena (Ashlynn Grange),Respite Care
Peterborough City Council,People & Communities,Independent Sector Placements,Services,13/12/2019,30254220,923.48,Revenue,Athena (Ashlynn Grange),Residential Care
Peterborough City Council,Governance,Legal Services,Agency Staff,13/12/2019,30256184,935.00,Revenue,Fiona Spinks,External Temporary Staff
Peterborough City Council,People & Communities,Independent Sector Placements,Services,13/12/2019,30254213,967.08,Revenue,Athena (Ashlynn Grange),Residential Care
Peterborough City Council,People & Communities,Independent Sector Placements,Services,13/12/2019,30254207,968.52,Revenue,Athena (Ashlynn Grange),Residential Care
Peterborough City Council,People & Communities,Independent Sector Placements,Services,13/12/2019,30256252,975.00,Revenue,Fins Care Ltd t/a St Margarets Rest Home,Temporary Accommodation Costs
Peterborough City Council,People & Communities,Independent Sector Placements,Services,13/12/2019,30254231,986.00,Revenue,Athena (Ashlynn Grange),Residential Care
Peterborough City Council,Corporate,Corporate,Non Revenue,13/12/2019,30255707,1000.00,Capital,Westraven Community Cafe and Garden,Grant Payment
Peterborough City Council,Resources,Insurance,Services,13/12/2019,30255724,1002.00,Revenue,Redacted Personal Information,Insurance
Peterborough City Council,People & Communities,Independent Sector Placements,Services,13/12/2019,30254309,1006.84,Revenue,Pilgrim Havens,Residential Care
Peterborough City Council,People & Communities,Independent Sector Placements,Services,13/12/2019,30254310,1006.84,Revenue,Pilgrim Havens,Residential Care
Peterborough City Council,People & Communities,Independent Sector Placements,Services,13/12/2019,30254319,1006.84,Revenue,Pilgrim Havens,Residential Care
